{"text_format":"1","workbook":"xlsx","n_sheets":10,"sheets":["Opslagsværk","Info om kontoplansdim. - Print","Tværgående Dimension - Print","Drift tværgående - Print","Anlæg tværgående - Print","Opdatering af opslagsværk","Formål_1","Formål_2","Formål_3","Beskrivelser (DHY)"],"not_rendered":{"charts":0,"images":7,"macros":1,"external_links":0,"defined_names":47,"comments":0,"pivot_tables":0},"unopened":[],"bounds":{"document_bytes":16777216,"sheet_cells":100000,"rows_first":2000,"rows_last":500,"rows_between":2000,"halvings":0,"cell_chars":16384,"cell_head_chars":4096},"cells_cut":0,"cells_raw":0,"read":"whole","date_system":"1900"}

{"sheet":"Opslagsværk","index":0,"n_rows":20,"n_cols":27,"rows_kept":20,"cut":false,"hidden":false,"merged":[[2,4,2,9],[6,4,6,9],[14,4,14,9],[19,4,19,9],[4,4,4,9],[8,4,9,9],[10,1,10,2],[15,1,19,1],[15,2,19,2],[15,4,15,6],[15,7,15,9],[16,4,16,6],[16,7,16,9],[17,4,17,6],[17,7,17,9],[18,4,18,6],[18,7,18,9],[10,8,10,9]]}
[]
[null,"OPSLAGSVÆRK TVÆRGÅENDE DIMENSION"]
[null,"\nBrug knappen til at nulstille felterne i tværgående dimension\n↓↓↓","\nStil dig i felterne herunder og brug knappen til at vælge de tværgående dimensioner",null,"\nForklarende tekst \ntil niveauerne i den tværgående dimension",null,null,null,null,null,null,null,null,null,null,null,null,null,null,null,null,null,null,null,null,null,"Tjek"]
[]
[null,"Vælg dimensionsniveau 1:",null,null,{"$f":"IFERROR(VLOOKUP(C5,'Beskrivelser (DHY)'!B:C,2,FALSE),\"\")","v":""},null,null,null,null,null,null,null," "]
[]
[null,"Vælg dimensionsniveau 2:",null,null,{"$f":"IFERROR(VLOOKUP(C7,'Beskrivelser (DHY)'!F:G,2,FALSE),\"\")","v":""},null,null,null,null,null,null,null,null,null,null,null,null,null,null,null,null,null,null,null,null,null,{"$f":"IF(INDEX(Formål_1!A:A,MATCH(Opslagsværk!C7,Formål_1!B:B,0))=C5,\"OK\",\"IKKE OK\")","v":{"$error":"#N/A"}}]
[]
[null,"Vælg dimensionsniveau 3:",null,null,{"$f":"IFERROR(VLOOKUP(C9,'Beskrivelser (DHY)'!J:K,2,FALSE),\"\")","v":""},null,null,null,null,null,null,null,null,null,null,null,null,null,null,null,null,null,null,null,null,null,{"$f":"IF(AA7=\"IKKE OK\",\"IKKE OK\",IF(INDEX(Formål_2!A:A,MATCH(Opslagsværk!C9,Formål_2!B:B,0))=C7,\"OK\",\"IKKE OK\"))","v":{"$error":"#N/A"}}]
[null,"Kombination af ovenstående",{"$f":"IF(OR(C5=\"\",C7=\"\",C9=\"\"),\"\",LEFT(C5,2)&LEFT(C7,2)&LEFT(C9,999))","v":""},null,null,null,null,null,null,null,null,null,null,null,null,null,null,null,null,null,null,null,null,null,null,null,{"$f":"IF(AA7=\"IKKE OK\",\"IKKE OK\",IF(AA9=\"IKKE OK\",\"IKKE OK\",\"OK\"))","v":{"$error":"#N/A"}}]
[null,"\n* Bemærk hvis dimensioniveau-felterne bliver markeret med RØD er der IKKE overensstemmelse mellem dimensionsniveau 1, 2, 3 og i kombinationen af disse",null,null,null,null,null,null,"Ver. 1.0 senest opdateret 2025-06-23"]
[]
[]
[null,"OPSLAGSVÆRK TVÆRGÅENDE DIMENSION"]
[null,null,"Brug boksen herunder til kun at søge på tværgående dimension (skriv de 7-cifre)\n↓↓↓",null,"Opslag af tværgående dimension"]
[null,"Søg på Tværgående Dimension:",null,null,"Dimensionsniveau 1:",null,null,{"$f":"IFERROR(IF(H19=\"\",\"\",(VLOOKUP(VALUE(LEFT(C16,2)),'Beskrivelser (DHY)'!A:C,2,FALSE))),\"\")","v":""}]
[null,null,null,null,"Dimensionsniveau 2:",null,null,{"$f":"IFERROR(IF(H19=\"\",\"\",(VLOOKUP(VALUE(MID(C16,3,2)),'Beskrivelser (DHY)'!E:G,2,FALSE))),\"\")","v":""}]
[null,null,null,null,"Dimensionsniveau 3:",null,null,{"$f":"IFERROR(IF(H19=\"\",\"\",(VLOOKUP(VALUE(RIGHT(C16,3)),'Beskrivelser (DHY)'!I:K,2,FALSE))),\"\")","v":""}]
[null,null,null,null,{"$f":"\"Tværgående Dimension:\"","v":"Tværgående Dimension:"},null,null,{"$f":"IF(C16=\"\",\"\",IFERROR(VLOOKUP(VALUE(C16),'Beskrivelser (DHY)'!M:N,2,FALSE),\"Tværgående dimension eksisterer ikke\"))","v":""}]
[null,null,null,null,{"$f":"IFERROR(VLOOKUP(C16,'Beskrivelser (DHY)'!M:O,3,FALSE),\"\")","v":""}]

{"sheet":"Info om kontoplansdim. - Print","index":1,"n_rows":0,"n_cols":0,"rows_kept":0,"cut":false,"hidden":false,"merged":[]}

{"sheet":"Tværgående Dimension - Print","index":2,"n_rows":137,"n_cols":5,"rows_kept":137,"cut":false,"hidden":false,"merged":[]}
["Dimensions-niveau 1","Tværgående dimension","Tværgående dimension forklaringstekst"]
[{"$f":"IFERROR(VLOOKUP(VALUE(LEFT(B2,2)),'Beskrivelser (DHY)'!A:B,2,FALSE),\"\")","v":"20: Overførselsudgifter"},{"$f":"IF('Beskrivelser (DHY)'!N2=\"\",\"\",'Beskrivelser (DHY)'!N2)","v":"2020200: Overførs.udg.-Forsørgelse - Forsørgelse"},{"$f":"IF('Beskrivelser (DHY)'!K2=\"\",\"\",'Beskrivelser (DHY)'!K2)","v":"Udgifter til forsørgelsesydelser konteres her. Det kan f.eks være kontant- og uddannelseshjælp, integrationsydelse, ledighedsydelse, sygedagpenge, ressourceforløbsydelse, revalideringsydelse, fleksløntilskud og EGU (skoleydelse/løn). "}]
[{"$f":"IFERROR(VLOOKUP(VALUE(LEFT(B3,2)),'Beskrivelser (DHY)'!A:B,2,FALSE),\"\")","v":"20: Overførselsudgifter"},{"$f":"IF('Beskrivelser (DHY)'!N3=\"\",\"\",'Beskrivelser (DHY)'!N3)","v":"2020202: Overførs.udg.-Forsørgelse - Løntilskud"},{"$f":"IF('Beskrivelser (DHY)'!K3=\"\",\"\",'Beskrivelser (DHY)'!K3)","v":"Udgifter til alle former for løntilskud uanset målgruppe konteres på dimensionsværdi 2020202. Det kan bl.a. være udgifter til løntilskud til fleksjob/skånejob, revalidender, forsikrede ledige (privat/offentligt), voksenlærlinge, integrationsydelsesmodtagere, kontant- og uddannelseshjælpsmodtagere, og ressourceforløbsydelsesmodtagere."}]
[{"$f":"IFERROR(VLOOKUP(VALUE(LEFT(B4,2)),'Beskrivelser (DHY)'!A:B,2,FALSE),\"\")","v":"20: Overførselsudgifter"},{"$f":"IF('Beskrivelser (DHY)'!N4=\"\",\"\",'Beskrivelser (DHY)'!N4)","v":"2020204: Overførs.udg.-Forsørgelse - Medfinansiering"},{"$f":"IF('Beskrivelser (DHY)'!K4=\"\",\"\",'Beskrivelser (DHY)'!K4)","v":"Udgifter til medfinansiering af forsørgelse konteres her. Der vil være tale om medfinansiering af a-dagpenge og førtidspensioner. Medfinansiering af boligstøtte, varmetillæg og særlig støtte §34 konteres under dimension 2024240, da der ikke er tale om forsørgelsesudgifter."}]
[{"$f":"IFERROR(VLOOKUP(VALUE(LEFT(B5,2)),'Beskrivelser (DHY)'!A:B,2,FALSE),\"\")","v":"20: Overførselsudgifter"},{"$f":"IF('Beskrivelser (DHY)'!N5=\"\",\"\",'Beskrivelser (DHY)'!N5)","v":"2022220: Overførs.udg.-Indsatser"},{"$f":"IF('Beskrivelser (DHY)'!K5=\"\",\"\",'Beskrivelser (DHY)'!K5)","v":"Udgifter til indsatser omfatter køb af indsatser/aktivering over for alle målgrupper. Det kan f.eks være mentor, danskuddannelse, forskellige statslige puljer (regional uddannelsespulje, pulje til uddannelsesløft), jobrotation, vejledning- og opkvalificeringstilbud, godtgørelse §83, den koordinerede ungeindsats (KUI) og indsatser vedr. EGU."}]
[{"$f":"IFERROR(VLOOKUP(VALUE(LEFT(B6,2)),'Beskrivelser (DHY)'!A:B,2,FALSE),\"\")","v":"20: Overførselsudgifter"},{"$f":"IF('Beskrivelser (DHY)'!N6=\"\",\"\",'Beskrivelser (DHY)'!N6)","v":"2024240: Overførs.udg.-Øvrige"},{"$f":"IF('Beskrivelser (DHY)'!K6=\"\",\"\",'Beskrivelser (DHY)'!K6)","v":"Her konteres som udgangspunkt alle øvrige udgifter/indtægter, som ikke kan henføres til en af de øvrige tværgående dimensioner på overførselsudgifterne. Det kan f.eks. være hjælpemidler, befordringsgodtgørelse, personlig assistance, mellemkommunale betalinger, grundtilskud, resultattilskud, enkeltydelser, støtte til repatriering, særlig støtte § 34, tabt arbejdsfortjeneste, merudgifter til voksne/børn, boligstøtte, personlige tillæg og hjemmetræning."}]
[{"$f":"IFERROR(VLOOKUP(VALUE(LEFT(B7,2)),'Beskrivelser (DHY)'!A:B,2,FALSE),\"\")","v":"30: Puljer mv."},{"$f":"IF('Beskrivelser (DHY)'!N7=\"\",\"\",'Beskrivelser (DHY)'!N7)","v":"3030300: Pulje mv. - Overført over-/underskud"},{"$f":"IF('Beskrivelser (DHY)'!K7=\"\",\"\",'Beskrivelser (DHY)'!K7)","v":"Her må ikke bogføres. Anvendes kun til registrering af overførte mere- eller mindre forbrug mellem årene. "}]
[{"$f":"IFERROR(VLOOKUP(VALUE(LEFT(B8,2)),'Beskrivelser (DHY)'!A:B,2,FALSE),\"\")","v":"30: Puljer mv."},{"$f":"IF('Beskrivelser (DHY)'!N8=\"\",\"\",'Beskrivelser (DHY)'!N8)","v":"3030310: Pulje mv. - Reduktion/omstilling"},{"$f":"IF('Beskrivelser (DHY)'!K8=\"\",\"\",'Beskrivelser (DHY)'!K8)","v":"Her må ikke bogføres. Anvendes kun til registrering af budgetpuljer til senere udmøntning."}]
[{"$f":"IFERROR(VLOOKUP(VALUE(LEFT(B9,2)),'Beskrivelser (DHY)'!A:B,2,FALSE),\"\")","v":"30: Puljer mv."},{"$f":"IF('Beskrivelser (DHY)'!N9=\"\",\"\",'Beskrivelser (DHY)'!N9)","v":"3030320: Pulje mv. - Politisk til prioritering"},{"$f":"IF('Beskrivelser (DHY)'!K9=\"\",\"\",'Beskrivelser (DHY)'!K9)","v":"Her må ikke bogføres. Anvendes kun til registrering af budgetpuljer til senere politisk prioritering."}]
[{"$f":"IFERROR(VLOOKUP(VALUE(LEFT(B10,2)),'Beskrivelser (DHY)'!A:B,2,FALSE),\"\")","v":"30: Puljer mv."},{"$f":"IF('Beskrivelser (DHY)'!N10=\"\",\"\",'Beskrivelser (DHY)'!N10)","v":"3032320: Pulje mv. - Flexjob"},{"$f":"IF('Beskrivelser (DHY)'!K10=\"\",\"\",'Beskrivelser (DHY)'!K10)","v":"Her må ikke bogføres. Anvendes kun til registrering af budgetpuljer til senere politisk prioritering."}]
[{"$f":"IFERROR(VLOOKUP(VALUE(LEFT(B11,2)),'Beskrivelser (DHY)'!A:B,2,FALSE),\"\")","v":"30: Puljer mv."},{"$f":"IF('Beskrivelser (DHY)'!N11=\"\",\"\",'Beskrivelser (DHY)'!N11)","v":"3032322: Pulje mv. - Barsel"},{"$f":"IF('Beskrivelser (DHY)'!K11=\"\",\"\",'Beskrivelser (DHY)'!K11)","v":"Her må ikke bogføres. Anvendes kun til registrering af budgetmidler til finansiering af tilskud til barselsrefusion internt i Aabenraa Kommune"}]
[{"$f":"IFERROR(VLOOKUP(VALUE(LEFT(B12,2)),'Beskrivelser (DHY)'!A:B,2,FALSE),\"\")","v":"30: Puljer mv."},{"$f":"IF('Beskrivelser (DHY)'!N12=\"\",\"\",'Beskrivelser (DHY)'!N12)","v":"3032324: Pulje mv. - Lederløn"},{"$f":"IF('Beskrivelser (DHY)'!K12=\"\",\"\",'Beskrivelser (DHY)'!K12)","v":"Her må ikke bogføres. Anvendes kun til registrering af budgetmidler til udmøntning til ledere (i de år hvor sådanne puljer forefindes)."}]
[{"$f":"IFERROR(VLOOKUP(VALUE(LEFT(B13,2)),'Beskrivelser (DHY)'!A:B,2,FALSE),\"\")","v":"30: Puljer mv."},{"$f":"IF('Beskrivelser (DHY)'!N13=\"\",\"\",'Beskrivelser (DHY)'!N13)","v":"3032326: Pulje mv. - Løn til personale"},{"$f":"IF('Beskrivelser (DHY)'!K13=\"\",\"\",'Beskrivelser (DHY)'!K13)","v":"Her må ikke bogføres. Anvendes kun til registrering af budgetmidler til finansiering af f.eks. aktiviteter vedr. tillidsmænd."}]
[{"$f":"IFERROR(VLOOKUP(VALUE(LEFT(B14,2)),'Beskrivelser (DHY)'!A:B,2,FALSE),\"\")","v":"30: Puljer mv."},{"$f":"IF('Beskrivelser (DHY)'!N14=\"\",\"\",'Beskrivelser (DHY)'!N14)","v":"3032328: Pulje mv. - Øvrige"},{"$f":"IF('Beskrivelser (DHY)'!K14=\"\",\"\",'Beskrivelser (DHY)'!K14)","v":"Her må ikke bogføres. Anvendes kun til registrering af budgetmidler til finansiering af kommende tiltag."}]
[{"$f":"IFERROR(VLOOKUP(VALUE(LEFT(B15,2)),'Beskrivelser (DHY)'!A:B,2,FALSE),\"\")","v":"40: Løn"},{"$f":"IF('Beskrivelser (DHY)'!N15=\"\",\"\",'Beskrivelser (DHY)'!N15)","v":"4040400: Løn - Personale"},{"$f":"IF('Beskrivelser (DHY)'!K15=\"\",\"\",'Beskrivelser (DHY)'!K15)","v":"Her registreres løn til personale. Lønnen overføres automatisk fra lønsystemet \"Silkeborg Data Løn\", så der skal ikke bogføres manuelt her."}]
[{"$f":"IFERROR(VLOOKUP(VALUE(LEFT(B16,2)),'Beskrivelser (DHY)'!A:B,2,FALSE),\"\")","v":"40: Løn"},{"$f":"IF('Beskrivelser (DHY)'!N16=\"\",\"\",'Beskrivelser (DHY)'!N16)","v":"4040402: Løn - Pensionsforsikringspræmier"},{"$f":"IF('Beskrivelser (DHY)'!K16=\"\",\"\",'Beskrivelser (DHY)'!K16)","v":"Pensionsforsikringspræmier vedr. erhvervsaktive tjenestemend registreres her. Udgifterne bogføres automatisk via lønsystemet, så der skal ikke bogføres manuelt her."}]
[{"$f":"IFERROR(VLOOKUP(VALUE(LEFT(B17,2)),'Beskrivelser (DHY)'!A:B,2,FALSE),\"\")","v":"40: Løn"},{"$f":"IF('Beskrivelser (DHY)'!N17=\"\",\"\",'Beskrivelser (DHY)'!N17)","v":"4040406: Løn - Vikarudgifter/Vikarbureau"},{"$f":"IF('Beskrivelser (DHY)'!K17=\"\",\"\",'Beskrivelser (DHY)'!K17)","v":"Her registreres løn til vikarer. Løn til vikarer, der er ansat ved Aabenraa Kommune, overføres automatisk fra lønsystemet \"Silkeborg Data Løn\". Fakturaer vedr. vikarbureauer bogføres ligeledes her, således at vikarudgifter findes her uanset om det er egne medarbejdere eller eksterne vikarer, der løser opgaven. "}]
[{"$f":"IFERROR(VLOOKUP(VALUE(LEFT(B18,2)),'Beskrivelser (DHY)'!A:B,2,FALSE),\"\")","v":"40: Løn"},{"$f":"IF('Beskrivelser (DHY)'!N18=\"\",\"\",'Beskrivelser (DHY)'!N18)","v":"4040490: Løn - Overførte lønninger (udgift)"},{"$f":"IF('Beskrivelser (DHY)'!K18=\"\",\"\",'Beskrivelser (DHY)'!K18)","v":"Dimension 4040490 anvendes KUN sammen med dimension 4040492, og benyttes når der manuelt skal omkonteres løn f.eks. ved afregningen efter BUModellen (Bestiller-Udfører-Model) eller ved udlån af medarbejdere. Hvis det er en BUM-afregning skal den tværgående dimension kombineres med IM Art 11. Hvis det er afregning for udlån af medarbejdere, skal IM Art 12 (Øvrige overførte lønninger) benyttes. Der er oprettet særlige kladder hertil."}]
[{"$f":"IFERROR(VLOOKUP(VALUE(LEFT(B19,2)),'Beskrivelser (DHY)'!A:B,2,FALSE),\"\")","v":"40: Løn"},{"$f":"IF('Beskrivelser (DHY)'!N19=\"\",\"\",'Beskrivelser (DHY)'!N19)","v":"4040492: Løn - Overførte lønninger (indtægt)"},{"$f":"IF('Beskrivelser (DHY)'!K19=\"\",\"\",'Beskrivelser (DHY)'!K19)","v":"Dimension 4040492 anvendes KUN sammen med dimension 4040490, og benyttes, når der skal manuelt omkonteres løn f.eks. ved afregningen efter BUModellen (Bestiller-Udfører-Model) eller ved udlån af medarbejdere. Hvis det er en BUM-afregning skal den tværgående dimension kombineres med IM Art 11. Hvis det er afregning for udlån af medarbejdere, skal IM Art 12 (Øvrige overførte lønninger) benyttes. Der er oprettet særlige kladder hertil."}]
[{"$f":"IFERROR(VLOOKUP(VALUE(LEFT(B20,2)),'Beskrivelser (DHY)'!A:B,2,FALSE),\"\")","v":"40: Løn"},{"$f":"IF('Beskrivelser (DHY)'!N20=\"\",\"\",'Beskrivelser (DHY)'!N20)","v":"4040972: Løn - Feriepengeforpligtigelser"},{"$f":"IF('Beskrivelser (DHY)'!K20=\"\",\"\",'Beskrivelser (DHY)'!K20)","v":"Her registreres feriepengeforpligtelser - anvendes kun centralt. "}]
[{"$f":"IFERROR(VLOOKUP(VALUE(LEFT(B21,2)),'Beskrivelser (DHY)'!A:B,2,FALSE),\"\")","v":"40: Løn"},{"$f":"IF('Beskrivelser (DHY)'!N21=\"\",\"\",'Beskrivelser (DHY)'!N21)","v":"4042420: Lønrefusion - Barsel"},{"$f":"IF('Beskrivelser (DHY)'!K21=\"\",\"\",'Beskrivelser (DHY)'!K21)","v":"Modtagne refusioner vedr. barselsforløb registreres her, uanset om refusionen kommer fra hjemkommunen eller fra kommunens interne barselspulje. "}]
[{"$f":"IFERROR(VLOOKUP(VALUE(LEFT(B22,2)),'Beskrivelser (DHY)'!A:B,2,FALSE),\"\")","v":"40: Løn"},{"$f":"IF('Beskrivelser (DHY)'!N22=\"\",\"\",'Beskrivelser (DHY)'!N22)","v":"4042422: Lønrefusion - Sygedagpenge"},{"$f":"IF('Beskrivelser (DHY)'!K22=\"\",\"\",'Beskrivelser (DHY)'!K22)","v":"Modtagne refusioner vedr. sygedagpenge fra hjemkommunen registreres her.  "}]
[{"$f":"IFERROR(VLOOKUP(VALUE(LEFT(B23,2)),'Beskrivelser (DHY)'!A:B,2,FALSE),\"\")","v":"40: Løn"},{"$f":"IF('Beskrivelser (DHY)'!N23=\"\",\"\",'Beskrivelser (DHY)'!N23)","v":"4042424: Lønrefusion - Flexjob"},{"$f":"IF('Beskrivelser (DHY)'!K23=\"\",\"\",'Beskrivelser (DHY)'!K23)","v":"Benyttes ikke. Refusion vedr. Flexjob bogføres under dimension 4040400."}]
[{"$f":"IFERROR(VLOOKUP(VALUE(LEFT(B24,2)),'Beskrivelser (DHY)'!A:B,2,FALSE),\"\")","v":"40: Løn"},{"$f":"IF('Beskrivelser (DHY)'!N24=\"\",\"\",'Beskrivelser (DHY)'!N24)","v":"4042426: Lønrefusion - Øvrige"},{"$f":"IF('Beskrivelser (DHY)'!K24=\"\",\"\",'Beskrivelser (DHY)'!K24)","v":"Alle andre refusioner vedr. personale end barsel, sygdom, flexjob og VEU-godtgørelse registreres her."}]
[{"$f":"IFERROR(VLOOKUP(VALUE(LEFT(B25,2)),'Beskrivelser (DHY)'!A:B,2,FALSE),\"\")","v":"40: Løn"},{"$f":"IF('Beskrivelser (DHY)'!N25=\"\",\"\",'Beskrivelser (DHY)'!N25)","v":"4042428: Lønrefusion - VEU godtgørelse"},{"$f":"IF('Beskrivelser (DHY)'!K25=\"\",\"\",'Beskrivelser (DHY)'!K25)","v":"Benyttes ikke. Refusion vedr. VEU godtgørelse bogføres under dimension 4040400."}]
[{"$f":"IFERROR(VLOOKUP(VALUE(LEFT(B26,2)),'Beskrivelser (DHY)'!A:B,2,FALSE),\"\")","v":"44: Personaleudgifter"},{"$f":"IF('Beskrivelser (DHY)'!N26=\"\",\"\",'Beskrivelser (DHY)'!N26)","v":"4444440: Personaleudgifter - Uddannelse og kurser"},{"$f":"IF('Beskrivelser (DHY)'!K26=\"\",\"\",'Beskrivelser (DHY)'!K26)","v":"Her registreres udgifter til personalets uddannelses- og kursusaktiviteter. Gælder både kursusafgift, kursusmaterialer, befordring til kurser samt evt. overnatning ifm. kurset, hvis ikke det er inkluderet i kursusafgiften. Længerevarende uddannelsesforløb (f.eks. forvaltningshøjskole, diplom- og masteruddannelser registreres også her)."}]
[{"$f":"IFERROR(VLOOKUP(VALUE(LEFT(B27,2)),'Beskrivelser (DHY)'!A:B,2,FALSE),\"\")","v":"44: Personaleudgifter"},{"$f":"IF('Beskrivelser (DHY)'!N27=\"\",\"\",'Beskrivelser (DHY)'!N27)","v":"4446460: Personaleudgifter - Beklædning"},{"$f":"IF('Beskrivelser (DHY)'!K27=\"\",\"\",'Beskrivelser (DHY)'!K27)","v":"På de områder, hvor Aabenraa Kommune er forpligtet til at stille arbejdstøj til rådighed, registreres udgifterne her, uanset om det er køb af tøj samt vask, eller om det er leje af tøj. "}]
[{"$f":"IFERROR(VLOOKUP(VALUE(LEFT(B28,2)),'Beskrivelser (DHY)'!A:B,2,FALSE),\"\")","v":"44: Personaleudgifter"},{"$f":"IF('Beskrivelser (DHY)'!N28=\"\",\"\",'Beskrivelser (DHY)'!N28)","v":"4446462: Personaleudgifter - Befordringsgodtgørelse (overf. Fra SD)"},{"$f":"IF('Beskrivelser (DHY)'!K28=\"\",\"\",'Beskrivelser (DHY)'!K28)","v":"Her registreres befordringsgodtgørelse, som overføres automatisk fra lønsystemet \"Silkeborg Data Løn\", så der skal ikke bogføres manuelt her."}]
[{"$f":"IFERROR(VLOOKUP(VALUE(LEFT(B29,2)),'Beskrivelser (DHY)'!A:B,2,FALSE),\"\")","v":"44: Personaleudgifter"},{"$f":"IF('Beskrivelser (DHY)'!N29=\"\",\"\",'Beskrivelser (DHY)'!N29)","v":"4446464: Personaleudgifter - Øvrig transport"},{"$f":"IF('Beskrivelser (DHY)'!K29=\"\",\"\",'Beskrivelser (DHY)'!K29)","v":"Her registreres f.eks. Broafgift, tog- og færgebilletter m.v. "}]
[{"$f":"IFERROR(VLOOKUP(VALUE(LEFT(B30,2)),'Beskrivelser (DHY)'!A:B,2,FALSE),\"\")","v":"44: Personaleudgifter"},{"$f":"IF('Beskrivelser (DHY)'!N30=\"\",\"\",'Beskrivelser (DHY)'!N30)","v":"4446466: Personaleudgifter - Udlandsrejser"},{"$f":"IF('Beskrivelser (DHY)'!K30=\"\",\"\",'Beskrivelser (DHY)'!K30)","v":"Udgifter til rejser til udlandet bliver der ofte begæret aktindsigt i, hvorfor alle udgifter til udlandsrejser skal registreres her, selvom de kan have karakter f.eks. af uddannelse. "}]
[{"$f":"IFERROR(VLOOKUP(VALUE(LEFT(B31,2)),'Beskrivelser (DHY)'!A:B,2,FALSE),\"\")","v":"44: Personaleudgifter"},{"$f":"IF('Beskrivelser (DHY)'!N31=\"\",\"\",'Beskrivelser (DHY)'!N31)","v":"4446468: Personaleudgifter - Repræsentation"},{"$f":"IF('Beskrivelser (DHY)'!K31=\"\",\"\",'Beskrivelser (DHY)'!K31)","v":"Udgifter til repræsentation skal vi kunne dokumentere, bl.a. ifm. aktindsigtshenvendelser, hvorfor alle udgifter til gaver m.v. til eksterne parter skal registreres her"}]
[{"$f":"IFERROR(VLOOKUP(VALUE(LEFT(B32,2)),'Beskrivelser (DHY)'!A:B,2,FALSE),\"\")","v":"44: Personaleudgifter"},{"$f":"IF('Beskrivelser (DHY)'!N32=\"\",\"\",'Beskrivelser (DHY)'!N32)","v":"4446470: Personaleudgifter - Rekruttering (annoncering, m.v.)"},{"$f":"IF('Beskrivelser (DHY)'!K32=\"\",\"\",'Beskrivelser (DHY)'!K32)","v":"Her registreres udgifter til annoncering, persontests, rekrutteringsbureauer m.v.samt udgifter ift. afholdelse af samtaler. "}]
[{"$f":"IFERROR(VLOOKUP(VALUE(LEFT(B33,2)),'Beskrivelser (DHY)'!A:B,2,FALSE),\"\")","v":"44: Personaleudgifter"},{"$f":"IF('Beskrivelser (DHY)'!N33=\"\",\"\",'Beskrivelser (DHY)'!N33)","v":"4446472: Personaleudgifter - Øvrige personalerelaterede udgifter"},{"$f":"IF('Beskrivelser (DHY)'!K33=\"\",\"\",'Beskrivelser (DHY)'!K33)","v":"Her konteres blandt andet udgifter til sundhedsmæssige foranstaltninger, der afholdes i forhold til institutionens/afdelingens personale. Udgifter ift. borgere konteres under dimension 5050530."}]
[{"$f":"IFERROR(VLOOKUP(VALUE(LEFT(B34,2)),'Beskrivelser (DHY)'!A:B,2,FALSE),\"\")","v":"44: Personaleudgifter"},{"$f":"IF('Beskrivelser (DHY)'!N34=\"\",\"\",'Beskrivelser (DHY)'!N34)","v":"4446474: Personaleudgifter - Personaleaktiviteter"},{"$f":"IF('Beskrivelser (DHY)'!K34=\"\",\"\",'Beskrivelser (DHY)'!K34)","v":"Her konteres udgifter til aktiviteter for personalet, f.eks. personalearrangementer som ikke er kurser, men som mere har karakter af personalepleje. Julegaver til personalet konteres også her. Aktiviteter for beboere, børn m.v. konteres på dimension 5050520."}]
[{"$f":"IFERROR(VLOOKUP(VALUE(LEFT(B35,2)),'Beskrivelser (DHY)'!A:B,2,FALSE),\"\")","v":"44: Personaleudgifter"},{"$f":"IF('Beskrivelser (DHY)'!N35=\"\",\"\",'Beskrivelser (DHY)'!N35)","v":"4446480: Personaleudgifter - Pers.relateret udlæg"},{"$f":"IF('Beskrivelser (DHY)'!K35=\"\",\"\",'Beskrivelser (DHY)'!K35)","v":"Her konteres udgifter til udlæg, som registreres via SD udlægs App. Der kan ikke bogføres direkte på dimensionen. MAN-udgiftsbilag bogføres ikke her, men på de relevante tværgående dimensioner.\n"}]
[{"$f":"IFERROR(VLOOKUP(VALUE(LEFT(B36,2)),'Beskrivelser (DHY)'!A:B,2,FALSE),\"\")","v":"44: Personaleudgifter"},{"$f":"IF('Beskrivelser (DHY)'!N36=\"\",\"\",'Beskrivelser (DHY)'!N36)","v":"4446980: Personaleudgifter - Forsikringspræmier"},{"$f":"IF('Beskrivelser (DHY)'!K36=\"\",\"\",'Beskrivelser (DHY)'!K36)","v":"Præmer til arbejdsskadeforsikringer registreres her sammen med evt. andre forsikringer som relaterer sig til personalet."}]
[{"$f":"IFERROR(VLOOKUP(VALUE(LEFT(B37,2)),'Beskrivelser (DHY)'!A:B,2,FALSE),\"\")","v":"44: Personaleudgifter"},{"$f":"IF('Beskrivelser (DHY)'!N37=\"\",\"\",'Beskrivelser (DHY)'!N37)","v":"4446982: Personaleudgifter - Forsikringsskader"},{"$f":"IF('Beskrivelser (DHY)'!K37=\"\",\"\",'Beskrivelser (DHY)'!K37)","v":"Kommunens/institutionens udgifter i forbindelse med forsikringssager (f.eks. Selvrisiko ift. personskader) konteres her."}]
[{"$f":"IFERROR(VLOOKUP(VALUE(LEFT(B38,2)),'Beskrivelser (DHY)'!A:B,2,FALSE),\"\")","v":"44: Personaleudgifter"},{"$f":"IF('Beskrivelser (DHY)'!N38=\"\",\"\",'Beskrivelser (DHY)'!N38)","v":"4446984: Personaleudgifter - Risikostyring/forebyggelse"},{"$f":"IF('Beskrivelser (DHY)'!K38=\"\",\"\",'Beskrivelser (DHY)'!K38)","v":"Udgifter der afholdes med henblik på at forebygge skader konteres her. Det kan f.eks. være udgifter til skridsikre såler, så personalet undgår at falde på isglatte underlag."}]
[{"$f":"IFERROR(VLOOKUP(VALUE(LEFT(B39,2)),'Beskrivelser (DHY)'!A:B,2,FALSE),\"\")","v":"48: Pensionerede tjenestemænd"},{"$f":"IF('Beskrivelser (DHY)'!N39=\"\",\"\",'Beskrivelser (DHY)'!N39)","v":"4848480: Tjenestemandspensioner og -forpligtelser"},{"$f":"IF('Beskrivelser (DHY)'!K39=\"\",\"\",'Beskrivelser (DHY)'!K39)","v":"Dimensionen anvendes centralt til kontering af reguleringer i hensættelser til tjenestemandspensioner."}]
[{"$f":"IFERROR(VLOOKUP(VALUE(LEFT(B40,2)),'Beskrivelser (DHY)'!A:B,2,FALSE),\"\")","v":"50: Materiale- og aktivitetsudgifter"},{"$f":"IF('Beskrivelser (DHY)'!N40=\"\",\"\",'Beskrivelser (DHY)'!N40)","v":"5050500: Kerneydelse - Materialer"},{"$f":"IF('Beskrivelser (DHY)'!K40=\"\",\"\",'Beskrivelser (DHY)'!K40)","v":"Denne dimension vil blive anvendt til rigtig meget forskelligt, afhængigt af i hvilken del af Aabenraa Kommune der bogføres. Her skal man registrere de materialer der anskaffes, for at institutionen/afdelingen kan løse kerneopgaven. F.eks. Materialegårdens køb af grus og fortovsfliser. Bemærk at der er oprettet en særskilt dimension til børnehavernes køb af materialer som anvendes til børnene. Denne udgift konteres under område 5050504 beskæftigelsesmaterialer. "}]
[{"$f":"IFERROR(VLOOKUP(VALUE(LEFT(B41,2)),'Beskrivelser (DHY)'!A:B,2,FALSE),\"\")","v":"50: Materiale- og aktivitetsudgifter"},{"$f":"IF('Beskrivelser (DHY)'!N41=\"\",\"\",'Beskrivelser (DHY)'!N41)","v":"5050502: Kerneydelse - Undervisningsmidler"},{"$f":"IF('Beskrivelser (DHY)'!K41=\"\",\"\",'Beskrivelser (DHY)'!K41)","v":"Denne dimension er kun til skoler. Her bogføres undervisningsmidler, hvor undervisning er en del af kerneopgaven (dvs. IKKE til udgifter til udarbejdelse af undervisningsmateriale til kompetenceudvikling af medarbejdere). Kerneydelsen defineres i forhold til den valgte hovedkonto."}]
[{"$f":"IFERROR(VLOOKUP(VALUE(LEFT(B42,2)),'Beskrivelser (DHY)'!A:B,2,FALSE),\"\")","v":"50: Materiale- og aktivitetsudgifter"},{"$f":"IF('Beskrivelser (DHY)'!N42=\"\",\"\",'Beskrivelser (DHY)'!N42)","v":"5050504: Kerneydelse - Beskæftigelsesmaterialer"},{"$f":"IF('Beskrivelser (DHY)'!K42=\"\",\"\",'Beskrivelser (DHY)'!K42)","v":"Her konteres køb af materialer som anvendes til aktiviteter målrettet borgerne. Anvendes primært af børnehaverne og ældre- / handicapinstitutioner. Kerneydelsen defineres i forhold til den valgte hovedkonto."}]
[{"$f":"IFERROR(VLOOKUP(VALUE(LEFT(B43,2)),'Beskrivelser (DHY)'!A:B,2,FALSE),\"\")","v":"50: Materiale- og aktivitetsudgifter"},{"$f":"IF('Beskrivelser (DHY)'!N43=\"\",\"\",'Beskrivelser (DHY)'!N43)","v":"5050506: Kerneydelse - Sygeplejeartikler"},{"$f":"IF('Beskrivelser (DHY)'!K43=\"\",\"\",'Beskrivelser (DHY)'!K43)","v":"Sygeplejeartikler er oprettet målrettet til Social- og Sundhedsforvaltningens område. Andre forvaltningers udgifter til f.eks. Plaster / førstehjælpsudstyr skal konteres på dimension 5050538."}]
[{"$f":"IFERROR(VLOOKUP(VALUE(LEFT(B44,2)),'Beskrivelser (DHY)'!A:B,2,FALSE),\"\")","v":"50: Materiale- og aktivitetsudgifter"},{"$f":"IF('Beskrivelser (DHY)'!N44=\"\",\"\",'Beskrivelser (DHY)'!N44)","v":"5050520: Kerneydelse - Aktiviteter"},{"$f":"IF('Beskrivelser (DHY)'!K44=\"\",\"\",'Beskrivelser (DHY)'!K44)","v":"Sammen med dimension 5050500 Materialer er dette en dimension, som anvendes meget forskelligt i Aabenraa Kommune. Her konteres udgifter til aktiviteter i relation til kerneopgaven. Kerneydelsen defineres i forhold til den valgte hovedkonto. Det kan f.eks. være en børneteaterforestilling, som nogle daginstitutioner køber til deres børn eller en udflugt som en ældre- eller handicapinstitution tager på. Transporten til en sådan udflugt konteres under 5050532 Transport."}]
[{"$f":"IFERROR(VLOOKUP(VALUE(LEFT(B45,2)),'Beskrivelser (DHY)'!A:B,2,FALSE),\"\")","v":"50: Materiale- og aktivitetsudgifter"},{"$f":"IF('Beskrivelser (DHY)'!N45=\"\",\"\",'Beskrivelser (DHY)'!N45)","v":"5050522: Kerneydelse - Elevaktiviteter"},{"$f":"IF('Beskrivelser (DHY)'!K45=\"\",\"\",'Beskrivelser (DHY)'!K45)","v":"Denne dimension er primært tiltænkt skolerne, hvor den bruges i stedet for dimension 5050520."},null,"50: Materiale- og aktivitetsudgifter"]
[{"$f":"IFERROR(VLOOKUP(VALUE(LEFT(B46,2)),'Beskrivelser (DHY)'!A:B,2,FALSE),\"\")","v":"50: Materiale- og aktivitetsudgifter"},{"$f":"IF('Beskrivelser (DHY)'!N46=\"\",\"\",'Beskrivelser (DHY)'!N46)","v":"5050530: Kerneydelse - Sundhedsmæssig foranstaltning"},{"$f":"IF('Beskrivelser (DHY)'!K46=\"\",\"\",'Beskrivelser (DHY)'!K46)","v":"Her konteres udgifter, der relaterer sig til de borgere som er institutionens/afdelingens målgruppe. Eventuelle sundhedsmæssige foranstaltninger, der afholdes i forhold til institutionens/afdelingens personale konteres under dimension 4446472 Øvrige personalerelaterede udgifter. "}]
[{"$f":"IFERROR(VLOOKUP(VALUE(LEFT(B47,2)),'Beskrivelser (DHY)'!A:B,2,FALSE),\"\")","v":"50: Materiale- og aktivitetsudgifter"},{"$f":"IF('Beskrivelser (DHY)'!N47=\"\",\"\",'Beskrivelser (DHY)'!N47)","v":"5050531: Kerneydelse - Værnemidler indkøbt uden om KVIK"},{"$f":"IF('Beskrivelser (DHY)'!K47=\"\",\"\",'Beskrivelser (DHY)'!K47)","v":"Indkøb af værnemidler skal som udgangspunkt ske via den fælleskommunale indkøbsordning KVIK – en ordning, hvor værnemidlerne rekvireres via Social- og Sundhedsforvaltningen. Hvis I undtagelsesvist har behov for at indkøbe værnemidler uden om KVIK, gælder det fra regnskabsåret 2021, at lokalt indkøbte værnemidler skal registreres på den tværgående dimension 5050531 Kerneydelse - Værnemidler indkøbt uden om KVIK. Værnemidler er defineret som: Værnemidler omfatter udstyr, der bæres af personale, og som har til formål at beskytte personalet mod smitte med mikroorganismer, og forhindre personalet i at videregive smitte. Dette kan fx være: handsker, visir, briller, masker, desinfektionsmidler, herunder sæbe, kitler, forklæder, vådservietter m.v. Værnemidler er fx ikke indkøb af dispensere, gulvstandere, tæpperens, paptallerkner m.v. (se vejledningen vedr. brugen af den tværgående dimension). \n"}]
[{"$f":"IFERROR(VLOOKUP(VALUE(LEFT(B48,2)),'Beskrivelser (DHY)'!A:B,2,FALSE),\"\")","v":"50: Materiale- og aktivitetsudgifter"},{"$f":"IF('Beskrivelser (DHY)'!N48=\"\",\"\",'Beskrivelser (DHY)'!N48)","v":"5050532: Kerneydelse - Transport"},{"$f":"IF('Beskrivelser (DHY)'!K48=\"\",\"\",'Beskrivelser (DHY)'!K48)","v":"Her konteres udgifter, der er en del af kerneydelsen. Kerneydelsen defineres i forhold til den valgte hovedkonto. Eksempelvis transport af brugere (børn, ældre, handicappede m.v.) til udflugter, skolekørsel osv. Transport af personalet registreres under område 4. "}]
[{"$f":"IFERROR(VLOOKUP(VALUE(LEFT(B49,2)),'Beskrivelser (DHY)'!A:B,2,FALSE),\"\")","v":"50: Materiale- og aktivitetsudgifter"},{"$f":"IF('Beskrivelser (DHY)'!N49=\"\",\"\",'Beskrivelser (DHY)'!N49)","v":"5050538: Kerneydelse - Øvrige udgifter"},{"$f":"IF('Beskrivelser (DHY)'!K49=\"\",\"\",'Beskrivelser (DHY)'!K49)","v":"En \"diversepost\" til alt det, der ikke passer indenfor nogen af de øvrige kategorier vedr. kerneydelser. Kerneydelsen defineres i forhold til den valgte hovedkonto."}]
[{"$f":"IFERROR(VLOOKUP(VALUE(LEFT(B50,2)),'Beskrivelser (DHY)'!A:B,2,FALSE),\"\")","v":"50: Materiale- og aktivitetsudgifter"},{"$f":"IF('Beskrivelser (DHY)'!N49=\"\",\"\",'Beskrivelser (DHY)'!N49)","v":"5050538: Kerneydelse - Øvrige udgifter"},{"$f":"IF('Beskrivelser (DHY)'!K49=\"\",\"\",'Beskrivelser (DHY)'!K49)","v":"En \"diversepost\" til alt det, der ikke passer indenfor nogen af de øvrige kategorier vedr. kerneydelser. Kerneydelsen defineres i forhold til den valgte hovedkonto."}]
[{"$f":"IFERROR(VLOOKUP(VALUE(LEFT(B51,2)),'Beskrivelser (DHY)'!A:B,2,FALSE),\"\")","v":"50: Materiale- og aktivitetsudgifter"},{"$f":"IF('Beskrivelser (DHY)'!N50=\"\",\"\",'Beskrivelser (DHY)'!N50)","v":"5054540: Administration - Kontorhold"},{"$f":"IF('Beskrivelser (DHY)'!K50=\"\",\"\",'Beskrivelser (DHY)'!K50)","v":"Køb af kontorartikler til brug for administrationen konteres her. Printerpatroner registreres under drift af IT-hardware, som omfatter printere. Køb af kontorartikler (f.eks. Papir) som anvendes til børn i institutionerne konteres under 5050504 Beskæftigelsesmaterialer. "}]
[{"$f":"IFERROR(VLOOKUP(VALUE(LEFT(B52,2)),'Beskrivelser (DHY)'!A:B,2,FALSE),\"\")","v":"50: Materiale- og aktivitetsudgifter"},{"$f":"IF('Beskrivelser (DHY)'!N51=\"\",\"\",'Beskrivelser (DHY)'!N51)","v":"5054542: Administration - Kontingenter/abonnementer"},{"$f":"IF('Beskrivelser (DHY)'!K51=\"\",\"\",'Beskrivelser (DHY)'!K51)","v":"Kontingenter til organisationer, der relaterer sig til kerneopgaven samt abonnementer (f.eks. Kontingent til Økonomidirektørforeningen for økonomichefen eller abonnement på nyhedsmagasinet Danske Kommuner). "}]
[{"$f":"IFERROR(VLOOKUP(VALUE(LEFT(B53,2)),'Beskrivelser (DHY)'!A:B,2,FALSE),\"\")","v":"50: Materiale- og aktivitetsudgifter"},{"$f":"IF('Beskrivelser (DHY)'!N52=\"\",\"\",'Beskrivelser (DHY)'!N52)","v":"5054544: Administration - Telefon"},{"$f":"IF('Beskrivelser (DHY)'!K52=\"\",\"\",'Beskrivelser (DHY)'!K52)","v":"Her konteres udgifter til telefon uanset om det er fastnet, IP-telefoni eller mobil samt abonnementer til telefoner."}]
[{"$f":"IFERROR(VLOOKUP(VALUE(LEFT(B54,2)),'Beskrivelser (DHY)'!A:B,2,FALSE),\"\")","v":"50: Materiale- og aktivitetsudgifter"},{"$f":"IF('Beskrivelser (DHY)'!N53=\"\",\"\",'Beskrivelser (DHY)'!N53)","v":"5054548: Administration - Porto"},{"$f":"IF('Beskrivelser (DHY)'!K53=\"\",\"\",'Beskrivelser (DHY)'!K53)","v":"Udgifter til forsendelse af breve og pakker konteres her. "}]
[{"$f":"IFERROR(VLOOKUP(VALUE(LEFT(B55,2)),'Beskrivelser (DHY)'!A:B,2,FALSE),\"\")","v":"50: Materiale- og aktivitetsudgifter"},{"$f":"IF('Beskrivelser (DHY)'!N54=\"\",\"\",'Beskrivelser (DHY)'!N54)","v":"5054550: Administration - Forplejning - Møder"},{"$f":"IF('Beskrivelser (DHY)'!K54=\"\",\"\",'Beskrivelser (DHY)'!K54)","v":"Her konteres udgifter til mødeforplejning. Gælder både interne og eksterne møder"}]
[{"$f":"IFERROR(VLOOKUP(VALUE(LEFT(B56,2)),'Beskrivelser (DHY)'!A:B,2,FALSE),\"\")","v":"50: Materiale- og aktivitetsudgifter"},{"$f":"IF('Beskrivelser (DHY)'!N55=\"\",\"\",'Beskrivelser (DHY)'!N55)","v":"5054552: Administration - Annoncer og informationsmateriale"},{"$f":"IF('Beskrivelser (DHY)'!K55=\"\",\"\",'Beskrivelser (DHY)'!K55)","v":"Her konteres udgifter til annoncer og informationsmateriale f.eks. Foldere der reklamerer for aktiviteter på ældrecentrene eller biblioteket. "}]
[{"$f":"IFERROR(VLOOKUP(VALUE(LEFT(B57,2)),'Beskrivelser (DHY)'!A:B,2,FALSE),\"\")","v":"50: Materiale- og aktivitetsudgifter"},{"$f":"IF('Beskrivelser (DHY)'!N56=\"\",\"\",'Beskrivelser (DHY)'!N56)","v":"5054554: Administration - Gebyrer"},{"$f":"IF('Beskrivelser (DHY)'!K56=\"\",\"\",'Beskrivelser (DHY)'!K56)","v":"Her konteres gebyrer som kommunen er forpligtet til at betale. Eksempelvis gebyrer for bankudskrifter. Formentlig vil det være begrænset hvor mange gebyrer der bogføres på institutionerne. "}]
[{"$f":"IFERROR(VLOOKUP(VALUE(LEFT(B58,2)),'Beskrivelser (DHY)'!A:B,2,FALSE),\"\")","v":"50: Materiale- og aktivitetsudgifter"},{"$f":"IF('Beskrivelser (DHY)'!N57=\"\",\"\",'Beskrivelser (DHY)'!N57)","v":"5054556: Administration - Administrationsvederlag (udgift)"},{"$f":"IF('Beskrivelser (DHY)'!K57=\"\",\"\",'Beskrivelser (DHY)'!K57)","v":"Her konteres udgifter til administrationsvederlag, f.eks. Hvis der til et projekt med ekstern finansiering skal opgøres og registreres en administrationsudgift, som er leveret fra Aabenraa Kommune. Modposten registreres på dimension 9090902"}]
[{"$f":"IFERROR(VLOOKUP(VALUE(LEFT(B59,2)),'Beskrivelser (DHY)'!A:B,2,FALSE),\"\")","v":"50: Materiale- og aktivitetsudgifter"},{"$f":"IF('Beskrivelser (DHY)'!N58=\"\",\"\",'Beskrivelser (DHY)'!N58)","v":"5058580: Ekstern bistand - Revision"},{"$f":"IF('Beskrivelser (DHY)'!K58=\"\",\"\",'Beskrivelser (DHY)'!K58)","v":"Her konteres udgifter til ekstern revision. Anvendes typisk kun centralt eller ifm. revision af projektregnskaber"}]
[{"$f":"IFERROR(VLOOKUP(VALUE(LEFT(B60,2)),'Beskrivelser (DHY)'!A:B,2,FALSE),\"\")","v":"50: Materiale- og aktivitetsudgifter"},{"$f":"IF('Beskrivelser (DHY)'!N59=\"\",\"\",'Beskrivelser (DHY)'!N59)","v":"5058582: Ekstern bistand - Advokat"},{"$f":"IF('Beskrivelser (DHY)'!K59=\"\",\"\",'Beskrivelser (DHY)'!K59)","v":"Her konteres udgifter til advokatbistand, uanset hvad bistanden anvendes til."}]
[{"$f":"IFERROR(VLOOKUP(VALUE(LEFT(B61,2)),'Beskrivelser (DHY)'!A:B,2,FALSE),\"\")","v":"50: Materiale- og aktivitetsudgifter"},{"$f":"IF('Beskrivelser (DHY)'!N60=\"\",\"\",'Beskrivelser (DHY)'!N60)","v":"5058584: Ekstern bistand - Tolk"},{"$f":"IF('Beskrivelser (DHY)'!K60=\"\",\"\",'Beskrivelser (DHY)'!K60)","v":"Her konteres udgifter til tolkning, uanset indenfor hvilket område der tolkes."}]
[{"$f":"IFERROR(VLOOKUP(VALUE(LEFT(B62,2)),'Beskrivelser (DHY)'!A:B,2,FALSE),\"\")","v":"50: Materiale- og aktivitetsudgifter"},{"$f":"IF('Beskrivelser (DHY)'!N61=\"\",\"\",'Beskrivelser (DHY)'!N61)","v":"5058586: Ekstern bistand - Lægeerklæringer (for borgere)"},{"$f":"IF('Beskrivelser (DHY)'!K61=\"\",\"\",'Beskrivelser (DHY)'!K61)","v":"Her konteres kommunens udgift til lægehonorar for udarbejdelse af lægeerklæringer for borgere. Lægeerklæringer for medarbejdere koneres på dimension 4446472 Øvrige personalerelaterede udgifter. "}]
[{"$f":"IFERROR(VLOOKUP(VALUE(LEFT(B63,2)),'Beskrivelser (DHY)'!A:B,2,FALSE),\"\")","v":"50: Materiale- og aktivitetsudgifter"},{"$f":"IF('Beskrivelser (DHY)'!N62=\"\",\"\",'Beskrivelser (DHY)'!N62)","v":"5058588: Ekstern bistand - Øvrig konsulentbistand"},{"$f":"IF('Beskrivelser (DHY)'!K62=\"\",\"\",'Beskrivelser (DHY)'!K62)","v":"Her konteres al anden ekstern konsulent-bistand, f.eks. eksterne IT-specialister, konsulenter vedr. udvikling af projektmodellen osv., der løser specifikke opgaver for Aabenraa Kommune(s institutioner)."}]
[{"$f":"IFERROR(VLOOKUP(VALUE(LEFT(B64,2)),'Beskrivelser (DHY)'!A:B,2,FALSE),\"\")","v":"50: Materiale- og aktivitetsudgifter"},{"$f":"IF('Beskrivelser (DHY)'!N63=\"\",\"\",'Beskrivelser (DHY)'!N63)","v":"5058589: Ekstern bistand-Honorar"},{"$f":"IF('Beskrivelser (DHY)'!K63=\"\",\"\",'Beskrivelser (DHY)'!K63)","v":"Her konteres honorarer som ikke er konsulentbistand, såfremt sådanne forekommer. "}]
[{"$f":"IFERROR(VLOOKUP(VALUE(LEFT(B65,2)),'Beskrivelser (DHY)'!A:B,2,FALSE),\"\")","v":"60: Kapacitetsudgifter"},{"$f":"IF('Beskrivelser (DHY)'!N64=\"\",\"\",'Beskrivelser (DHY)'!N64)","v":"6060600: Inventar - Drift og vedligeholdelse"},{"$f":"IF('Beskrivelser (DHY)'!K64=\"\",\"\",'Beskrivelser (DHY)'!K64)","v":"Her konteres alle udgifter, der relaterer sig til drift og vedligeholdelse af inventar."}]
[{"$f":"IFERROR(VLOOKUP(VALUE(LEFT(B66,2)),'Beskrivelser (DHY)'!A:B,2,FALSE),\"\")","v":"60: Kapacitetsudgifter"},{"$f":"IF('Beskrivelser (DHY)'!N65=\"\",\"\",'Beskrivelser (DHY)'!N65)","v":"6060980: Inventar-Forsikringspræmier"},{"$f":"IF('Beskrivelser (DHY)'!K65=\"\",\"\",'Beskrivelser (DHY)'!K65)","v":"Præmier til forsikringer vedr. inventar registreres her. "}]
[{"$f":"IFERROR(VLOOKUP(VALUE(LEFT(B67,2)),'Beskrivelser (DHY)'!A:B,2,FALSE),\"\")","v":"60: Kapacitetsudgifter"},{"$f":"IF('Beskrivelser (DHY)'!N66=\"\",\"\",'Beskrivelser (DHY)'!N66)","v":"6060982: Inventra-Forsikringsskader"},{"$f":"IF('Beskrivelser (DHY)'!K66=\"\",\"\",'Beskrivelser (DHY)'!K66)","v":"Kommunens/institutionens udgifter i forbindelse med forsikringssager på inventar (f.eks. selvrisiko) konteres her."}]
[{"$f":"IFERROR(VLOOKUP(VALUE(LEFT(B68,2)),'Beskrivelser (DHY)'!A:B,2,FALSE),\"\")","v":"60: Kapacitetsudgifter"},{"$f":"IF('Beskrivelser (DHY)'!N67=\"\",\"\",'Beskrivelser (DHY)'!N67)","v":"6060990: Inventar - Leasing"},{"$f":"IF('Beskrivelser (DHY)'!K67=\"\",\"\",'Beskrivelser (DHY)'!K67)","v":"Her konteres alle udgifter, der relaterer sig til leasingydelser på inventar."}]
[{"$f":"IFERROR(VLOOKUP(VALUE(LEFT(B69,2)),'Beskrivelser (DHY)'!A:B,2,FALSE),\"\")","v":"60: Kapacitetsudgifter"},{"$f":"IF('Beskrivelser (DHY)'!N68=\"\",\"\",'Beskrivelser (DHY)'!N68)","v":"6060992: Inventar - Køb over 100.000 kr."},{"$f":"IF('Beskrivelser (DHY)'!K68=\"\",\"\",'Beskrivelser (DHY)'!K68)","v":"Her konteres alle udgifter, der relaterer sig til anskaffelser af inventar til en værdi over 100.000 kr. "}]
[{"$f":"IFERROR(VLOOKUP(VALUE(LEFT(B70,2)),'Beskrivelser (DHY)'!A:B,2,FALSE),\"\")","v":"60: Kapacitetsudgifter"},{"$f":"IF('Beskrivelser (DHY)'!N69=\"\",\"\",'Beskrivelser (DHY)'!N69)","v":"6060994: Inventar - Køb under 100.000 kr."},{"$f":"IF('Beskrivelser (DHY)'!K69=\"\",\"\",'Beskrivelser (DHY)'!K69)","v":"Her konteres alle udgifter, der relaterer sig til anskaffelser af inventar til en værdi under 100.000 kr. "}]
[{"$f":"IFERROR(VLOOKUP(VALUE(LEFT(B71,2)),'Beskrivelser (DHY)'!A:B,2,FALSE),\"\")","v":"60: Kapacitetsudgifter"},{"$f":"IF('Beskrivelser (DHY)'!N70=\"\",\"\",'Beskrivelser (DHY)'!N70)","v":"6060996: Inventar - Forrentning"},{"$f":"IF('Beskrivelser (DHY)'!K70=\"\",\"\",'Beskrivelser (DHY)'!K70)","v":"Her konteres forrentning af de aktiver som gruppen omfatter. Dimensionen anvendes kun ifm. omkostningsregnskabet og anvendes p.t. ikke"}]
[{"$f":"IFERROR(VLOOKUP(VALUE(LEFT(B72,2)),'Beskrivelser (DHY)'!A:B,2,FALSE),\"\")","v":"60: Kapacitetsudgifter"},{"$f":"IF('Beskrivelser (DHY)'!N71=\"\",\"\",'Beskrivelser (DHY)'!N71)","v":"6060998: Inventar - Afskrivning"},{"$f":"IF('Beskrivelser (DHY)'!K71=\"\",\"\",'Beskrivelser (DHY)'!K71)","v":"Her konteres alle udgifter vedr. afskrivning på de aktiver som gruppen omfatter. Dimensionen anvendes kun centralt."}]
[{"$f":"IFERROR(VLOOKUP(VALUE(LEFT(B73,2)),'Beskrivelser (DHY)'!A:B,2,FALSE),\"\")","v":"60: Kapacitetsudgifter"},{"$f":"IF('Beskrivelser (DHY)'!N72=\"\",\"\",'Beskrivelser (DHY)'!N72)","v":"6061600: Transportmidler (biler mv) - Drift og vedligeholdelse"},{"$f":"IF('Beskrivelser (DHY)'!K72=\"\",\"\",'Beskrivelser (DHY)'!K72)","v":"Her konteres alle udgifter, der relaterer sig til drift og vedligeholdelse af transportmidler."}]
[{"$f":"IFERROR(VLOOKUP(VALUE(LEFT(B74,2)),'Beskrivelser (DHY)'!A:B,2,FALSE),\"\")","v":"60: Kapacitetsudgifter"},{"$f":"IF('Beskrivelser (DHY)'!N73=\"\",\"\",'Beskrivelser (DHY)'!N73)","v":"6061980: Transportmidler (biler mv) - Forsikringspræmier"},{"$f":"IF('Beskrivelser (DHY)'!K73=\"\",\"\",'Beskrivelser (DHY)'!K73)","v":"Præmier til forsikringer vedr. transportmidler registreres her. "}]
[{"$f":"IFERROR(VLOOKUP(VALUE(LEFT(B75,2)),'Beskrivelser (DHY)'!A:B,2,FALSE),\"\")","v":"60: Kapacitetsudgifter"},{"$f":"IF('Beskrivelser (DHY)'!N74=\"\",\"\",'Beskrivelser (DHY)'!N74)","v":"6061982: Transportmidler (biler mv) - Forsikringsskader"},{"$f":"IF('Beskrivelser (DHY)'!K74=\"\",\"\",'Beskrivelser (DHY)'!K74)","v":"Kommunens/institutionens udgifter i forbindelse med forsikringssager på transportmidler (f.eks. Selvrisiko) konteres her."}]
[{"$f":"IFERROR(VLOOKUP(VALUE(LEFT(B76,2)),'Beskrivelser (DHY)'!A:B,2,FALSE),\"\")","v":"60: Kapacitetsudgifter"},{"$f":"IF('Beskrivelser (DHY)'!N75=\"\",\"\",'Beskrivelser (DHY)'!N75)","v":"6061990: Transportmidler (biler mv) - Leasing"},{"$f":"IF('Beskrivelser (DHY)'!K75=\"\",\"\",'Beskrivelser (DHY)'!K75)","v":"Her konteres alle udgifter, der relaterer sig til leasingydelser på transportmidler."}]
[{"$f":"IFERROR(VLOOKUP(VALUE(LEFT(B77,2)),'Beskrivelser (DHY)'!A:B,2,FALSE),\"\")","v":"60: Kapacitetsudgifter"},{"$f":"IF('Beskrivelser (DHY)'!N76=\"\",\"\",'Beskrivelser (DHY)'!N76)","v":"6061992: Transportmidler (biler mv) - Køb over 100.000 kr."},{"$f":"IF('Beskrivelser (DHY)'!K76=\"\",\"\",'Beskrivelser (DHY)'!K76)","v":"Her konteres alle udgifter, der relaterer sig til anskaffelser af transportmidler til en værdi over 100.000 kr. "}]
[{"$f":"IFERROR(VLOOKUP(VALUE(LEFT(B78,2)),'Beskrivelser (DHY)'!A:B,2,FALSE),\"\")","v":"60: Kapacitetsudgifter"},{"$f":"IF('Beskrivelser (DHY)'!N77=\"\",\"\",'Beskrivelser (DHY)'!N77)","v":"6061994: Transportmidler (biler mv) - Køb under 100.000 kr."},{"$f":"IF('Beskrivelser (DHY)'!K77=\"\",\"\",'Beskrivelser (DHY)'!K77)","v":"Her konteres alle udgifter, der relaterer sig til anskaffelser af transportmidler til en værdi under 100.000 kr. "}]
[{"$f":"IFERROR(VLOOKUP(VALUE(LEFT(B79,2)),'Beskrivelser (DHY)'!A:B,2,FALSE),\"\")","v":"60: Kapacitetsudgifter"},{"$f":"IF('Beskrivelser (DHY)'!N78=\"\",\"\",'Beskrivelser (DHY)'!N78)","v":"6061996: Transportmidler (biler mv) - Forrentning"},{"$f":"IF('Beskrivelser (DHY)'!K78=\"\",\"\",'Beskrivelser (DHY)'!K78)","v":"Her konteres forrentning af de aktiver som gruppen omfatter. Dimensionen anvendes kun ifm. omkostningsregnskabet og anvendes p.t. ikke"}]
[{"$f":"IFERROR(VLOOKUP(VALUE(LEFT(B80,2)),'Beskrivelser (DHY)'!A:B,2,FALSE),\"\")","v":"60: Kapacitetsudgifter"},{"$f":"IF('Beskrivelser (DHY)'!N79=\"\",\"\",'Beskrivelser (DHY)'!N79)","v":"6061998: Transportmidler (biler mv) - Afskrivning"},{"$f":"IF('Beskrivelser (DHY)'!K79=\"\",\"\",'Beskrivelser (DHY)'!K79)","v":"Her konteres alle udgifter vedr. afskrivning på de aktiver som gruppen omfatter. Dimensionen anvendes kun centralt."}]
[{"$f":"IFERROR(VLOOKUP(VALUE(LEFT(B81,2)),'Beskrivelser (DHY)'!A:B,2,FALSE),\"\")","v":"60: Kapacitetsudgifter"},{"$f":"IF('Beskrivelser (DHY)'!N80=\"\",\"\",'Beskrivelser (DHY)'!N80)","v":"6062600: Maskin/materiel - Drift og vedligeholdelse"},{"$f":"IF('Beskrivelser (DHY)'!K80=\"\",\"\",'Beskrivelser (DHY)'!K80)","v":"Her konteres alle udgifter, der relaterer sig til drift og vedligeholdelse af maskiner og materiel."}]
[{"$f":"IFERROR(VLOOKUP(VALUE(LEFT(B82,2)),'Beskrivelser (DHY)'!A:B,2,FALSE),\"\")","v":"60: Kapacitetsudgifter"},{"$f":"IF('Beskrivelser (DHY)'!N81=\"\",\"\",'Beskrivelser (DHY)'!N81)","v":"6062980: Maskin/materiel - Forsikringspræmier"},{"$f":"IF('Beskrivelser (DHY)'!K81=\"\",\"\",'Beskrivelser (DHY)'!K81)","v":"Præmier til forsikringer vedr. maskiner og materiel registreres her. "}]
[{"$f":"IFERROR(VLOOKUP(VALUE(LEFT(B83,2)),'Beskrivelser (DHY)'!A:B,2,FALSE),\"\")","v":"60: Kapacitetsudgifter"},{"$f":"IF('Beskrivelser (DHY)'!N82=\"\",\"\",'Beskrivelser (DHY)'!N82)","v":"6062982: Maskin/materiel - Forsikringsskader"},{"$f":"IF('Beskrivelser (DHY)'!K82=\"\",\"\",'Beskrivelser (DHY)'!K82)","v":"Kommunens/institutionens udgifter i forbindelse med forsikringssager på maskiner og materiel (f.eks. Selvrisiko) konteres her."}]
[{"$f":"IFERROR(VLOOKUP(VALUE(LEFT(B84,2)),'Beskrivelser (DHY)'!A:B,2,FALSE),\"\")","v":"60: Kapacitetsudgifter"},{"$f":"IF('Beskrivelser (DHY)'!N83=\"\",\"\",'Beskrivelser (DHY)'!N83)","v":"6062990: Maskin/materiel - Leasing"},{"$f":"IF('Beskrivelser (DHY)'!K83=\"\",\"\",'Beskrivelser (DHY)'!K83)","v":"Her konteres alle udgifter, der relaterer sig til leasingydelser på maskiner og materiel."}]
[{"$f":"IFERROR(VLOOKUP(VALUE(LEFT(B85,2)),'Beskrivelser (DHY)'!A:B,2,FALSE),\"\")","v":"60: Kapacitetsudgifter"},{"$f":"IF('Beskrivelser (DHY)'!N84=\"\",\"\",'Beskrivelser (DHY)'!N84)","v":"6062992: Maskin/materiel - Køb over 100.000 kr."},{"$f":"IF('Beskrivelser (DHY)'!K84=\"\",\"\",'Beskrivelser (DHY)'!K84)","v":"Her konteres alle udgifter, der relaterer sig til anskaffelser af maskiner og materiel til en værdi over 100.000 kr. "}]
[{"$f":"IFERROR(VLOOKUP(VALUE(LEFT(B86,2)),'Beskrivelser (DHY)'!A:B,2,FALSE),\"\")","v":"60: Kapacitetsudgifter"},{"$f":"IF('Beskrivelser (DHY)'!N85=\"\",\"\",'Beskrivelser (DHY)'!N85)","v":"6062994: Maskin/materiel - Køb under 100.000 kr."},{"$f":"IF('Beskrivelser (DHY)'!K85=\"\",\"\",'Beskrivelser (DHY)'!K85)","v":"Her konteres alle udgifter, der relaterer sig til anskaffelser af maskiner og materiel til en værdi under 100.000 kr. "}]
[{"$f":"IFERROR(VLOOKUP(VALUE(LEFT(B87,2)),'Beskrivelser (DHY)'!A:B,2,FALSE),\"\")","v":"60: Kapacitetsudgifter"},{"$f":"IF('Beskrivelser (DHY)'!N86=\"\",\"\",'Beskrivelser (DHY)'!N86)","v":"6062996: Maskin/materiel - Forrentning"},{"$f":"IF('Beskrivelser (DHY)'!K86=\"\",\"\",'Beskrivelser (DHY)'!K86)","v":"Her konteres forrentning af de aktiver som gruppen omfatter. Dimensionen anvendes kun ifm. omkostningsregnskabet og anvendes p.t. ikke"}]
[{"$f":"IFERROR(VLOOKUP(VALUE(LEFT(B88,2)),'Beskrivelser (DHY)'!A:B,2,FALSE),\"\")","v":"60: Kapacitetsudgifter"},{"$f":"IF('Beskrivelser (DHY)'!N87=\"\",\"\",'Beskrivelser (DHY)'!N87)","v":"6062998: Maskin/materiel - Afskrivning"},{"$f":"IF('Beskrivelser (DHY)'!K87=\"\",\"\",'Beskrivelser (DHY)'!K87)","v":"Her konteres alle udgifter vedr. afskrivning på de aktiver som gruppen omfatter. Dimensionen anvendes kun centralt."}]
[{"$f":"IFERROR(VLOOKUP(VALUE(LEFT(B89,2)),'Beskrivelser (DHY)'!A:B,2,FALSE),\"\")","v":"60: Kapacitetsudgifter"},{"$f":"IF('Beskrivelser (DHY)'!N88=\"\",\"\",'Beskrivelser (DHY)'!N88)","v":"6063600: Tekniske anlæg - Drift og vedligeholdelse"},{"$f":"IF('Beskrivelser (DHY)'!K88=\"\",\"\",'Beskrivelser (DHY)'!K88)","v":"Her konteres alle udgifter, der relaterer sig til drift og vedligeholdelse af tekniske anlæg. Et tekniske anlæg er typisk anlæg, der relaterer sig til grunde og bygninger. Eksempelvis ventilationsanlæg, ABA-anlæg (Automatiske brandalarmerings anlæg), elevatorer osv."}]
[{"$f":"IFERROR(VLOOKUP(VALUE(LEFT(B90,2)),'Beskrivelser (DHY)'!A:B,2,FALSE),\"\")","v":"60: Kapacitetsudgifter"},{"$f":"IF('Beskrivelser (DHY)'!N89=\"\",\"\",'Beskrivelser (DHY)'!N89)","v":"6063980: Tekniske anlæg - Forsikringspræmier"},{"$f":"IF('Beskrivelser (DHY)'!K89=\"\",\"\",'Beskrivelser (DHY)'!K89)","v":"Præmier til forsikringer vedr. tekniske anlæg registreres her. Et tekniske anlæg er typisk anlæg, der relaterer sig til grunde og bygninger. Eksempelvis ventilationsanlæg, ABA-anlæg (Automatiske brandalarmerings anlæg), elevatorer osv."}]
[{"$f":"IFERROR(VLOOKUP(VALUE(LEFT(B91,2)),'Beskrivelser (DHY)'!A:B,2,FALSE),\"\")","v":"60: Kapacitetsudgifter"},{"$f":"IF('Beskrivelser (DHY)'!N90=\"\",\"\",'Beskrivelser (DHY)'!N90)","v":"6063982: Tekniske anlæg - Forsikringsskader"},{"$f":"IF('Beskrivelser (DHY)'!K90=\"\",\"\",'Beskrivelser (DHY)'!K90)","v":"Kommunens/institutionens udgifter i forbindelse med forsikringssager på tekniske anlæg (f.eks. Selvrisiko) konteres her. Et tekniske anlæg er typisk anlæg, der relaterer sig til grunde og bygninger. Eksempelvis ventilationsanlæg, ABA-anlæg (Automatiske brandalarmerings anlæg), elevatorer osv."}]
[{"$f":"IFERROR(VLOOKUP(VALUE(LEFT(B92,2)),'Beskrivelser (DHY)'!A:B,2,FALSE),\"\")","v":"60: Kapacitetsudgifter"},{"$f":"IF('Beskrivelser (DHY)'!N91=\"\",\"\",'Beskrivelser (DHY)'!N91)","v":"6063990: Tekniske anlæg - Leasing"},{"$f":"IF('Beskrivelser (DHY)'!K91=\"\",\"\",'Beskrivelser (DHY)'!K91)","v":"Her konteres alle udgifter, der relaterer sig til leasingydelser på tekniske anlæg. Et tekniske anlæg er typisk anlæg, der relaterer sig til grunde og bygninger. Eksempelvis ventilationsanlæg, ABA-anlæg (Automatiske brandalarmerings anlæg), elevatorer osv."}]
[{"$f":"IFERROR(VLOOKUP(VALUE(LEFT(B93,2)),'Beskrivelser (DHY)'!A:B,2,FALSE),\"\")","v":"60: Kapacitetsudgifter"},{"$f":"IF('Beskrivelser (DHY)'!N92=\"\",\"\",'Beskrivelser (DHY)'!N92)","v":"6063992: Tekniske anlæg - Køb over 100.000 kr."},{"$f":"IF('Beskrivelser (DHY)'!K92=\"\",\"\",'Beskrivelser (DHY)'!K92)","v":"Her konteres alle udgifter, der relaterer sig til anskaffelser af tekniske anlæg til en værdi over 100.000 kr. Et tekniske anlæg er typisk anlæg, der relaterer sig til grunde og bygninger. Eksempelvis ventilationsanlæg, ABA-anlæg (Automatiske brandalarmerings anlæg), elevatorer osv."}]
[{"$f":"IFERROR(VLOOKUP(VALUE(LEFT(B94,2)),'Beskrivelser (DHY)'!A:B,2,FALSE),\"\")","v":"60: Kapacitetsudgifter"},{"$f":"IF('Beskrivelser (DHY)'!N93=\"\",\"\",'Beskrivelser (DHY)'!N93)","v":"6063994: Tekniske anlæg - Køb under 100.000 kr."},{"$f":"IF('Beskrivelser (DHY)'!K93=\"\",\"\",'Beskrivelser (DHY)'!K93)","v":"Her konteres alle udgifter, der relaterer sig til anskaffelser af tekniske anlæg til en værdi under 100.000 kr. Et tekniske anlæg er typisk anlæg, der relaterer sig til grunde og bygninger. Eksempelvis ventilationsanlæg, ABA-anlæg (Automatiske brandalarmerings anlæg), elevatorer osv."}]
[{"$f":"IFERROR(VLOOKUP(VALUE(LEFT(B95,2)),'Beskrivelser (DHY)'!A:B,2,FALSE),\"\")","v":"60: Kapacitetsudgifter"},{"$f":"IF('Beskrivelser (DHY)'!N94=\"\",\"\",'Beskrivelser (DHY)'!N94)","v":"6063996: Tekniske anlæg - Forrentning"},{"$f":"IF('Beskrivelser (DHY)'!K94=\"\",\"\",'Beskrivelser (DHY)'!K94)","v":"Her konteres forrentning af de aktiver som gruppen omfatter. Dimensionen anvendes kun ifm. omkostningsregnskabet og anvendes p.t. ikke"}]
[{"$f":"IFERROR(VLOOKUP(VALUE(LEFT(B96,2)),'Beskrivelser (DHY)'!A:B,2,FALSE),\"\")","v":"60: Kapacitetsudgifter"},{"$f":"IF('Beskrivelser (DHY)'!N95=\"\",\"\",'Beskrivelser (DHY)'!N95)","v":"6063998: Tekniske anlæg - Afskrivning"},{"$f":"IF('Beskrivelser (DHY)'!K95=\"\",\"\",'Beskrivelser (DHY)'!K95)","v":"Her konteres alle udgifter vedr. afskrivning på de aktiver som gruppen omfatter. Dimensionen anvendes kun centralt."}]
[{"$f":"IFERROR(VLOOKUP(VALUE(LEFT(B97,2)),'Beskrivelser (DHY)'!A:B,2,FALSE),\"\")","v":"60: Kapacitetsudgifter"},{"$f":"IF('Beskrivelser (DHY)'!N96=\"\",\"\",'Beskrivelser (DHY)'!N96)","v":"6065600: Hardware/IT-infrastruktur - Drift og vedligeholdelse"},{"$f":"IF('Beskrivelser (DHY)'!K96=\"\",\"\",'Beskrivelser (DHY)'!K96)","v":"Her konteres alle udgifter, der relaterer sig til drift og vedligeholdelse af hardware og IT-infrastruktur. Computernetværk (faste LAN-installationer) i bygninger betragtes f.eks. som IT-infrastruktur, hvorfor udgift til netværksudstyr som f.eks. routere og kabler m.v. registreres her."}]
[{"$f":"IFERROR(VLOOKUP(VALUE(LEFT(B98,2)),'Beskrivelser (DHY)'!A:B,2,FALSE),\"\")","v":"60: Kapacitetsudgifter"},{"$f":"IF('Beskrivelser (DHY)'!N97=\"\",\"\",'Beskrivelser (DHY)'!N97)","v":"6065980: Hardware/IT-infrastruktur - Forsikringspræmier"},{"$f":"IF('Beskrivelser (DHY)'!K97=\"\",\"\",'Beskrivelser (DHY)'!K97)","v":"Præmier til forsikringer vedr. hardware og IT-infrastruktur registreres her.  Computernetværk (faste LAN-installationer) i bygninger betragtes f.eks. som IT-infrastruktur, hvorfor udgift til netværksudstyr som f.eks. routere og kabler m.v. registreres her."}]
[{"$f":"IFERROR(VLOOKUP(VALUE(LEFT(B99,2)),'Beskrivelser (DHY)'!A:B,2,FALSE),\"\")","v":"60: Kapacitetsudgifter"},{"$f":"IF('Beskrivelser (DHY)'!N98=\"\",\"\",'Beskrivelser (DHY)'!N98)","v":"6065990: Hardware/IT-infrastruktur - Leasing"},{"$f":"IF('Beskrivelser (DHY)'!K98=\"\",\"\",'Beskrivelser (DHY)'!K98)","v":"Her konteres alle udgifter, der relaterer sig til leasingydelser på hardware og IT-infrastruktur.  Computernetværk (faste LAN-installationer) i bygninger betragtes f.eks. som IT-infrastruktur, hvorfor udgift til netværksudstyr som f.eks. routere og kabler m.v. registreres her."}]
[{"$f":"IFERROR(VLOOKUP(VALUE(LEFT(B100,2)),'Beskrivelser (DHY)'!A:B,2,FALSE),\"\")","v":"60: Kapacitetsudgifter"},{"$f":"IF('Beskrivelser (DHY)'!N99=\"\",\"\",'Beskrivelser (DHY)'!N99)","v":"6065992: Hardware/IT-infrastruktur - Køb over 100.000 kr."},{"$f":"IF('Beskrivelser (DHY)'!K99=\"\",\"\",'Beskrivelser (DHY)'!K99)","v":"Her konteres alle udgifter, der relaterer sig til anskaffelser af hardware og IT-infrastruktur til en værdi over 100.000 kr.  Computernetværk (faste LAN-installationer) i bygninger betragtes f.eks. som IT-infrastruktur, hvorfor udgift til netværksudstyr som f.eks. routere og kabler m.v. registreres her."}]
[{"$f":"IFERROR(VLOOKUP(VALUE(LEFT(B101,2)),'Beskrivelser (DHY)'!A:B,2,FALSE),\"\")","v":"60: Kapacitetsudgifter"},{"$f":"IF('Beskrivelser (DHY)'!N100=\"\",\"\",'Beskrivelser (DHY)'!N100)","v":"6065994: Hardware/IT-infrastruktur - Køb under 100.000 kr."},{"$f":"IF('Beskrivelser (DHY)'!K100=\"\",\"\",'Beskrivelser (DHY)'!K100)","v":"Her konteres alle udgifter, der relaterer sig til anskaffelser af hardware og IT-infrastruktur til en værdi under 100.000 kr.  Computernetværk (faste LAN-installationer) i bygninger betragtes f.eks. som IT-infrastruktur, hvorfor udgift til netværksudstyr som f.eks. routere og kabler m.v. registreres her."}]
[{"$f":"IFERROR(VLOOKUP(VALUE(LEFT(B102,2)),'Beskrivelser (DHY)'!A:B,2,FALSE),\"\")","v":"60: Kapacitetsudgifter"},{"$f":"IF('Beskrivelser (DHY)'!N101=\"\",\"\",'Beskrivelser (DHY)'!N101)","v":"6065996: Hardware/IT-infrastruktur - Forrentning"},{"$f":"IF('Beskrivelser (DHY)'!K101=\"\",\"\",'Beskrivelser (DHY)'!K101)","v":"Her konteres forrentning af de aktiver som gruppen omfatter. Dimensionen anvendes kun ifm. omkostningsregnskabet og anvendes p.t. ikke"}]
[{"$f":"IFERROR(VLOOKUP(VALUE(LEFT(B103,2)),'Beskrivelser (DHY)'!A:B,2,FALSE),\"\")","v":"60: Kapacitetsudgifter"},{"$f":"IF('Beskrivelser (DHY)'!N102=\"\",\"\",'Beskrivelser (DHY)'!N102)","v":"6065998: Hardware/IT-infrastruktur - Afskrivning"},{"$f":"IF('Beskrivelser (DHY)'!K102=\"\",\"\",'Beskrivelser (DHY)'!K102)","v":"Her konteres alle udgifter vedr. afskrivning på de aktiver som gruppen omfatter. Dimensionen anvendes kun centralt."}]
[{"$f":"IFERROR(VLOOKUP(VALUE(LEFT(B104,2)),'Beskrivelser (DHY)'!A:B,2,FALSE),\"\")","v":"60: Kapacitetsudgifter"},{"$f":"IF('Beskrivelser (DHY)'!N103=\"\",\"\",'Beskrivelser (DHY)'!N103)","v":"6066600: Software/Øvrig IT - Drift og vedligeholdelse (egne systemer)"},{"$f":"IF('Beskrivelser (DHY)'!K103=\"\",\"\",'Beskrivelser (DHY)'!K103)","v":"Her konteres alle udgifter, der relaterer sig til drift og vedligeholdelse af software og øvrige IT."}]
[{"$f":"IFERROR(VLOOKUP(VALUE(LEFT(B105,2)),'Beskrivelser (DHY)'!A:B,2,FALSE),\"\")","v":"60: Kapacitetsudgifter"},{"$f":"IF('Beskrivelser (DHY)'!N104=\"\",\"\",'Beskrivelser (DHY)'!N104)","v":"6066602: Software/Øvrig IT - Udgift vedr. hostede IT-systemer"},{"$f":"IF('Beskrivelser (DHY)'!K104=\"\",\"\",'Beskrivelser (DHY)'!K104)","v":"Her konteres udgifter til IT-systemer, som driftes hos en ekstern leverandør, f.eks. Alle KMD-systemerne, løn-/vagtplan, økonomisystem, indkøbssystem mv. "}]
[{"$f":"IFERROR(VLOOKUP(VALUE(LEFT(B106,2)),'Beskrivelser (DHY)'!A:B,2,FALSE),\"\")","v":"60: Kapacitetsudgifter"},{"$f":"IF('Beskrivelser (DHY)'!N105=\"\",\"\",'Beskrivelser (DHY)'!N105)","v":"6066630: Software/Øvrig IT - Kommunikation (linjer mv)"},{"$f":"IF('Beskrivelser (DHY)'!K105=\"\",\"\",'Beskrivelser (DHY)'!K105)","v":"Her konteres udgifter til drift af kommunikationslinjer (faste forbindelser, ADSL-linjer m.v.) som er en del af kommunens IT-infrastruktur."}]
[{"$f":"IFERROR(VLOOKUP(VALUE(LEFT(B107,2)),'Beskrivelser (DHY)'!A:B,2,FALSE),\"\")","v":"60: Kapacitetsudgifter"},{"$f":"IF('Beskrivelser (DHY)'!N106=\"\",\"\",'Beskrivelser (DHY)'!N106)","v":"6066992: Software/Øvrig IT - Køb over 100.000 kr."},{"$f":"IF('Beskrivelser (DHY)'!K106=\"\",\"\",'Beskrivelser (DHY)'!K106)","v":"Her konteres alle udgifter, der relaterer sig til anskaffelser af software og øvrig IT til en værdi over 100.000 kr. "}]
[{"$f":"IFERROR(VLOOKUP(VALUE(LEFT(B108,2)),'Beskrivelser (DHY)'!A:B,2,FALSE),\"\")","v":"60: Kapacitetsudgifter"},{"$f":"IF('Beskrivelser (DHY)'!N107=\"\",\"\",'Beskrivelser (DHY)'!N107)","v":"6066994: Software/Øvrig IT - Køb under 100.000 kr."},{"$f":"IF('Beskrivelser (DHY)'!K107=\"\",\"\",'Beskrivelser (DHY)'!K107)","v":"Her konteres alle udgifter, der relaterer sig til anskaffelser af software og øvrig IT til en værdi under 100.000 kr. "}]
[{"$f":"IFERROR(VLOOKUP(VALUE(LEFT(B109,2)),'Beskrivelser (DHY)'!A:B,2,FALSE),\"\")","v":"70: Grunde og bygninger"},{"$f":"IF('Beskrivelser (DHY)'!N108=\"\",\"\",'Beskrivelser (DHY)'!N108)","v":"7070700: Grund/Bygning-Vedligehold-Udenomsarealer"},{"$f":"IF('Beskrivelser (DHY)'!K108=\"\",\"\",'Beskrivelser (DHY)'!K108)","v":"Her konteres udgifter til vedligeholdelse af udenomsarealer, f.eks. pleje af grønne områder, vintervedligeholdelse osv."}]
[{"$f":"IFERROR(VLOOKUP(VALUE(LEFT(B110,2)),'Beskrivelser (DHY)'!A:B,2,FALSE),\"\")","v":"70: Grunde og bygninger"},{"$f":"IF('Beskrivelser (DHY)'!N109=\"\",\"\",'Beskrivelser (DHY)'!N109)","v":"7070702: Grund/Bygning-Vedligehold -Serviceabonnementer"},{"$f":"IF('Beskrivelser (DHY)'!K109=\"\",\"\",'Beskrivelser (DHY)'!K109)","v":"Her konteres abonnementer til service på f.eks. elevatorer, hvilket kan betragtes som en vedligeholdelse. "}]
[{"$f":"IFERROR(VLOOKUP(VALUE(LEFT(B111,2)),'Beskrivelser (DHY)'!A:B,2,FALSE),\"\")","v":"70: Grunde og bygninger"},{"$f":"IF('Beskrivelser (DHY)'!N110=\"\",\"\",'Beskrivelser (DHY)'!N110)","v":"7070704: Grund/Bygning-Vedligehold-Indvendig"},{"$f":"IF('Beskrivelser (DHY)'!K110=\"\",\"\",'Beskrivelser (DHY)'!K110)","v":"Her konteres udgifter til indvendig vedligeholdelse, f.eks. maling af vægge, lofter, indvendigt træværk samt udskiftning af gulvbelægning, vandhaner osv. "}]
[{"$f":"IFERROR(VLOOKUP(VALUE(LEFT(B112,2)),'Beskrivelser (DHY)'!A:B,2,FALSE),\"\")","v":"70: Grunde og bygninger"},{"$f":"IF('Beskrivelser (DHY)'!N111=\"\",\"\",'Beskrivelser (DHY)'!N111)","v":"7070706: Grund/Bygning-Vedligehold-Udvendig "},{"$f":"IF('Beskrivelser (DHY)'!K111=\"\",\"\",'Beskrivelser (DHY)'!K111)","v":"Udgifter til udvendig vedligeholdelse, der finansieres af den forvaltning/institution, der anvender ejendommen, konteres på dimensionsværdi 7070706. "}]
[{"$f":"IFERROR(VLOOKUP(VALUE(LEFT(B113,2)),'Beskrivelser (DHY)'!A:B,2,FALSE),\"\")","v":"70: Grunde og bygninger"},{"$f":"IF('Beskrivelser (DHY)'!N112=\"\",\"\",'Beskrivelser (DHY)'!N112)","v":"7070710: Grund/Bygning-Vedligehold-Udvendig (KUN til PTM)"},{"$f":"IF('Beskrivelser (DHY)'!K112=\"\",\"\",'Beskrivelser (DHY)'!K112)","v":"Udgifter til udvendig vedligeholdelse, der finansieres af puljen under Kommunale ejedomme konteres på dimensionsværdi 7070710 (dimensionen må kun anvendes af PTM-Ejendomme) – hvortil budgettet, der finansierer udgiften, omplaceres. "}]
[{"$f":"IFERROR(VLOOKUP(VALUE(LEFT(B114,2)),'Beskrivelser (DHY)'!A:B,2,FALSE),\"\")","v":"70: Grunde og bygninger"},{"$f":"IF('Beskrivelser (DHY)'!N113=\"\",\"\",'Beskrivelser (DHY)'!N113)","v":"7070712: Grund/Bygning-Vedl.hold-Energibespar (KUN til PTM)"},{"$f":"IF('Beskrivelser (DHY)'!K113=\"\",\"\",'Beskrivelser (DHY)'!K113)","v":"Såfremt der etableres en pulje til energibesparende foranstaltninger, konteres udgifterne hertil på dimensionsværdien 7070712 – hvortil budgettet, der finansierer udgiften, omplaceres. P.t. findes en sådan pulje ikke. Dimensionen må kun anvendes af PTM-Ejendomme."}]
[{"$f":"IFERROR(VLOOKUP(VALUE(LEFT(B115,2)),'Beskrivelser (DHY)'!A:B,2,FALSE),\"\")","v":"70: Grunde og bygninger"},{"$f":"IF('Beskrivelser (DHY)'!N114=\"\",\"\",'Beskrivelser (DHY)'!N114)","v":"7072720: Grund/Bygning-Lejeudg. intern udlejer"},{"$f":"IF('Beskrivelser (DHY)'!K114=\"\",\"\",'Beskrivelser (DHY)'!K114)","v":"Her konteres den udgift som man betaler til en anden forvaltning/ afdeling for at leje lokaler. Modposten konteres på 7074740."}]
[{"$f":"IFERROR(VLOOKUP(VALUE(LEFT(B116,2)),'Beskrivelser (DHY)'!A:B,2,FALSE),\"\")","v":"70: Grunde og bygninger"},{"$f":"IF('Beskrivelser (DHY)'!N115=\"\",\"\",'Beskrivelser (DHY)'!N115)","v":"7072722: Grund/Bygning-Lejeudg. ekstern udlejer"},{"$f":"IF('Beskrivelser (DHY)'!K115=\"\",\"\",'Beskrivelser (DHY)'!K115)","v":"Her konteres den udgift som man betaler til en ekstern udlejer for at leje lokaler "}]
[{"$f":"IFERROR(VLOOKUP(VALUE(LEFT(B117,2)),'Beskrivelser (DHY)'!A:B,2,FALSE),\"\")","v":"70: Grunde og bygninger"},{"$f":"IF('Beskrivelser (DHY)'!N116=\"\",\"\",'Beskrivelser (DHY)'!N116)","v":"7074740: Grund/Bygning-Lejeindt. (intern udlejning)"},{"$f":"IF('Beskrivelser (DHY)'!K116=\"\",\"\",'Beskrivelser (DHY)'!K116)","v":"Her konteres den indtægt man modtager fra en anden forvaltning/ afdeling for at udleje lokaler. Modposten konteres på 7072720."}]
[{"$f":"IFERROR(VLOOKUP(VALUE(LEFT(B118,2)),'Beskrivelser (DHY)'!A:B,2,FALSE),\"\")","v":"70: Grunde og bygninger"},{"$f":"IF('Beskrivelser (DHY)'!N117=\"\",\"\",'Beskrivelser (DHY)'!N117)","v":"7074742: Grund/Bygning-Lejeindt.-(ekstern udlejning)"},{"$f":"IF('Beskrivelser (DHY)'!K117=\"\",\"\",'Beskrivelser (DHY)'!K117)","v":"Her konteres den man har fra en ekstern lejer for at udleje lokaler."}]
[{"$f":"IFERROR(VLOOKUP(VALUE(LEFT(B119,2)),'Beskrivelser (DHY)'!A:B,2,FALSE),\"\")","v":"70: Grunde og bygninger"},{"$f":"IF('Beskrivelser (DHY)'!N118=\"\",\"\",'Beskrivelser (DHY)'!N118)","v":"7076760: Grund/Bygning - Ejendomsskat"},{"$f":"IF('Beskrivelser (DHY)'!K118=\"\",\"\",'Beskrivelser (DHY)'!K118)","v":"Her konteres f.eks. rottebekæmpelse m.v. som udkonteres via ejendomsskattesystemet."}]
[{"$f":"IFERROR(VLOOKUP(VALUE(LEFT(B120,2)),'Beskrivelser (DHY)'!A:B,2,FALSE),\"\")","v":"70: Grunde og bygninger"},{"$f":"IF('Beskrivelser (DHY)'!N119=\"\",\"\",'Beskrivelser (DHY)'!N119)","v":"7076762: Grund/Bygning - Vand inkl. spildevandsafledning (forbrugsafg)"},{"$f":"IF('Beskrivelser (DHY)'!K119=\"\",\"\",'Beskrivelser (DHY)'!K119)","v":"Her konteres afregninger til vandforsyningsselskaber / vandværker. Tømning af septiktanke konteres også her."}]
[{"$f":"IFERROR(VLOOKUP(VALUE(LEFT(B121,2)),'Beskrivelser (DHY)'!A:B,2,FALSE),\"\")","v":"70: Grunde og bygninger"},{"$f":"IF('Beskrivelser (DHY)'!N120=\"\",\"\",'Beskrivelser (DHY)'!N120)","v":"7076764: Grund/Bygning - Renovation (forbrugsafg)"},{"$f":"IF('Beskrivelser (DHY)'!K120=\"\",\"\",'Beskrivelser (DHY)'!K120)","v":"Her konteres udgifter til renovation (Provas) samt til ekstra tømningsordninger f.eks. leveret af Meldgaard."}]
[{"$f":"IFERROR(VLOOKUP(VALUE(LEFT(B122,2)),'Beskrivelser (DHY)'!A:B,2,FALSE),\"\")","v":"70: Grunde og bygninger"},{"$f":"IF('Beskrivelser (DHY)'!N121=\"\",\"\",'Beskrivelser (DHY)'!N121)","v":"7076766: Grund/Bygning - Opvarmning"},{"$f":"IF('Beskrivelser (DHY)'!K121=\"\",\"\",'Beskrivelser (DHY)'!K121)","v":"Her konteres udgifter til varme - fjernvarme, køb af fyringsolie, naturgas, el til opvarmning. Hvis el kommer på samlet regning bør det søges opdelt i el til varme og el til belysning m.v. Kan det ikke opdeles på to fakturaer kan der foretages en fordeling f.eks. via en fast andel som anvendes på alle regninger. El til belysning m.v. konteres på dimension 7076768."}]
[{"$f":"IFERROR(VLOOKUP(VALUE(LEFT(B123,2)),'Beskrivelser (DHY)'!A:B,2,FALSE),\"\")","v":"70: Grunde og bygninger"},{"$f":"IF('Beskrivelser (DHY)'!N122=\"\",\"\",'Beskrivelser (DHY)'!N122)","v":"7076768: Grund/Bygning - El"},{"$f":"IF('Beskrivelser (DHY)'!K122=\"\",\"\",'Beskrivelser (DHY)'!K122)","v":"Her konteres el ekskl. el til opvarmning (dette bogføres på dimension 7076766)"}]
[{"$f":"IFERROR(VLOOKUP(VALUE(LEFT(B124,2)),'Beskrivelser (DHY)'!A:B,2,FALSE),\"\")","v":"70: Grunde og bygninger"},{"$f":"IF('Beskrivelser (DHY)'!N123=\"\",\"\",'Beskrivelser (DHY)'!N123)","v":"7076770: Grund/Bygning - Adgangskontrol/tyverialarmer"},{"$f":"IF('Beskrivelser (DHY)'!K123=\"\",\"\",'Beskrivelser (DHY)'!K123)","v":"Her konteres abonnementer til drift af tyverialamer, vagtcentraler m.v. Reparation/ vedligehold af alarmanlæg konteres også her."}]
[{"$f":"IFERROR(VLOOKUP(VALUE(LEFT(B125,2)),'Beskrivelser (DHY)'!A:B,2,FALSE),\"\")","v":"70: Grunde og bygninger"},{"$f":"IF('Beskrivelser (DHY)'!N124=\"\",\"\",'Beskrivelser (DHY)'!N124)","v":"7076772: Grund/Bygning - Solcelleanlæg"},{"$f":"IF('Beskrivelser (DHY)'!K124=\"\",\"\",'Beskrivelser (DHY)'!K124)","v":"For de institutioner som har solcelleanlæg konteres driftsudgifter og driftsindtægter vedr. anlæggene her. Der er særlige krav til regnskabsaflæggelse - spørg Økonomiafdelingen - Regnskabskontoret herom hvis der er tvivl."}]
[{"$f":"IFERROR(VLOOKUP(VALUE(LEFT(B126,2)),'Beskrivelser (DHY)'!A:B,2,FALSE),\"\")","v":"70: Grunde og bygninger"},{"$f":"IF('Beskrivelser (DHY)'!N125=\"\",\"\",'Beskrivelser (DHY)'!N125)","v":"7076970: Grund/Bygning - Rengøring"},{"$f":"IF('Beskrivelser (DHY)'!K125=\"\",\"\",'Beskrivelser (DHY)'!K125)","v":"Udgifter til rengøringsmaterialer samt fakturaer fra eksterne rengøringsfirmaer konteres her. "}]
[{"$f":"IFERROR(VLOOKUP(VALUE(LEFT(B127,2)),'Beskrivelser (DHY)'!A:B,2,FALSE),\"\")","v":"70: Grunde og bygninger"},{"$f":"IF('Beskrivelser (DHY)'!N126=\"\",\"\",'Beskrivelser (DHY)'!N126)","v":"7076980: Grund/Bygning - Forsikringspræmier"},{"$f":"IF('Beskrivelser (DHY)'!K126=\"\",\"\",'Beskrivelser (DHY)'!K126)","v":"Præmier til forsikringer vedr. grunde og bygninger registreres her. "}]
[{"$f":"IFERROR(VLOOKUP(VALUE(LEFT(B128,2)),'Beskrivelser (DHY)'!A:B,2,FALSE),\"\")","v":"70: Grunde og bygninger"},{"$f":"IF('Beskrivelser (DHY)'!N127=\"\",\"\",'Beskrivelser (DHY)'!N127)","v":"7076982: Grund/Bygning-Forsikringsskader"},{"$f":"IF('Beskrivelser (DHY)'!K127=\"\",\"\",'Beskrivelser (DHY)'!K127)","v":"Kommunens/institutionens udgifter i forbindelse med forsikringssager på grunde og bygninger (f.eks. Selvrisiko) konteres her."}]
[{"$f":"IFERROR(VLOOKUP(VALUE(LEFT(B129,2)),'Beskrivelser (DHY)'!A:B,2,FALSE),\"\")","v":"70: Grunde og bygninger"},{"$f":"IF('Beskrivelser (DHY)'!N128=\"\",\"\",'Beskrivelser (DHY)'!N128)","v":"7076996: Grund/Bygning - Forrentning"},{"$f":"IF('Beskrivelser (DHY)'!K128=\"\",\"\",'Beskrivelser (DHY)'!K128)","v":"Her konteres forrentning af de aktiver som gruppen omfatter. Dimensionen anvendes kun ifm. omkostningsregnskabet og anvendes p.t. ikke"}]
[{"$f":"IFERROR(VLOOKUP(VALUE(LEFT(B130,2)),'Beskrivelser (DHY)'!A:B,2,FALSE),\"\")","v":"70: Grunde og bygninger"},{"$f":"IF('Beskrivelser (DHY)'!N129=\"\",\"\",'Beskrivelser (DHY)'!N129)","v":"7076998: Grund/Bygning - Afskrivning"},{"$f":"IF('Beskrivelser (DHY)'!K129=\"\",\"\",'Beskrivelser (DHY)'!K129)","v":"Her konteres alle udgifter vedr. afskrivning på de aktiver som gruppen omfatter. Dimensionen anvendes kun centralt."}]
[{"$f":"IFERROR(VLOOKUP(VALUE(LEFT(B131,2)),'Beskrivelser (DHY)'!A:B,2,FALSE),\"\")","v":"80: Betaling andre offentlige myndigheder"},{"$f":"IF('Beskrivelser (DHY)'!N130=\"\",\"\",'Beskrivelser (DHY)'!N130)","v":"8080800: Betaling til og fra andre offentlige myndighed"},{"$f":"IF('Beskrivelser (DHY)'!K130=\"\",\"\",'Beskrivelser (DHY)'!K130)","v":"Her konteres udgifter og indtægter som afregnes mellem Aabenraa Kommune og andre offentlige myndigheder. Se dog under område 9090."}]
[{"$f":"IFERROR(VLOOKUP(VALUE(LEFT(B132,2)),'Beskrivelser (DHY)'!A:B,2,FALSE),\"\")","v":"90: Indtægter"},{"$f":"IF('Beskrivelser (DHY)'!N131=\"\",\"\",'Beskrivelser (DHY)'!N131)","v":"9090900: Indtægter - Salg af kerneydelser (ekstern)"},{"$f":"IF('Beskrivelser (DHY)'!K131=\"\",\"\",'Beskrivelser (DHY)'!K131)","v":"Her konteres salg, der relatere sig til kerneydelsen. Kerneydelsen defineres i forhold til den valgte hovedkonto. Et eksempel er salg af aflastningspladser til andre kommuner."}]
[{"$f":"IFERROR(VLOOKUP(VALUE(LEFT(B133,2)),'Beskrivelser (DHY)'!A:B,2,FALSE),\"\")","v":"90: Indtægter"},{"$f":"IF('Beskrivelser (DHY)'!N132=\"\",\"\",'Beskrivelser (DHY)'!N132)","v":"9090902: Indtægter - Administrationsvederlag"},{"$f":"IF('Beskrivelser (DHY)'!K132=\"\",\"\",'Beskrivelser (DHY)'!K132)","v":"Her konteres indtægter fra administrationsvederlag, f.eks. administrationsvederlag overført fra anlægsprojekter. Hvis der til et projekt med ekstern finansiering skal opgøres og registreres en administrationsudgift, som er leveret fra Aabenraa Kommune, skal vederlaget indtægtsføres på denne dimension . Modposten registreres i så fald på dimension 5054556. "}]
[{"$f":"IFERROR(VLOOKUP(VALUE(LEFT(B134,2)),'Beskrivelser (DHY)'!A:B,2,FALSE),\"\")","v":"90: Indtægter"},{"$f":"IF('Beskrivelser (DHY)'!N133=\"\",\"\",'Beskrivelser (DHY)'!N133)","v":"9090904: Indtægter - Salg af øvrige ydelser (ekstern)"},{"$f":"IF('Beskrivelser (DHY)'!K133=\"\",\"\",'Beskrivelser (DHY)'!K133)","v":"Her konteres indtægter der stammer fra salg af ydelser, der ikke relatere til kerneydelsen. Kerneydelsen defineres i forhold til den valgte hovedkonto. Det kan f.eks. være hvis en forvaltning leverer en betalbar ydelse til Brand og Redning Sønderjylland. "}]
[{"$f":"IFERROR(VLOOKUP(VALUE(LEFT(B135,2)),'Beskrivelser (DHY)'!A:B,2,FALSE),\"\")","v":"90: Indtægter"},{"$f":"IF('Beskrivelser (DHY)'!N134=\"\",\"\",'Beskrivelser (DHY)'!N134)","v":"9090908: Indtægter - Internt salg"},{"$f":"IF('Beskrivelser (DHY)'!K134=\"\",\"\",'Beskrivelser (DHY)'!K134)","v":"Internt salg omfatter f.eks. køb og salg af ydelser mellem forskellige afdelinger/institutioner/grupper."}]
[{"$f":"IFERROR(VLOOKUP(VALUE(LEFT(B136,2)),'Beskrivelser (DHY)'!A:B,2,FALSE),\"\")","v":"90: Indtægter"},{"$f":"IF('Beskrivelser (DHY)'!N135=\"\",\"\",'Beskrivelser (DHY)'!N135)","v":"9091910: Tilskud - Eksterne parter"},{"$f":"IF('Beskrivelser (DHY)'!K135=\"\",\"\",'Beskrivelser (DHY)'!K135)","v":"Her konteres tilskud som Aabenraa Kommune modtager f.eks. EU-tilskud til projekter."}]
[{"$f":"IFERROR(VLOOKUP(VALUE(LEFT(B137,2)),'Beskrivelser (DHY)'!A:B,2,FALSE),\"\")","v":"90: Indtægter"},{"$f":"IF('Beskrivelser (DHY)'!N136=\"\",\"\",'Beskrivelser (DHY)'!N136)","v":"9091920: Tilskud - Fonds (17,5%)"},{"$f":"IF('Beskrivelser (DHY)'!K136=\"\",\"\",'Beskrivelser (DHY)'!K136)","v":"Her konteres tilskud som Aabenraa Kommune modtager f.eks. bidrag fra kulturelle eller fritidsforeninger, som er omfattet af reglerne i momsudligningsordningen om afløftning af udligningsmoms. Spørg din økonomikonsulent herom, hvis du er i tvivl."}]

{"sheet":"Drift tværgående - Print","index":3,"n_rows":177,"n_cols":10,"rows_kept":177,"cut":false,"hidden":false,"merged":[[0,7,0,8]]}
["Dimensions-niveau 1",null,"Dimensions-niveau 2",null,"Dimensions-niveau 3","Tværgående dimension forklaringstekst",null,"SÅDAN VISES TVÆRGÅENDE DIMENSION I PRISME"]
[]
["0x","Anlægsprojekter (se særskilt fane)",null,null,null,null,null,null,"Angiver på hvilke tværgående dimensioner SD løn fordeler udbetalt løn i økonomi."]
[null,null,null,null,null,null,null,null,"Dimension 4040490 anvendes KUN sammen med dimension 4040492, og benyttes, når der skal manuelt omkonteres løn f.eks. ifm. udlån af medarbejdere. I den forbindelse skal der også anvendes IM-art 1.2"]
["1x","Finansiering (dranst 4-7, se særskilt fane)"]
[20,"Overførselsudgifter"]
[null,null,20,"Forsørgelse"]
[null,null,null,null,200,"Forsørgelse",null,"2020200","Overførs.udg.-Forsørgelse - Forsørgelse"]
[null,null,null,null,202,"Løntilskud",null,"2020202","Overførs.udg.-Forsørgelse - Løntilskud"]
[null,null,null,null,204,"Medfinansiering (forsørgelse)",null,"2020204","Overførs.udg.-Forsørgelse - Medfinansiering"]
[null,null,22,"Indsatser"]
[null,null,null,null,220,"Indsatser",null,"2022220","Overførs.udg.-Indsatser"]
[null,null,24,"Øvrige"]
[null,null,null,null,240,"Øvrige",null,"2024240","Overførs.udg.-Øvrige"]
["3x-9x","Servicedrift:"]
[30,"Puljer mv."]
[null,null,30,"Overførte beløb/reduktion/omstilling"]
[null,null,null,null,300,"Overført over-/underskud",null,"3030300","Pulje mv. - Overført over-/underskud"]
[null,null,null,null,310,"Reduktion/omstilling",null,"3030310","Pulje mv. - Reduktion/omstilling"]
[null,null,null,null,"320","Politiske puljer til prioritering",null,"3030320","Pulje mv. - Politisk til prioritering"]
[null,null,32,"Puljer til senere udmøntning"]
[null,null,null,null,320,"Flexjobpulje",null,"3032320","Pulje mv. - Flexjob"]
[null,null,null,null,322,"Barselspulje",null,"3032322","Pulje mv. - Barsel"]
[null,null,null,null,324,"Lederlønpulje",null,"3032324","Pulje mv. - Lederløn"]
[null,null,null,null,326,"Lønpulje til personale",null,"3032326","Pulje mv. - Løn til personale"]
[null,null,null,null,328,"Øvrige puljer",null,"3032328","Pulje mv. - Øvrige"]
[40,"Løn"]
[null,null,40,"Lønninger"]
[null,null,null,null,400,"Løn til personale",null,"4040400","Løn - Personale"]
[null,null,null,null,402,"Pensionsforsikringspræmier",null,"4040402","Løn - Pensionsforsikringspræmier"]
[null,null,null,null,406,"Vikarudgifter / Vikarbureau",null,"4040406","Løn - Vikarudgifter/Vikarbureau"]
[null,null,null,null,490,"Overførte lønninger (udgift)",null,"4040490","Løn - Overførte lønninger (udgift)"]
[null,null,null,null,492,"Overførte lønninger (indtægt)",null,"4040492","Løn - Overførte lønninger (indtægt)"]
[null,null,null,null,972,"Feriepengeforpligtigelser",null,"4040972","Løn - Feriepengeforpligtigelser"]
[null,null,42,"Lønrefusioner"]
[null,null,null,null,420,"Barsel",null,"4042420","Lønrefusion - Barsel"]
[null,null,null,null,422,"Sygedagpenge",null,"4042422","Lønrefusion - Sygedagpenge"]
[null,null,null,null,424," Refusion vedr. Flexjob",null,"4042424","Lønrefusion - Flexjob"]
[null,null,null,null,"426","Øvrige lønrefusioner",null,"4042426","Lønrefusion - Øvrige"]
[null,null,null,null,"428","VEU godtgørelse",null,"4042428","Lønrefusion - VEU godtgørelse"]
[44,"Personaleudgifter"]
[null,null,44,"Uddannelse"]
[null,null,null,null,440,"Uddannelse og kurser",null,"4444440","Personaleudgifter - Uddannelse og kurser"]
[null,null,46,"Øvrige personaleudgifter"]
[null,null,null,null,460,"Beklædning",null,"4446460","Personaleudgifter - Beklædning"]
[null,null,null,null,462,"Befordringsgodtgørelse (overf. Fra SD)",null,"4446462","Personaleudgifter - Befordringsgodtgørelse (overf. Fra SD)"]
[null,null,null,null,464,"Øvrig transport",null,"4446464","Personaleudgifter - Øvrig transport"]
[null,null,null,null,466,"Udlandsrejser",null,"4446466","Personaleudgifter - Udlandsrejser"]
[null,null,null,null,468,"Repræsentation",null,"4446468","Personaleudgifter - Repræsentation"]
[null,null,null,null,470,"Rekruttering (annoncering, m.v.)",null,"4446470","Personaleudgifter - Rekruttering (annoncering, m.v.)"]
[null,null,null,null,472,"Øvrige personalerelaterede udgifter ",null,"4446472","Personaleudgifter - Øvrige personalerelaterede udgifter"]
[null,null,null,null,474,"Personaleaktiviteter",null,"4446474","Personaleudgifter - Personaleaktiviteter"]
[null,null,null,null,"480","Pers.realteret udlæg",null,"4446480","Pers.relateret udlæg","(ny pr. 02.03.2023)"]
[null,null,null,null,980,"Forsikringspræmier",null,"4446980","Personaleudgifter - Forsikringspræmier"]
[null,null,null,null,982,"Forsikringsskader",null,"4446982","Personaleudgifter - Forsikringsskader"]
[null,null,null,null,984,"Risikostyring/forebyggelse",null,"4446984","Personaleudgifter - Risikostyring/forebyggelse"]
[48,"Pensionerede tjenestemænd"]
[null,null,48,"Tjenestemandspensioner"]
[null,null,null,null,480,"Tjenestemandspensioner og -forpligtelser",null,"4848480","Tjenestemandspensioner og -forpligtelser"]
[50,"Materiale- og aktivitetsudgifter"]
[null,null,50,"Udgifter vedr. kerneydelser"]
[null,null,null,null,500,"Materialer",null,"5050500","Kerneydelse - Materialer"]
[null,null,null,null,502,"Undervisningsmidler",null,"5050502","Kerneydelse - Undervisningsmidler"]
[null,null,null,null,504,"Beskæftigelsesmaterialer",null,"5050504","Kerneydelse - Beskæftigelsesmaterialer"]
[null,null,null,null,506,"Sygeplejeartikler",null,"5050506","Kerneydelse - Sygeplejeartikler"]
[null,null,null,null,520,"Aktiviteter",null,"5050520","Kerneydelse - Aktiviteter"]
[null,null,null,null,522,"Elevaktiviteter",null,"5050522","Kerneydelse - Elevaktiviteter"]
[null,null,null,null,530,"Sundhedsmæssige foranstaltninger",null,"5050530","Kerneydelse - Sundhedsmæssig foranstaltning"]
[null,null,null,null,531,"Kerneydelse - Værnemidler indkøbt uden om KVIK",null,"5050531","Kerneydelse - Værnemidler indkøbt uden om KVIK"]
[null,null,null,null,532,"Transport",null,"5050532","Kerneydelse - Transport"]
[null,null,null,null,538,"Øvrige udgifter",null,"5050538","Kerneydelse - Øvrige udgifter"]
[null,null,54,"Administration"]
[null,null,null,null,540,"Kontorhold",null,"5054540","Administration - Kontorhold"]
[null,null,null,null,542,"Kontingenter/abonnementer",null,"5054542","Administration - Kontingenter/abonnementer"]
[null,null,null,null,544,"Telefon",null,"5054544","Administration - Telefon"]
[null,null,null,null,548,"Porto",null,"5054548","Administration - Porto"]
[null,null,null,null,550,"Forplejning - Møder",null,"5054550","Administration - Forplejning - Møder"]
[null,null,null,null,552,"Annoncer og informationsmateriale",null,"5054552","Administration - Annoncer og informationsmateriale"]
[null,null,null,null,554,"Gebyrer",null,"5054554","Administration - Gebyrer"]
[null,null,null,null,556,"Administrationsvederlag (udgift)",null,"5054556","Administration - Administrationsvederlag (udgift)"]
[null,null,58,"Ekstern bistand"]
[null,null,null,null,580,"Revision",null,"5058580","Ekstern bistand - Revision"]
[null,null,null,null,582,"Advokat",null,"5058582","Ekstern bistand - Advokat"]
[null,null,null,null,584,"Tolkning",null,"5058584","Ekstern bistand - Tolk"]
[null,null,null,null,586,"Lægeerklæringer for borgere",null,"5058586","Ekstern bistand - Lægeerklæringer (for borgere)"]
[null,null,null,null,588,"Øvrig konsulentbistand",null,"5058588","Ekstern bistand - Øvrig konsulentbistand"]
[null,null,null,null,"589","Honorar",null,"5058589","Ekstern bistand-Honorar"]
[60,"Kapacitetsudgifter"]
[null,null,60,"Inventar"]
[null,null,null,null,600,"Drift og vedligeholdelse",null,"6060600","Inventar - Drift og vedligeholdelse"]
[null,null,null,null,980,"Forsikringspræmier",null,"6060980","Inventar-Forsikringspræmier"]
[null,null,null,null,982,"Forsikringsskader",null,"6060982","Inventra-Forsikringsskader"]
[null,null,null,null,990,"Leasing",null,"6060990","Inventar - Leasing"]
[null,null,null,null,992,"Køb over 100.000 kr.",null,"6060992","Inventar - Køb over 100.000 kr."]
[null,null,null,null,994,"Køb under 100.000 kr.",null,"6060994","Inventar - Køb under 100.000 kr."]
[null,null,null,null,996,"Forrentning",null,"6060996","Inventar - Forrentning"]
[null,null,null,null,998,"Afskrivning",null,"6060998","Inventar - Afskrivning"]
[null,null,61,"Transportmidler (biler m.v.)"]
[null,null,null,null,600,"Drift og vedligeholdelse",null,"6061600","Transportmidler (biler mv) - Drift og vedligeholdelse"]
[null,null,null,null,980,"Forsikringspræmier",null,"6061980","Transportmidler (biler mv) - Forsikringspræmier"]
[null,null,null,null,982,"Forsikringsskader",null,"6061982","Transportmidler (biler mv) - Forsikringsskader"]
[null,null,null,null,990,"Leasing",null,"6061990","Transportmidler (biler mv) - Leasing"]
[null,null,null,null,992,"Køb over 100.000 kr.",null,"6061992","Transportmidler (biler mv) - Køb over 100.000 kr."]
[null,null,null,null,994,"Køb under 100.000 kr.",null,"6061994","Transportmidler (biler mv) - Køb under 100.000 kr."]
[null,null,null,null,996,"Forrentning",null,"6061996","Transportmidler (biler mv) - Forrentning"]
[null,null,null,null,998,"Afskrivning",null,"6061998","Transportmidler (biler mv) - Afskrivning"]
[null,null,62,"Maskiner og materiel"]
[null,null,null,null,600,"Drift og vedligeholdelse",null,"6062600","Maskin/materiel - Drift og vedligeholdelse"]
[null,null,null,null,980,"Forsikringspræmier",null,"6062980","Maskin/materiel - Forsikringspræmier"]
[null,null,null,null,982,"Forsikringsskader",null,"6062982","Maskin/materiel - Forsikringsskader"]
[null,null,null,null,990,"Leasing",null,"6062990","Maskin/materiel - Leasing"]
[null,null,null,null,992,"Køb over 100.000 kr.",null,"6062992","Maskin/materiel - Køb over 100.000 kr."]
[null,null,null,null,994,"Køb under 100.000 kr.",null,"6062994","Maskin/materiel - Køb under 100.000 kr."]
[null,null,null,null,996,"Forrentning",null,"6062996","Maskin/materiel - Forrentning"]
[null,null,null,null,998,"Afskrivning",null,"6062998","Maskin/materiel - Afskrivning"]
[null,null,63,"Tekniske anlæg"]
[null,null,null,null,600,"Drift og vedligeholdelse",null,"6063600","Tekniske anlæg - Drift og vedligeholdelse"]
[null,null,null,null,980,"Forsikringspræmier",null,"6063980","Tekniske anlæg - Forsikringspræmier"]
[null,null,null,null,982,"Forsikringsskader",null,"6063982","Tekniske anlæg - Forsikringsskader"]
[null,null,null,null,990,"Leasing",null,"6063990","Tekniske anlæg - Leasing"]
[null,null,null,null,992,"Køb over 100.000 kr.",null,"6063992","Tekniske anlæg - Køb over 100.000 kr."]
[null,null,null,null,994,"Køb under 100.000 kr.",null,"6063994","Tekniske anlæg - Køb under 100.000 kr."]
[null,null,null,null,996,"Forrentning",null,"6063996","Tekniske anlæg - Forrentning"]
[null,null,null,null,998,"Afskrivning",null,"6063998","Tekniske anlæg - Afskrivning"]
[null,null,65,"Hardware og IT-infrastruktur"]
[null,null,null,null,600,"Drift og vedligeholdelse",null,"6065600","Hardware/IT-infrastruktur - Drift og vedligeholdelse"]
[null,null,null,null,980,"Forsikring",null,"6065980","Hardware/IT-infrastruktur - Forsikringspræmier"]
[null,null,null,null,990,"Leasing",null,"6065990","Hardware/IT-infrastruktur - Leasing"]
[null,null,null,null,992,"Køb over 100.000 kr.",null,"6065992","Hardware/IT-infrastruktur - Køb over 100.000 kr."]
[null,null,null,null,994,"Køb under 100.000 kr.",null,"6065994","Hardware/IT-infrastruktur - Køb under 100.000 kr."]
[null,null,null,null,996,"Forrentning",null,"6065996","Hardware/IT-infrastruktur - Forrentning"]
[null,null,null,null,998,"Afskrivning",null,"6065998","Hardware/IT-infrastruktur - Afskrivning"]
[null,null,66,"Software / Øvrig IT"]
[null,null,null,null,600,"Drift og vedligeholdelse (egne systemer)",null,"6066600","Software/Øvrig IT - Drift og vedligeholdelse (egne systemer)"]
[null,null,null,null,602,"Udgift vedr. hostede IT-systemer ",null,"6066602","Software/Øvrig IT - Udgift vedr. hostede IT-systemer"]
[null,null,null,null,630,"Kommunikation (linjer m.v.)",null,"6066630","Software/Øvrig IT - Kommunikation (linjer mv)"]
[null,null,null,null,992,"Køb over 100.000 kr.",null,"6066992","Software/Øvrig IT - Køb over 100.000 kr."]
[null,null,null,null,994,"Køb under 100.000 kr.",null,"6066994","Software/Øvrig IT - Køb under 100.000 kr."]
[70,"Grunde og bygninger"]
[null,null,70,"Vedligeholdelse"]
[null,null,null,null,700,"Udenomsarealer",null,"7070700","Grund/Bygning-Vedligehold-Udenomsarealer"]
[null,null,null,null,702,"Serviceabonnementer",null,"7070702","Grund/Bygning-Vedligehold -Serviceabonnementer"]
[null,null,null,null,704,"Indvendig vedligeholdelse",null,"7070704","Grund/Bygning-Vedligehold-Indvendig"]
[null,null,null,null,706,"Udvendig vedligeholdelse",null,"7070706","Grund/Bygning-Vedligehold-Udvendig "]
[null,null,null,null,710,"Udvendig vedligeholdelse (Kun til brug af PTM - Kommunale ejendomme)",null,"7070710","Grund/Bygning-Vedligehold-Udvendig (KUN til PTM)"]
[null,null,null,null,712,"Energibesparende vedligehold (Kun til brug af PTM - Kommunale ejendomme)",null,"7070712","Grund/Bygning-Vedl.hold-Energibespar (KUN til PTM)"]
[null,null,72,"Lejeudgifter"]
[null,null,null,null,720,"Lejeudgift til intern udlejer",null,"7072720","Grund/Bygning-Lejeudg. intern udlejer"]
[null,null,null,null,722,"Lejeudgift til ekstern udlejer",null,"7072722","Grund/Bygning-Lejeudg. ekstern udlejer"]
[null,null,74,"Lejeindtægter"]
[null,null,null,null,740,"Lejeindtægt (udlejning) til interne",null,"7074740","Grund/Bygning-Lejeindt. (intern udlejning)"]
[null,null,null,null,742,"Lejeindtægt (udlejning) til eksterne",null,"7074742","Grund/Bygning-Lejeindt.-(ekstern udlejning)"]
[null,null,76,"Drift"]
[null,null,null,null,760,"Ejendomsskat",null,"7076760","Grund/Bygning - Ejendomsskat"]
[null,null,null,null,762,"Vand inkl. spildevandsafledning (forbrugsafgifter)",null,"7076762","Grund/Bygning - Vand inkl. spildevandsafledning (forbrugsafg)"]
[null,null,null,null,764,"Renovation (forbrugsafgifter)",null,"7076764","Grund/Bygning - Renovation (forbrugsafg)"]
[null,null,null,null,766,"Opvarmning",null,"7076766","Grund/Bygning - Opvarmning"]
[null,null,null,null,768,"El",null,"7076768","Grund/Bygning - El"]
[null,null,null,null,770,"Adgangskontrol / tyverialarmer",null,"7076770","Grund/Bygning - Adgangskontrol/tyverialarmer"]
[null,null,null,null,772,"Solcelleanlæg",null,"7076772","Grund/Bygning - Solcelleanlæg"]
[null,null,null,null,970,"Rengøring",null,"7076970","Grund/Bygning - Rengøring"]
[null,null,null,null,980,"Forsikringspræmier",null,"7076980","Grund/Bygning - Forsikringspræmier"]
[null,null,null,null,"982","Forsikringsskader",null,"7076982","Grund/Bygning-Forsikringsskader"]
[null,null,null,null,996,"Forrentning",null,"7076996","Grund/Bygning - Forrentning"]
[null,null,null,null,998,"Afskrivning",null,"7076998","Grund/Bygning - Afskrivning"]
[80,"Betaling andre offentlige myndigheder"]
[null,null,80,"Betaling andre offentlige myndigheder"]
[null,null,null,null,800,"Betaling til og fra andre offentlige myndigheder",null,"8080800","Betaling til og fra andre offentlige myndighed"]
[90,"Indtægter"]
[null,null,90,"Salgsindtægter"]
[null,null,null,null,900,"Salg af kerneydelser (ekstern)",null,"9090900","Indtægter - Salg af kerneydelser (ekstern)"]
[null,null,null,null,902,"Administrationsvederlag (indtægt)",null,"9090902","Indtægter - Administrationsvederlag"]
[null,null,null,null,904,"Salg af øvrige ydelser (ekstern)",null,"9090904","Indtægter - Salg af øvrige ydelser (ekstern)"]
[null,null,null,null,908,"Internt salg",null,"9090908","Indtægter - Internt salg"]
[null,null,91,"Tilskud"]
[null,null,null,null,910,"Tilskud fra eksterne parter",null,"9091910","Tilskud - Eksterne parter"]
[null,null,null,null,920,"Fondstilskud (17,5%)",null,"9091920","Tilskud - Fonds (17,5%)"]

{"sheet":"Anlæg tværgående - Print","index":4,"n_rows":336,"n_cols":10,"rows_kept":336,"cut":false,"hidden":false,"merged":[[0,7,0,8]]}
["Dimensions-niveau 1",null,"Dimensions-niveau 2",null,"Dimensions-niveau 3","Tværgående dimension forklaringstekst",null,"SÅDAN VISES TVÆRGÅENDE DIMENSION I PRISME"]
[]
["01","Ejendomme"]
[null,0,"Rådighedsbeløb"]
[null,null,0,"Rådighedsbeløb"]
[null,null,null,null,888,"Frigivet rådighedsbeløb",null,"0100888","Frigivet rådighedsbeløb"]
[null,null,null,null,"999","Ikke frigivet rådighedsbeløb",null,"0100999","Ikke frigivet rådighedsbeløb"]
[null,"1","Grund"]
[null,null,"0","Rådighedsbeløb"]
[null,null,null,null,"888","Frigivet rådighedsbeløb",null,"0110888","Gr-Forund-Frigivet rådighedsbeløb"]
[null,null,"1","Forundersøgelser og lokalplan"]
[null,null,null,null,"001","Landinsp., geoteknik, miljøunders. arkæologiske unders.",null,"0111001","Gr-Forund-Landinspekt, geoteknik, miljøunders, arkæologisk"]
[null,null,null,null,"002","Lokalplan",null,"0111002","Gr-Forund-Lokalplan"]
[null,null,"2","Køb"]
[null,null,null,null,"000","Køb  ",null,"0112000","Gr-Køb"]
[null,null,"3","Klargøring"]
[null,null,null,null,"001","Forundersøgelser",null,"0113001","Gr-Klarg-Forundersøgelser"]
[null,null,null,null,"002","Nedbrydning eksist. bygninger",null,"0113002","Gr-Klarg-Nedbrydning eks.bygning"]
[null,null,null,null,"003","Miljøsanering",null,"0113003","Gr-Klarg-Miljøsanering"]
[null,null,null,null,"004","Genhusning",null,"0113004","Gr-Klarg-Genhusning","(ny pr. 25.10.2022)"]
[null,"2","Tilslutningsudgifter"]
[null,null,"0","Rådighedsbeløb"]
[null,null,null,null,"888","Frigivet rådighedsbeløb",null,"0120888","Tilslutning-Frigivet rådighedsbeløb"]
[null,null,"1","Forsyningsselskaber"]
[null,null,null,null,"000","Forsyningsselskaber",null,"0121000","Tilslutning-Forsyningsselskaber"]
[null,"3","Omkostninger"]
[null,null,"0","Rådighedsbeløb"]
[null,null,null,null,"888","Frigivet rådighedsbeløb",null,"0130888","Omk-Rådg-Frigivet rådighedsbeløb"]
[null,null,"1","Rådgivning"]
[null,null,null,null,"001","Bygherrerådgivning",null,"0131001","Omk-Rådg-Bygherrerådgivning"]
[null,null,null,null,"002","Ekstra bygherrerådgivning",null,"0131002","Omk-Rådg-Ekstra Bygherrerådgivning"]
[null,null,null,null,"003","Totalrådgivning",null,"0131003","Omk-Rådg-Totalrådgivning"]
[null,null,null,null,"004","Ekstra totalrådgivning",null,"0131004","Omk-Rådg-Ekstra totalrådgivning"]
[null,null,null,null,"005","Specialrådgivning",null,"0131005","Omk-Rådg-Specialrådgivning"]
[null,null,null,null,"006","Brandrådgiver",null,"0131006","Omk-Rådg-Brandrådgiver"]
[null,null,null,null,"007","Statiker-3. partskontrol",null,"0131007","Omk-Rådg-Statiker-3. partskontrol"]
[null,null,"2","Byggeplads"]
[null,null,null,null,"001","Vinterforanstaltninger",null,"0132001","Omk-Byggepl-Vinterforanstaltninger"]
[null,null,null,null,"002","Driftsudgifter til vand, varme, el, rejsegilde mm.",null,"0132002","Omk-Byggepl-Driftsudg vand, el, varme, rejsegilde mm."]
[null,null,"3","Øvrige"]
[null,null,null,null,"001","Diverse",null,"0133001","Omk-Øvr-Diverse"]
[null,null,null,null,"556","Administrationsvederlag",null,"0133556","Omk-Øvr-Administrationsvederlag (udgift)"]
[null,null,null,null,"003","Projektweb",null,"0133003","Omk-Øvr-Projektweb"]
[null,null,null,null,"004","Projektkonkurrencen",null,"0133004","Omk-Øvr-Projektkonkurrence"]
[null,null,null,null,"005","Byggesagsgebyr",null,"0133005","Omk-Øvr-Byggesagsgebyr"]
[null,null,null,null,"006","Forvaltningskonsulent",null,"0133006","Omk-Øvr-Forvaltningskonsulent"]
[null,null,null,null,"007","Møder med eksterne",null,"0133007","Omk-Øvr-Møder med eksterne"]
[null,null,null,null,"008","Forsikringspræmier",null,"0133008","Omk-Øvr-Forsikringspræmier"]
[null,"4","Håndværkerudgifter"]
[null,null,"0","Rådighedsbeløb"]
[null,null,null,null,"888","Frigivet rådighedsbeløb",null,"0140888","Håndv.-Udbud-Frigiet rådighedsbeløb"]
[null,null,"1","Udbud/licitation(kontrakt)"]
[null,null,null,null,"001","#Møder med eksterne",null,"0141001","#Håndv-Udbud-Møder med eksterne"]
[null,null,null,null,"002","#Forsikringspræmier",null,"0141002","#Håndv-Udbud-Forsikringspræmier"]
[null,null,null,null,"003","#Entreprise",null,"0141003","#Håndv-Udbud-Entreprise"]
[null,null,null,null,"004","Totalentreprise",null,"0141004","Håndv-Udbud-Totalentreprise"]
[null,null,null,null,"005","Hovedentreprise",null,"0141005","Håndv-Udbud-Hovedentreprise"]
[null,null,null,null,"023","Jord",null,"0141023","Håndv-Udbud-Jord"]
[null,null,null,null,"024","Kloak",null,"0141024","Håndv-Udbud-Kloak"]
[null,null,null,null,"025","Beton",null,"0141025","Håndv-Udbud-Beton"]
[null,null,null,null,"026","Anlæg- og gartner",null,"0141026","Håndv-Udbud-Anlæg- og gartner"]
[null,null,null,null,"006","Murer",null,"0141006","Håndv-Udbud-Murer"]
[null,null,null,null,"007","Tømre",null,"0141007","Håndv-Udbud-Tømre"]
[null,null,null,null,"008","Gulv",null,"0141008","Håndv-Udbud-Gulv"]
[null,null,null,null,"009","Malerarbejder",null,"0141009","Håndv-Udbud-Malerarbejder"]
[null,null,null,null,"010","VVS",null,"0141010","Håndv-Udbud-VVS"]
[null,null,null,null,"011","Ventilation",null,"0141011","Håndv-Udbud-Ventilation"]
[null,null,null,null,"012","El",null,"0141012","Håndv-Udbud-El"]
[null,null,null,null,"013","Fast inventar",null,"0141013","Håndv-Udbud-Fast inventar"]
[null,null,null,null,"014","Produktionskøkken",null,"0141014","Håndv-Udbud-Produktionskøkken"]
[null,null,null,null,"015","Hvidevarer",null,"0141015","Håndv-Udbud-Hvidvarer"]
[null,null,null,null,"016","Forbrugsmåler",null,"0141016","Håndv-Udbud-Forbrugsmåler"]
[null,null,null,null,"017","Person sikring",null,"0141017","Håndv-Udbud-Person sikring"]
[null,null,null,null,"018","Kabel TV",null,"0141018","Håndv-Udbud-Kabel TV"]
[null,null,null,null,"019","Legeplads",null,"0141019","Håndv-Udbud-Legeplads"]
[null,null,null,null,"020","Elevator/lift",null,"0141020","Håndv-Udbud-Elevator/lift"]
[null,null,null,null,"021","Trådhegn",null,"0141021","Håndv-Udbud-Trådhegn"]
[null,null,null,null,"022","Andet",null,"0141022","Håndv-Udbud-Andet"]
[null,null,"2","Uforudsete"]
[null,null,null,null,"004","Totalentreprise",null,"0142004","Håndv-Uforudset-Totalentreprise"]
[null,null,null,null,"005","Hovedentreprise",null,"0142005","Håndv-Uforudset-Hovedentreprise"]
[null,null,null,null,"023","Jord",null,"0142023","Håndv-Uforudset-Jord"]
[null,null,null,null,"024","Kloak",null,"0142024","Håndv-Uforudset-Kloak"]
[null,null,null,null,"025","Beton",null,"0142025","Håndv-Uforudset-Beton"]
[null,null,null,null,"026","Anlæg- og gartner",null,"0142026","Håndv-Uforudset-Anlæg- og gartner"]
[null,null,null,null,"006","Murer",null,"0142006","Håndv-Uforudset-Murer"]
[null,null,null,null,"007","Tømre",null,"0142007","Håndv-Uforudset-Tømre"]
[null,null,null,null,"008","Gulv",null,"0142008","Håndv-Uforudset-Gulv"]
[null,null,null,null,"009","Malerarbejder",null,"0142009","Håndv-Uforudset-Malerarbejder"]
[null,null,null,null,"010","VVS",null,"0142010","Håndv-Uforudset-VVS"]
[null,null,null,null,"011","Ventilation",null,"0142011","Håndv-Uforudset-Ventilation"]
[null,null,null,null,"012","El",null,"0142012","Håndv-Uforudset-El"]
[null,null,null,null,"013","Fast inventar",null,"0142013","Håndv-Uforudset-Fast inventar"]
[null,null,null,null,"014","Produktionskøkken",null,"0142014","Håndv-Uforudset-Produktionskøkken"]
[null,null,null,null,"015","Hvidevarer",null,"0142015","Håndv-Uforudset-Hvidvarer"]
[null,null,null,null,"016","Forbrugsmåler",null,"0142016","Håndv-Uforudset-Forbrugsmåler"]
[null,null,null,null,"017","Person sikring",null,"0142017","Håndv-Uforudset-Person sikring"]
[null,null,null,null,"018","Kabel TV",null,"0142018","Håndv-Uforudset-Kabel TV"]
[null,null,null,null,"019","Legeplads",null,"0142019","Håndv-Uforudset-Legeplads"]
[null,null,null,null,"020","Elevator/lift",null,"0142020","Håndv-Uforudset-Elevator/lift"]
[null,null,null,null,"021","Trådhegn",null,"0142021","Håndv-Uforudset-Trådhegn"]
[null,null,null,null,"022","Andet",null,"0142022","Håndv-Uforudset-Andet"]
[null,null,"3","Bygherreleverancer"]
[null,null,null,null,"001","Tekniske",null,"0143001","Håndv-Bygherrelev-Tekniske"]
[null,null,null,null,"002","CTS",null,"0143002","Håndv-Bygherrelev-CTS"]
[null,null,null,null,"003","Øvrige",null,"0143003","Håndv-Bygherrelev-Øvrige"]
[null,null,null,null,"004","IT - aktivt udstyr",null,"0143004","Håndv-Bygherrelev-IT-aktivt udstyr"]
[null,"5","Løst inventar"]
[null,null,"0","Rådighedsbeløb"]
[null,null,null,null,"888","Frigivet rådighedsbeløb",null,"0150888","Løst inv-Frigivet rådighedsbeløb"]
[null,null,"1","Indvendig leverancer"]
[null,null,null,null,"001","Møbler, borde, stole, reoler mv.",null,"0151001","Løst inv-Møbler, borde, stole, reoler mm."]
[null,null,null,null,"002","#IT - aktivt udstyr",null,"0151002","#Løst inv-IT-aktivt udstyr"]
[null,null,null,null,"003","Gardiner, indv.-solafskærmning mv.",null,"0151003","Løst inv-Gardiner, indv.-solafskræmning mm."]
[null,"6","Andre udgifter indenfor grunden"]
[null,null,"0","Rådighedsbeløb"]
[null,null,null,null,"888","Frigivet rådighedsbeløb",null,"0160888","Andre udg indenfor gr-Frigivet rådighedsbeløb"]
[null,null,"1","Udvendige leverancer"]
[null,null,null,null,"001","Reetablering/erstatningsarbejder",null,"0161001","Andre udg indenfor gr-Reetablering/erstatningsarbejder"]
[null,null,null,null,"002","Udearealer (så som beplantning, legeplads mm.))",null,"0161002","Andre udg indenfor gr-Udearealer (så som beplantning, legeplads mm.)"]
[null,"70","Andre udgifter udenfor grunden"]
[null,null,null,null,"888","Frigivet rådighedsbeløb",null,"0170888","Andre udenfor gr-Frigivet rådighedsbeløb"]
[null,null,null,null,"001","Infrastrukturelle ændringer",null,"0170001","Andre udg udenfor gr-Infrastrukturelle ændringer"]
[null,null,null,null,"002","Tekniske anlæg",null,"0170002","Andre udg udenfor gr-Tekniske anlæg"]
[null,"91","Tilskud"]
[null,null,null,null,888,"Frigivet rådighedsbeløb",null,"0190888","Tilskud-Frigivet rådighedsbeløb"]
[null,null,null,null,910,"Tilskud fra eksterne parter",null,"0190910","Tilskud - Eksterne parter"]
[null,null,null,null,920,"Fondstilskud (17,5%)",null,"0190920","Tilskud - Fonds (17,5%)"]
["03","Byggemodning"]
[null,"00","Rådighedsbeløb"]
[null,null,null,null,888,"Frigivet rådighedsbeløb",null,"0300888","Frigivet rådighedsbeløb"]
[null,null,null,null,"999","Ikke frigivet rådighedsbeløb",null,"0300999","Ikke frigivet rådighedsbeløb"]
[null,"01","Arealerhvervelse"]
[null,null,null,null,"001","Køb af arealer",null,"0301001","Arealerhv-Køb af arealer"]
[null,null,null,null,"002","Omkostninger ved køb",null,"0301002","Arealerhv-Omkostninger ved køb"]
[null,null,null,null,"003","Ekspropriation",null,"0301003","Arealerhv-Ekspropriation"]
[null,"03","Forundersøgelser"]
[null,null,null,null,"001",null,null,"0303001","Forundersøgelser"]
[null,"05","Projektering"]
[null,null,null,null,"001","Arkitekt/ingeniør",null,"0305001","Projektering-Arkitekt/ingeniør"]
[null,"07","Veje"]
[null,null,null,null,"001","Projektering",null,"0307001","Veje-Projektering"]
[null,null,null,null,"002","Entrepriser",null,"0307002","Veje-Entrepriser"]
[null,null,null,null,"003","Entrepriser, kloakandel",null,"0307003","Veje-Entrepriser, kloakandel"]
[null,null,null,null,"004","Regningsarbejder",null,"0307004","Veje-Regningsarbejder"]
[null,null,null,null,"005","Eget regi",null,"0307005","Veje-Eget regi"]
[null,null,null,null,"006","Vejbelysning",null,"0307006","Veje-Vejbelysning"]
[null,"09","Færdiggørelse"]
[null,null,null,null,"001","Slidlag, kantsten mm.",null,"0309001","Færdiggør-Slidlag, kantsten mm."]
[null,null,null,null,"002","Overkørsler",null,"0309002","Færdiggør-Overkørsler"]
[null,null,null,null,"003","Belysning",null,"0309003","Færdiggør-Belysning"]
[null,null,null,null,"009","Andet",null,"0309009","Færdiggør-Andet"]
[null,"11","Vejbidrag"]
[null,null,null,null,"000","Vejbidrag",null,"0311000","Vejbidrag"]
[null,"13","Kloakering"]
[null,null,null,null,"000","Kloakering",null,"0313000","Kloakering"]
[null,"15","Vandforsyning"]
[null,null,null,null,"000","Vandforsyning",null,"0315000","Vandforsyning"]
[null,"17","El"]
[null,null,null,null,"000","El",null,"0317000","El"]
[null,"19","Naturgas"]
[null,null,null,null,"000","Naturgas",null,"0319000","Naturgas"]
[null,"21","Fjernvarme"]
[null,null,null,null,"000","Fjernvarme",null,"0321000","Fjernvarme"]
[null,"23","Antenne"]
[null,null,null,null,"000","Antenne",null,"0323000","Antenne"]
[null,"25","Grønne områder"]
[null,null,null,null,"001","Entreprise",null,"0325001","Grønne omr-Entreprise"]
[null,null,null,null,"002","Regningsarbejder",null,"0325002","Grønne omr-Regningsarbejder"]
[null,null,null,null,"003","Eget regi",null,"0325003","Grønne omr-Eget regi"]
[null,"27","Omkostninger"]
[null,null,null,null,"001","Landinspektør",null,"0327001","Omk-Landinspektør"]
[null,null,null,null,"002","Museumsudgravninger",null,"0327002","Omk-Museumsudgravninger"]
[null,null,null,null,"003","PR. annoncering mm.",null,"0327003","Omk-PR. annoncering mm."]
[null,null,null,null,"004","Servituterstatning",null,"0327004","Omk-Servituterstatning"]
[null,null,null,null,"005","Jordbundsundersøgelser",null,"0327005","Omk-Jordbundsundersøgelser"]
[null,null,null,null,"009","Diverse",null,"0327009","Omk-Diverse"]
[null,"29","Eget regi"]
[null,null,null,null,"556","Administrationsvederlag",null,"0329556","Eget regi-Administrationsvederlag (udgift)"]
[null,"31","Andet"]
[null,null,null,null,"009","Andet",null,"0331009","Andet"]
[null,"33","Salgsindtægter"]
[null,null,null,null,"000","Salgsindtægter",null,"0333000","Salgsindtægter"]
["05","Infrastuktur"]
[null,"00","Rådighedsbeløb"]
[null,null,null,null,888,"Frigivet rådighedsbeløb",null,"0500888","Frigivet rådighedsbeløb"]
[null,null,null,null,"999","Ikke frigivet rådighedsbeløb",null,"0500999","Ikke frigivet rådighedsbeløb"]
[null,"01","Arealerhvervelse"]
[null,null,null,null,"001","Køb af arealer",null,"0501001","Arealerhv-Køb af areal"]
[null,null,null,null,"002","Landinspektør",null,"0501002","Arealerhv-Landinspektør"]
[null,null,null,null,"003","Ekspropriationsudgifter",null,"0501003","Arealerhv-Ekspropriationsudgifter"]
[null,null,null,null,"004","Erstatninger",null,"0501004","Arealerhv-Erstatninger"]
[null,"02","Projektering"]
[null,null,null,null,"001","Rådgivning",null,"0502001","Projektering-Rådgivning"]
[null,null,null,null,"002","Opmåling",null,"0502002","Projektering-Opmåling"]
[null,null,null,null,"556","Administrationsvederlag",null,"0502556","Projektering-Administrationsvederlag (udgift)"]
[null,"03","Entrepriser"]
[null,null,null,null,"000","Entrepriser",null,"0503000","Entrepriser"]
[null,"04","Eget regi"]
[null,null,null,null,"000","Eget regi",null,"0504000","Eget regi"]
[null,"05","Andet"]
[null,null,null,null,"009","Andet",null,"0505009","Andet"]
["06","Byfornyelse"]
[null,"00","Rådighedsbeløb"]
[null,null,null,null,888,"Frigivet rådighedsbeløb",null,"0600888","Frigivet rådighedsbeløb"]
[null,null,null,null,"999","Ikke frigivet rådighedsbeløb",null,"0600999","Ikke frigivet rådighedsbeløb"]
[null,"01","Administration"]
[null,null,null,null,"464","Øvrig transport",null,"0601464","Adm-Øvrig transport"]
[null,null,null,null,"540","Kontorhold",null,"0601540","Adm-Kontorhold"]
[null,null,null,null,"550","Møder",null,"0601550","Adm-Møder"]
[null,null,null,null,"552","Annoncer og informationsmateriale",null,"0601552","Adm-Annoncer og informationsmateriale"]
[null,null,null,null,"590","Tryksager",null,"0601590","Adm-Tryksager"]
[null,"02","Projektering"]
[null,null,null,null,"001","Program",null,"0602001","Projektering-Program"]
[null,null,null,null,"002","Rådgivning",null,"0602002","Projektering-Rådgivning"]
[null,null,null,null,"003","Konsulent",null,"0602003","Projektering-Konsulent"]
[null,null,null,null,"004","Forundersøgelser",null,"0602004","Projektering-Forundersøgelser"]
[null,null,null,null,"005","Arkitekt",null,"0602005","Forprojektering-Arkitekt"]
[null,null,null,null,"006","Ingeniør",null,"0602006","Forprojektering-Ingeniør"]
[null,null,null,null,null,null,null,"0600001","Skitse og projektering - Programfase"]
[null,null,null,null,null,null,null,"0600003","Skitse og projektering - Gennemførelsesfase"]
[null,null,null,null,null,null,null,"0600005","Skitse og projektering - Strategi mm."]
[null,"03","Grund/Bygningsudgifter"]
[null,null,null,null,"001","Køb af jord og bygninger",null,"0603001","Gr/byg.udg-Køb af jord og bygninger"]
[null,null,null,null,"002","Arealvedligehold",null,"0603002","Gr/byg.udg-Arealvedligehold"]
[null,null,null,null,"003","Udvendig bygning",null,"0603003","Gr/byg.udg-Udvendig bygning"]
[null,null,null,null,"004","Indvendig bygning",null,"0603004","Gr/byg.udg-Indvendig bygning"]
[null,"04","Forsyning"]
[null,null,null,null,"001","Vand",null,"0604001","Forsyning-Vand"]
[null,null,null,null,"002","El",null,"0604002","Forsyning-El"]
[null,null,null,null,"003","VVS",null,"0604003","Forsyning-VVS"]
[null,null,null,null,"004","Renovation",null,"0604004","Forsyning-Renovation"]
[null,null,null,null,"009","Skatter/afgifter",null,"0604009","Forsyning-Skatter/afgifter"]
[null,"05","Omkostninger"]
[null,null,null,null,"001","Konsulent",null,"0605001","Omk-Konsulent"]
[null,null,null,null,"002","Honorar",null,"0605002","Omk-Honorar"]
[null,null,null,null,"003","Omkostninger",null,"0605003","Omkostninger"]
[null,null,null,null,"004","Forsikring",null,"0605004","Omk-Forsikring"]
[null,null,null,null,"005","Belysning",null,"0605005","Omk-Belysning"]
[null,null,null,null,"006","Forureningsundersøgelser",null,"0605006","Omk-Forureningsundersøgelser"]
[null,null,null,null,"007","Jordbundsundersøgelser",null,"0605007","Omk-Jordbundsundersøgelser"]
[null,null,null,null,"008","Arkitekt",null,"0605008","Omk-Artiket"]
[null,null,null,null,"009","Ingeniør",null,"0605009","Omk-Ingeniør"]
[null,"06","Arrangementer og aktiviteter"]
[null,null,null,null,"000","Arrangementer og aktiviteter",null,"0606000","Arrangementer og aktiviteter"]
[null,"07","Udførsel"]
[null,null,null,null,"010","Totalrådgivning",null,"0607010","Udf.-Totalrådgivning"]
[null,null,null,null,"011","Ekstraarbejder, Totalrådgivning",null,"0607011","Udf.-Ekstraarbejder Totalrådgivning"]
[null,null,null,null,"020","Entreprise",null,"0607020","Udf.-Entreprise"]
[null,null,null,null,"021","Totalentreprise",null,"0607021","Udf.-Totalentreprise"]
[null,null,null,null,"030","Entreprenør",null,"0607030","Udt.-Entreprenør"]
[null,null,null,null,"031","Ekstraarbejder, Entreprenør",null,"0607031","Udf.-Ekstraarbejder Entreprenør"]
[null,null,null,null,"040","Rådgiver",null,"0607040","Udf.-Rådgiver"]
[null,null,null,null,"041","Ekstraarbejder, Rådgiver",null,"0607041","Udf.-Ekstraarbejder Rådgiver"]
[null,null,null,null,"050","Anlæg af vej/plads mm.",null,"0607050","Udf.-Anlæg af vej/plads mm."]
[null,null,null,null,"060","Bygherreleverancer",null,"0607060","Udf.-Bygherreleverancer"]
[null,null,null,null,"061","Øvrige bygherreudgifter",null,"0607061","Udf.-Øvrige bygherreudgifter"]
[null,"08","Kommunale udgifter"]
[null,null,null,null,"000","Kommunale udgifter",null,"0608000","Kommunale udgifter"]
[null,"09","Andet"]
[null,null,null,null,"000","Diverse omkostninger",null,"0609000","Andet-Diverse omkostninger"]
[null,null,null,null,null,null,null,"0607007","Andet-Diverse omkostninger"]
[null,"10","Overførsler"]
[null,null,null,null,"000","Tilskud/Overførsler til personer",null,"0610000","Overf.-Tilskud/Overførsler til personer"]
[null,"11","Generelt"]
[null,null,null,null,"001","Program",null,"0611001","Generelt-Program"]
[null,null,null,null,"002","Tryksager/Annoncer",null,"0611002","Generelt-Tryksager/Annoncer"]
[null,null,null,null,"003","Arrangement og aktiviteter",null,"0611003","Generelt-Arrangement og aktiviteter"]
[null,null,null,null,"004","Møder",null,"0611004","Generelt-Møder"]
[null,null,null,null,"005","Diverse omk.",null,"0611005","Generelt-Diverse omk."]
[null,null,null,null,"006","Konsulent/Rådgiver/Honorar",null,"0611006","Generelt-Konsulent/Rådgiver/Honorar"]
[null,null,null,null,"007","Øvrige bygherreudg.",null,"0611007","Generelt-Øvrige bygherreudg."]
[null,12,"Projektforslag/skitseprojekt"]
[null,null,null,null,"001",null,null,"0612001","Projektforsl/Skitsepr - Arkitekt"]
[null,null,null,null,"002","Arkitekt ekstra arbejder",null,"0612002","Projektforsl/Skitsepr - Arkitekt ekstra arbejder"]
[null,null,null,null,"003","Ingeniør",null,"0612003","Projektforsl/Skitsepr - Ingeniør"]
[null,null,null,null,"004","Ingeniør ekstra arbejder",null,"0612004","Projektforsl/Skitsepr - Ingeniør ekstra arbejder"]
[null,null,null,null,"005","Konsulent/Rådgiver",null,"0612005","Projektforsl/Skitsepr - Konsulent/Rådgiver"]
[null,null,null,null,"006","Forundersøgelser",null,"0612006","Projektforsl/Skitsepr - Forundersøgelser"]
[null,null,null,null,"007","Øvrige bygherreudgifter",null,"0612007","Projektforsl/Skitsepr - Øvrige bygherreudgifter"]
[null,13,"Detailprojekt"]
[null,null,null,null,"001","Arkitekt",null,"0613001","Detailpr - Arkitekt"]
[null,null,null,null,"002","Arkitekt ekstra arbejder",null,"0613002","Detailpr - Arkitekt ekstra arbejder"]
[null,null,null,null,"003","Ingeniør",null,"0613003","Detailpr - Ingeniør"]
[null,null,null,null,"004","Ingeniør ekstra arbejder",null,"0613004","Detailpr - Ingeniør ekstra arbejder"]
[null,null,null,null,"005","Konsulent/Rådgiver",null,"0613005","Detailpr - Konsulent/Rådgiver"]
[null,null,null,null,"006","Forundersøgelser",null,"0613006","Detailpr - Forundersøgelser"]
[null,null,null,null,"007","Øvrige bygherreudgifter",null,"0613007","Detailpr - Øvrige bygherreudgifter"]
[null,14,"Udførelse "]
[null,null,null,null,"001","Arkitekt",null,"0614001","Udførelse - Arkitekt"]
[null,null,null,null,"002","Arkitekt ekstra arbejder",null,"0614002","Udførelse - Arkitekt ekstra arbejder"]
[null,null,null,null,"003","Ingeniør",null,"0614003","Udførelse - Ingeniør"]
[null,null,null,null,"004","Ingeniør ekstra arbejder",null,"0614004","Udførelse - Ingeniør ekstra arbejder"]
[null,null,null,null,"005","Konsulent/Rådgiver",null,"0614005","Udførelse - Konsulent/Rådgiver"]
[null,null,null,null,"006","Entreprenør",null,"0614006","Udførelse - Entreprenør"]
[null,null,null,null,"007","Entreprenør ekstra arbejder",null,"0614007","Udførelse - Entreprenør ekstra arbejder"]
[null,null,null,null,"008","Bygherreleverance",null,"0614008","Udførelse - Bygherreleverance"]
[null,null,null,null,"009","Øvrige bygherreudgifter",null,"0614009","Udførelse - Øvrige bygherreudgifter"]
[]
[null,"80","Betaling andre offentlige myndigheder"]
[null,null,null,null,"800","Betaling til og fra andre offentlige myndigheder",null,"0680800","Betaling til og fra andre offentlige myndigheder"]
[null,null,null,null,"900","Refusion fra staten",null,"0680900","Refusion fra staten"]
[null,"91","Tilskud"]
[null,null,null,null,910,"Tilskud fra eksterne parter",null,"0691910","Tilskud - Eksterne parter"]
[null,null,null,null,920,"Fondstilskud (17,5%)",null,"0691920","Tilskud - Fonds (17,5%)"]
[null,"95","Eget regi"]
[null,null,null,null,"000","Løn-Refusion administrationsudgifter",null,"0695000","Eget regi-Løn-refusion administrationsudgifter"]
[null,null,null,null,"556","Administrationsvederlag",null,"0695556","Eget regi-Administrationsvederlag (udgift)"]
[]
["07","Øvrige"]
[null,"00","Rådighedsbeløb"]
[null,null,null,null,888,"Frigivet rådighedsbeløb",null,"0700888","Frigivet rådighedsbeløb"]
[null,null,null,null,"999","Ikke frigivet rådighedsbeløb",null,"0700999","Ikke frigivet rådighedsbeløb"]
[null,"01","Erstatninger"]
[null,null,null,null,"000","Erstatninger",null,"0701000","Erstatninger"]
[null,"02","Projektledelse"]
[null,null,null,null,"000",null,null,"0702000","Projektledelse"]
[null,"50","Udgifter vedr. kerneydelser"]
[null,null,null,null,"500","Kerneydelse-Materialer",null,"0750500","Kerneydelse-Materialer"]
[null,null,null,null,"520","Kerneydelse-Aktiviteter",null,"0750520","Kerneydelse-Aktiviteter"]
[null,null,null,null,"534","Kerneydelse-Møde vedr. aktiviteter (eksterne)",null,"0750534","Kerneydelse-Møde vedr. aktiviteter (eksterne)"]
[null,null,null,null,"538","Kerneydelse-Øvrige udgifter",null,"0750538","Kerneydelse-Øvrige udgifter"]
[null,"54","Administration"]
[null,null,null,null,"550","Administration-Møder (interne)",null,"0754550","Administration-Møder (interne)"]
[null,null,null,null,"556","Administrationsvederlag (udgift)",null,"0754556","Administrationsvederlag (udgift)"]
[null,"58","Ekstern bistand"]
[null,null,null,null,"580","Ekstern bistand-Revision",null,"0758580","Ekstern bistand-Revision"]
[null,null,null,null,"582","Ekstern bistand-Advokat",null,"0758582","Ekstern bistand-Advokat"]
[null,null,null,null,"588","Ekstern bistand-Øvrig konsulentbistand",null,"0758588","Ekstern bistand-Øvrig konsulentbistand"]
[null,"65","Hardware"]
[null,null,null,null,"994","Hardware",null,"0765994","Hardware"]
[null,"66","Software"]
[null,null,null,null,"994","Software",null,"0766994","Software"]
[null,"90","Indtægter"]
[null,null,null,null,"910","Tilskud-Eksterne parter",null,"0790910","Tilskud-Eksterne parter"]
[null,null,null,null,"920","Tilskud-Fonds (17,5%)",null,"0790920","Tilskud-Fonds (17,5%)"]

{"sheet":"Opdatering af opslagsværk","index":5,"n_rows":6,"n_cols":2,"rows_kept":6,"cut":false,"hidden":false,"merged":[[0,0,1,1]]}
["Opdateringer\nHerunder fremgår seneste ændringer af opslagsværket. "]
[]
["Dato","Beskrivelse"]
["2023-04-19","Diverse korrekturrettelser i teksten"]
["2023-03-02","Ny tværgående dimension under personaleudgifter: 4446480 Personaleudgifter - Pers.relateret udlæg"]
["2022-10-25","Ny tværgående dimension under anlæg: 0113004 - Gr-Klarg-Genhusning"]

{"sheet":"Formål_1","index":6,"n_rows":27,"n_cols":4,"rows_kept":27,"cut":false,"hidden":true,"merged":[]}
["Formål 1","Formål 2",null,"Formål 1"]
["20: Overførselsudgifter","20: Forsørgelse",null,"20: Overførselsudgifter"]
["20: Overførselsudgifter","22: Indsatser",null,"30: Puljer mv."]
["20: Overførselsudgifter","24: Øvrige",null,"40: Løn"]
["30: Puljer mv.","30: Overførte beløb/reduktion/omstilling",null,"44: Personaleudgifter"]
["30: Puljer mv.","32: Puljer til senere udmøntning",null,"48: Pensionerede tjenestemænd"]
["40: Løn","40: Lønninger",null,"50: Materiale- og aktivitetsudgifter"]
["40: Løn","42: Lønrefusioner",null,"60: Kapacitetsudgifter"]
["44: Personaleudgifter","44: Uddannelse",null,"70: Grunde og bygninger"]
["44: Personaleudgifter","46: Øvrige personaleudgifter",null,"80: Betaling andre offentlige myndigheder"]
["48: Pensionerede tjenestemænd","48: Tjenestemandspensioner",null,"90: Indtægter"]
["50: Materiale- og aktivitetsudgifter","50: Udgifter vedr. kerneydelser"]
["50: Materiale- og aktivitetsudgifter","54: Administration"]
["50: Materiale- og aktivitetsudgifter","58: Ekstern bistand"]
["60: Kapacitetsudgifter","60: Inventar"]
["60: Kapacitetsudgifter","61: Transportmidler (biler m.v.)"]
["60: Kapacitetsudgifter","62: Maskiner og materiel"]
["60: Kapacitetsudgifter","63: Tekniske anlæg"]
["60: Kapacitetsudgifter","65: Hardware og IT-infrastruktur"]
["60: Kapacitetsudgifter","66: Software / Øvrig IT"]
["70: Grunde og bygninger","70: Vedligeholdelse"]
["70: Grunde og bygninger","72: Lejeudgifter"]
["70: Grunde og bygninger","74: Lejeindtægter"]
["70: Grunde og bygninger","76: Drift"]
["80: Betaling andre offentlige myndigheder","80: Betaling andre offentlige myndigheder"]
["90: Indtægter","90: Salgsindtægter"]
["90: Indtægter","91: Tilskud"]

{"sheet":"Formål_2","index":7,"n_rows":136,"n_cols":11,"rows_kept":136,"cut":false,"hidden":true,"merged":[]}
["Formål 2","Formål 3",null,"Formål 2"]
["20: Forsørgelse","200: Overførs.udg.-Forsørgelse - Forsørgelse",null,"20: Forsørgelse",null,null,null,null,null,null,{"$f":"LEFT(I2,3)&MID(M2,8,999)","v":""}]
["20: Forsørgelse","202: Overførs.udg.-Forsørgelse - Løntilskud",null,"22: Indsatser"]
["20: Forsørgelse","204: Overførs.udg.-Forsørgelse - Medfinansiering",null,"24: Øvrige"]
["22: Indsatser","220: Overførs.udg.-Indsatser",null,"30: Overførte beløb/reduktion/omstilling"]
["24: Øvrige","240: Overførs.udg.-Øvrige",null,"32: Puljer til senere udmøntning"]
["30: Overførte beløb/reduktion/omstilling","300: Pulje mv. - Overført over-/underskud",null,"40: Lønninger"]
["30: Overførte beløb/reduktion/omstilling","310: Pulje mv. - Reduktion/omstilling",null,"42: Lønrefusioner"]
["30: Overførte beløb/reduktion/omstilling","320: Pulje mv. - Politisk til prioritering",null,"44: Uddannelse"]
["32: Puljer til senere udmøntning","320: Pulje mv. - Flexjob",null,"46: Øvrige personaleudgifter"]
["32: Puljer til senere udmøntning","322: Pulje mv. - Barsel",null,"48: Tjenestemandspensioner"]
["32: Puljer til senere udmøntning","324: Pulje mv. - Lederløn",null,"50: Udgifter vedr. kerneydelser"]
["32: Puljer til senere udmøntning","326: Pulje mv. - Løn til personale",null,"54: Administration"]
["32: Puljer til senere udmøntning","328: Pulje mv. - Øvrige",null,"58: Ekstern bistand"]
["40: Lønninger","400: Løn - Personale",null,"60: Inventar"]
["40: Lønninger","402: Løn - Pensionsforsikringspræmier",null,"61: Transportmidler (biler m.v.)"]
["40: Lønninger","406: Løn - Vikarudgifter/Vikarbureau",null,"62: Maskiner og materiel"]
["40: Lønninger","490: Løn - Overførte lønninger (udgift)",null,"63: Tekniske anlæg"]
["40: Lønninger","492: Løn - Overførte lønninger (indtægt)",null,"65: Hardware og IT-infrastruktur"]
["40: Lønninger","972: Løn - Feriepengeforpligtigelser",null,"66: Software / Øvrig IT"]
["42: Lønrefusioner","420: Lønrefusion - Barsel",null,"70: Vedligeholdelse"]
["42: Lønrefusioner","422: Lønrefusion - Sygedagpenge",null,"72: Lejeudgifter"]
["42: Lønrefusioner","424: Lønrefusion - Flexjob",null,"74: Lejeindtægter"]
["42: Lønrefusioner","426: Lønrefusion - Øvrige",null,"76: Drift"]
["42: Lønrefusioner","428: Lønrefusion - VEU godtgørelse",null,"80: Betaling andre offentlige myndigheder"]
["44: Uddannelse","440: Personaleudgifter - Uddannelse og kurser",null,"90: Salgsindtægter"]
["46: Øvrige personaleudgifter","460: Personaleudgifter - Beklædning",null,"91: Tilskud"]
["46: Øvrige personaleudgifter","462: Personaleudgifter - Befordringsgodtgørelse (overf. Fra SD)"]
["46: Øvrige personaleudgifter","464: Personaleudgifter - Øvrig transport"]
["46: Øvrige personaleudgifter","466: Personaleudgifter - Udlandsrejser"]
["46: Øvrige personaleudgifter","468: Personaleudgifter - Repræsentation"]
["46: Øvrige personaleudgifter","470: Personaleudgifter - Rekruttering (annoncering, m.v.)"]
["46: Øvrige personaleudgifter","472: Personaleudgifter - Øvrige personalerelaterede udgifter"]
["46: Øvrige personaleudgifter","474: Personaleudgifter - Personaleaktiviteter"]
["46: Øvrige personaleudgifter","480: Personaleudgifter - Pers.relateret udlæg"]
["46: Øvrige personaleudgifter","980: Personaleudgifter - Forsikringspræmier"]
["46: Øvrige personaleudgifter","982: Personaleudgifter - Forsikringsskader"]
["46: Øvrige personaleudgifter","984: Personaleudgifter - Risikostyring/forebyggelse"]
["48: Tjenestemandspensioner","480: Tjenestemandspensioner og -forpligtelser"]
["50: Udgifter vedr. kerneydelser","500: Kerneydelse - Materialer"]
["50: Udgifter vedr. kerneydelser","502: Kerneydelse - Undervisningsmidler"]
["50: Udgifter vedr. kerneydelser","504: Kerneydelse - Beskæftigelsesmaterialer"]
["50: Udgifter vedr. kerneydelser","506: Kerneydelse - Sygeplejeartikler"]
["50: Udgifter vedr. kerneydelser","520: Kerneydelse - Aktiviteter"]
["50: Udgifter vedr. kerneydelser","522: Kerneydelse - Elevaktiviteter"]
["50: Udgifter vedr. kerneydelser","530: Kerneydelse - Sundhedsmæssig foranstaltning"]
["50: Udgifter vedr. kerneydelser","531: Kerneydelse - Værnemidler indkøbt uden om KVIK"]
["50: Udgifter vedr. kerneydelser","532: Kerneydelse - Transport"]
["50: Udgifter vedr. kerneydelser","538: Kerneydelse - Øvrige udgifter"]
["54: Administration","540: Administration - Kontorhold"]
["54: Administration","542: Administration - Kontingenter/abonnementer"]
["54: Administration","544: Administration - Telefon"]
["54: Administration","548: Administration - Porto"]
["54: Administration","550: Administration - Forplejning - Møder"]
["54: Administration","552: Administration - Annoncer og informationsmateriale"]
["54: Administration","554: Administration - Gebyrer"]
["54: Administration","556: Administration - Administrationsvederlag (udgift)"]
["58: Ekstern bistand","580: Ekstern bistand - Revision"]
["58: Ekstern bistand","582: Ekstern bistand - Advokat"]
["58: Ekstern bistand","584: Ekstern bistand - Tolk"]
["58: Ekstern bistand","586: Ekstern bistand - Lægeerklæringer (for borgere)"]
["58: Ekstern bistand","588: Ekstern bistand - Øvrig konsulentbistand"]
["58: Ekstern bistand","589: Ekstern bistand-Honorar"]
["60: Inventar","600: Inventar - Drift og vedligeholdelse"]
["60: Inventar","980: Inventar-Forsikringspræmier"]
["60: Inventar","982: Inventra-Forsikringsskader"]
["60: Inventar","990: Inventar - Leasing"]
["60: Inventar","992: Inventar - Køb over 100.000 kr."]
["60: Inventar","994: Inventar - Køb under 100.000 kr."]
["60: Inventar","996: Inventar - Forrentning"]
["60: Inventar","998: Inventar - Afskrivning"]
["61: Transportmidler (biler m.v.)","600: Transportmidler (biler mv) - Drift og vedligeholdelse"]
["61: Transportmidler (biler m.v.)","980: Transportmidler (biler mv) - Forsikringspræmier"]
["61: Transportmidler (biler m.v.)","982: Transportmidler (biler mv) - Forsikringsskader"]
["61: Transportmidler (biler m.v.)","990: Transportmidler (biler mv) - Leasing"]
["61: Transportmidler (biler m.v.)","992: Transportmidler (biler mv) - Køb over 100.000 kr."]
["61: Transportmidler (biler m.v.)","994: Transportmidler (biler mv) - Køb under 100.000 kr."]
["61: Transportmidler (biler m.v.)","996: Transportmidler (biler mv) - Forrentning"]
["61: Transportmidler (biler m.v.)","998: Transportmidler (biler mv) - Afskrivning"]
["62: Maskiner og materiel","600: Maskin/materiel - Drift og vedligeholdelse"]
["62: Maskiner og materiel","980: Maskin/materiel - Forsikringspræmier"]
["62: Maskiner og materiel","982: Maskin/materiel - Forsikringsskader"]
["62: Maskiner og materiel","990: Maskin/materiel - Leasing"]
["62: Maskiner og materiel","992: Maskin/materiel - Køb over 100.000 kr."]
["62: Maskiner og materiel","994: Maskin/materiel - Køb under 100.000 kr."]
["62: Maskiner og materiel","996: Maskin/materiel - Forrentning"]
["62: Maskiner og materiel","998: Maskin/materiel - Afskrivning"]
["63: Tekniske anlæg","600: Tekniske anlæg - Drift og vedligeholdelse"]
["63: Tekniske anlæg","980: Tekniske anlæg - Forsikringspræmier"]
["63: Tekniske anlæg","982: Tekniske anlæg - Forsikringsskader"]
["63: Tekniske anlæg","990: Tekniske anlæg - Leasing"]
["63: Tekniske anlæg","992: Tekniske anlæg - Køb over 100.000 kr."]
["63: Tekniske anlæg","994: Tekniske anlæg - Køb under 100.000 kr."]
["63: Tekniske anlæg","996: Tekniske anlæg - Forrentning"]
["63: Tekniske anlæg","998: Tekniske anlæg - Afskrivning"]
["65: Hardware og IT-infrastruktur","600: Hardware/IT-infrastruktur - Drift og vedligeholdelse"]
["65: Hardware og IT-infrastruktur","980: Hardware/IT-infrastruktur - Forsikringspræmier"]
["65: Hardware og IT-infrastruktur","990: Hardware/IT-infrastruktur - Leasing"]
["65: Hardware og IT-infrastruktur","992: Hardware/IT-infrastruktur - Køb over 100.000 kr."]
["65: Hardware og IT-infrastruktur","994: Hardware/IT-infrastruktur - Køb under 100.000 kr."]
["65: Hardware og IT-infrastruktur","996: Hardware/IT-infrastruktur - Forrentning"]
["65: Hardware og IT-infrastruktur","998: Hardware/IT-infrastruktur - Afskrivning"]
["66: Software / Øvrig IT","600: Software/Øvrig IT - Drift og vedligeholdelse (egne systemer)"]
["66: Software / Øvrig IT","602: Software/Øvrig IT - Udgift vedr. hostede IT-systemer"]
["66: Software / Øvrig IT","630: Software/Øvrig IT - Kommunikation (linjer mv)"]
["66: Software / Øvrig IT","992: Software/Øvrig IT - Køb over 100.000 kr."]
["66: Software / Øvrig IT","994: Software/Øvrig IT - Køb under 100.000 kr."]
["70: Vedligeholdelse","700: Grund/Bygning-Vedligehold-Udenomsarealer"]
["70: Vedligeholdelse","702: Grund/Bygning-Vedligehold -Serviceabonnementer"]
["70: Vedligeholdelse","704: Grund/Bygning-Vedligehold-Indvendig"]
["70: Vedligeholdelse","706: Grund/Bygning-Vedligehold-Udvendig "]
["70: Vedligeholdelse","710: Grund/Bygning-Vedligehold-Udvendig (KUN til PTM)"]
["70: Vedligeholdelse","712: Grund/Bygning-Vedl.hold-Energibespar (KUN til PTM)"]
["72: Lejeudgifter","720: Grund/Bygning-Lejeudg. intern udlejer"]
["72: Lejeudgifter","722: Grund/Bygning-Lejeudg. ekstern udlejer"]
["74: Lejeindtægter","740: Grund/Bygning-Lejeindt. (intern udlejning)"]
["74: Lejeindtægter","742: Grund/Bygning-Lejeindt.-(ekstern udlejning)"]
["76: Drift","760: Grund/Bygning - Ejendomsskat"]
["76: Drift","762: Grund/Bygning - Vand inkl. spildevandsafledning (forbrugsafg)"]
["76: Drift","764: Grund/Bygning - Renovation (forbrugsafg)"]
["76: Drift","766: Grund/Bygning - Opvarmning"]
["76: Drift","768: Grund/Bygning - El"]
["76: Drift","770: Grund/Bygning - Adgangskontrol/tyverialarmer"]
["76: Drift","772: Grund/Bygning - Solcelleanlæg"]
["76: Drift","970: Grund/Bygning - Rengøring"]
["76: Drift","980: Grund/Bygning - Forsikringspræmier"]
["76: Drift","982: Grund/Bygning-Forsikringsskader"]
["76: Drift","996: Grund/Bygning - Forrentning"]
["76: Drift","998: Grund/Bygning - Afskrivning"]
["80: Betaling andre offentlige myndigheder","800: Betaling til og fra andre offentlige myndighed"]
["90: Salgsindtægter","900: Indtægter - Salg af kerneydelser (ekstern)"]
["90: Salgsindtægter","902: Indtægter - Administrationsvederlag"]
["90: Salgsindtægter","904: Indtægter - Salg af øvrige ydelser (ekstern)"]
["90: Salgsindtægter","908: Indtægter - Internt salg"]
["91: Tilskud","910: Tilskud - Eksterne parter"]
["91: Tilskud","920: Tilskud - Fonds (17,5%)"]

{"sheet":"Formål_3","index":8,"n_rows":136,"n_cols":4,"rows_kept":136,"cut":false,"hidden":true,"merged":[]}
["Formål 3","Tværgående Dimension",null,"Formål 3"]
["200: Overførs.udg.-Forsørgelse - Forsørgelse","2020200: Overførs.udg.-Forsørgelse - Forsørgelse",null,"200: Overførs.udg.-Forsørgelse - Forsørgelse"]
["202: Overførs.udg.-Forsørgelse - Løntilskud","2020202: Overførs.udg.-Forsørgelse - Løntilskud",null,"202: Overførs.udg.-Forsørgelse - Løntilskud"]
["204: Overførs.udg.-Forsørgelse - Medfinansiering","2020204: Overførs.udg.-Forsørgelse - Medfinansiering",null,"204: Overførs.udg.-Forsørgelse - Medfinansiering"]
["220: Overførs.udg.-Indsatser","2022220: Overførs.udg.-Indsatser",null,"220: Overførs.udg.-Indsatser"]
["240: Overførs.udg.-Øvrige","2024240: Overførs.udg.-Øvrige",null,"240: Overførs.udg.-Øvrige"]
["300: Pulje mv. - Overført over-/underskud","3030300: Pulje mv. - Overført over-/underskud",null,"300: Pulje mv. - Overført over-/underskud"]
["310: Pulje mv. - Reduktion/omstilling","3030310: Pulje mv. - Reduktion/omstilling",null,"310: Pulje mv. - Reduktion/omstilling"]
["320: Pulje mv. - Flexjob","3032320: Pulje mv. - Flexjob",null,"320: Pulje mv. - Politisk til prioritering"]
["320: Pulje mv. - Politisk til prioritering","3030320: Pulje mv. - Politisk til prioritering",null,"320: Pulje mv. - Flexjob"]
["322: Pulje mv. - Barsel","3032322: Pulje mv. - Barsel",null,"322: Pulje mv. - Barsel"]
["324: Pulje mv. - Lederløn","3032324: Pulje mv. - Lederløn",null,"324: Pulje mv. - Lederløn"]
["326: Pulje mv. - Løn til personale","3032326: Pulje mv. - Løn til personale",null,"326: Pulje mv. - Løn til personale"]
["328: Pulje mv. - Øvrige","3032328: Pulje mv. - Øvrige",null,"328: Pulje mv. - Øvrige"]
["400: Løn - Personale","4040400: Løn - Personale",null,"400: Løn - Personale"]
["402: Løn - Pensionsforsikringspræmier","4040402: Løn - Pensionsforsikringspræmier",null,"402: Løn - Pensionsforsikringspræmier"]
["406: Løn - Vikarudgifter/Vikarbureau","4040406: Løn - Vikarudgifter/Vikarbureau",null,"406: Løn - Vikarudgifter/Vikarbureau"]
["420: Lønrefusion - Barsel","4042420: Lønrefusion - Barsel",null,"490: Løn - Overførte lønninger (udgift)"]
["422: Lønrefusion - Sygedagpenge","4042422: Lønrefusion - Sygedagpenge",null,"492: Løn - Overførte lønninger (indtægt)"]
["424: Lønrefusion - Flexjob","4042424: Lønrefusion - Flexjob",null,"972: Løn - Feriepengeforpligtigelser"]
["426: Lønrefusion - Øvrige","4042426: Lønrefusion - Øvrige",null,"420: Lønrefusion - Barsel"]
["428: Lønrefusion - VEU godtgørelse","4042428: Lønrefusion - VEU godtgørelse",null,"422: Lønrefusion - Sygedagpenge"]
["440: Personaleudgifter - Uddannelse og kurser","4444440: Personaleudgifter - Uddannelse og kurser",null,"424: Lønrefusion - Flexjob"]
["460: Personaleudgifter - Beklædning","4446460: Personaleudgifter - Beklædning",null,"426: Lønrefusion - Øvrige"]
["462: Personaleudgifter - Befordringsgodtgørelse (overf. Fra SD)","4446462: Personaleudgifter - Befordringsgodtgørelse (overf. Fra SD)",null,"428: Lønrefusion - VEU godtgørelse"]
["464: Personaleudgifter - Øvrig transport","4446464: Personaleudgifter - Øvrig transport",null,"440: Personaleudgifter - Uddannelse og kurser"]
["466: Personaleudgifter - Udlandsrejser","4446466: Personaleudgifter - Udlandsrejser",null,"460: Personaleudgifter - Beklædning"]
["468: Personaleudgifter - Repræsentation","4446468: Personaleudgifter - Repræsentation",null,"462: Personaleudgifter - Befordringsgodtgørelse (overf. Fra SD)"]
["470: Personaleudgifter - Rekruttering (annoncering, m.v.)","4446470: Personaleudgifter - Rekruttering (annoncering, m.v.)",null,"464: Personaleudgifter - Øvrig transport"]
["472: Personaleudgifter - Øvrige personalerelaterede udgifter","4446472: Personaleudgifter - Øvrige personalerelaterede udgifter",null,"466: Personaleudgifter - Udlandsrejser"]
["474: Personaleudgifter - Personaleaktiviteter","4446474: Personaleudgifter - Personaleaktiviteter",null,"468: Personaleudgifter - Repræsentation"]
["480: Tjenestemandspensioner og -forpligtelser","4848480: Tjenestemandspensioner og -forpligtelser",null,"470: Personaleudgifter - Rekruttering (annoncering, m.v.)"]
["490: Løn - Overførte lønninger (udgift)","4040490: Løn - Overførte lønninger (udgift)",null,"472: Personaleudgifter - Øvrige personalerelaterede udgifter"]
["492: Løn - Overførte lønninger (indtægt)","4040492: Løn - Overførte lønninger (indtægt)",null,"474: Personaleudgifter - Personaleaktiviteter"]
["500: Kerneydelse - Materialer","5050500: Kerneydelse - Materialer",null,"980: Personaleudgifter - Forsikringspræmier"]
["502: Kerneydelse - Undervisningsmidler","5050502: Kerneydelse - Undervisningsmidler",null,"982: Personaleudgifter - Forsikringsskader"]
["504: Kerneydelse - Beskæftigelsesmaterialer","5050504: Kerneydelse - Beskæftigelsesmaterialer",null,"984: Personaleudgifter - Risikostyring/forebyggelse"]
["506: Kerneydelse - Sygeplejeartikler","5050506: Kerneydelse - Sygeplejeartikler",null,"480: Tjenestemandspensioner og -forpligtelser"]
["520: Kerneydelse - Aktiviteter","5050520: Kerneydelse - Aktiviteter",null,"500: Kerneydelse - Materialer"]
["522: Kerneydelse - Elevaktiviteter","5050522: Kerneydelse - Elevaktiviteter",null,"502: Kerneydelse - Undervisningsmidler"]
["530: Kerneydelse - Sundhedsmæssig foranstaltning","5050530: Kerneydelse - Sundhedsmæssig foranstaltning",null,"504: Kerneydelse - Beskæftigelsesmaterialer"]
["531: Kerneydelse - Værnemidler indkøbt uden om KVIK","5050531: Kerneydelse - Værnemidler indkøbt uden om KVIK",null,"506: Kerneydelse - Sygeplejeartikler"]
["532: Kerneydelse - Transport","5050532: Kerneydelse - Transport",null,"520: Kerneydelse - Aktiviteter"]
[null,null,null,"522: Kerneydelse - Elevaktiviteter"]
["538: Kerneydelse - Øvrige udgifter","5050538: Kerneydelse - Øvrige udgifter",null,"530: Kerneydelse - Sundhedsmæssig foranstaltning"]
["540: Administration - Kontorhold","5054540: Administration - Kontorhold",null,"532: Kerneydelse - Transport"]
["542: Administration - Kontingenter/abonnementer","5054542: Administration - Kontingenter/abonnementer",null,"534: Kerneydelse - Møder aktiviteter (med eksterne) UDGÅR 31-12-2020"]
["544: Administration - Telefon","5054544: Administration - Telefon",null,"538: Kerneydelse - Øvrige udgifter"]
["548: Administration - Porto","5054548: Administration - Porto",null,"540: Administration - Kontorhold"]
["550: Administration - Forplejning - Møder","5554550: Administration - Forplejning - Møder",null,"542: Administration - Kontingenter/abonnementer"]
["552: Administration - Annoncer og informationsmateriale","5054552: Administration - Annoncer og informationsmateriale",null,"544: Administration - Telefon"]
["554: Administration - Gebyrer","5054554: Administration - Gebyrer",null,"548: Administration - Porto"]
["556: Administration - Administrationsvederlag (udgift)","5054556: Administration - Administrationsvederlag (udgift)",null,"550: Administration - Forplejning - Møder"]
["580: Ekstern bistand - Revision","5058580: Ekstern bistand - Revision",null,"552: Administration - Annoncer og informationsmateriale"]
["582: Ekstern bistand - Advokat","5058582: Ekstern bistand - Advokat",null,"554: Administration - Gebyrer"]
["584: Ekstern bistand - Tolk","5058584: Ekstern bistand - Tolk",null,"556: Administration - Administrationsvederlag (udgift)"]
["586: Ekstern bistand - Lægeerklæringer (for borgere)","5058586: Ekstern bistand - Lægeerklæringer (for borgere)",null,"580: Ekstern bistand - Revision"]
["588: Ekstern bistand - Øvrig konsulentbistand","5058588: Ekstern bistand - Øvrig konsulentbistand",null,"582: Ekstern bistand - Advokat"]
["589: Ekstern bistand-Honorar","5058589: Ekstern bistand-Honorar",null,"584: Ekstern bistand - Tolk"]
["600: Hardware/IT-infrastruktur - Drift og vedligeholdelse","6065600: Hardware/IT-infrastruktur - Drift og vedligeholdelse",null,"586: Ekstern bistand - Lægeerklæringer (for borgere)"]
["600: Inventar - Drift og vedligeholdelse","6060600: Inventar - Drift og vedligeholdelse",null,"588: Ekstern bistand - Øvrig konsulentbistand"]
["600: Maskin/materiel - Drift og vedligeholdelse","6062600: Maskin/materiel - Drift og vedligeholdelse",null,"589: Ekstern bistand-Honorar"]
["600: Software/Øvrig IT - Drift og vedligeholdelse (egne systemer)","6066600: Software/Øvrig IT - Drift og vedligeholdelse (egne systemer)",null,"600: Inventar - Drift og vedligeholdelse"]
["600: Tekniske anlæg - Drift og vedligeholdelse","6063600: Tekniske anlæg - Drift og vedligeholdelse",null,"980: Inventar-Forsikringspræmier"]
["600: Transportmidler (biler mv) - Drift og vedligeholdelse","6061600: Transportmidler (biler mv) - Drift og vedligeholdelse",null,"982: Inventra-Forsikringsskader"]
["602: Software/Øvrig IT - Udgift vedr. hostede IT-systemer","6066602: Software/Øvrig IT - Udgift vedr. hostede IT-systemer",null,"990: Inventar - Leasing"]
["630: Software/Øvrig IT - Kommunikation (linjer mv)","6066630: Software/Øvrig IT - Kommunikation (linjer mv)",null,"992: Inventar - Køb over 100.000 kr."]
["700: Grund/Bygning-Vedligehold-Udenomsarealer","7070700: Grund/Bygning-Vedligehold-Udenomsarealer",null,"994: Inventar - Køb under 100.000 kr."]
["702: Grund/Bygning-Vedligehold -Serviceabonnementer","7070702: Grund/Bygning-Vedligehold -Serviceabonnementer",null,"996: Inventar - Forrentning"]
["704: Grund/Bygning-Vedligehold-Indvendig","7070704: Grund/Bygning-Vedligehold-Indvendig",null,"998: Inventar - Afskrivning"]
["706: Grund/Bygning-Vedligehold-Udvendig ","7070706: Grund/Bygning-Vedligehold-Udvendig ",null,"600: Transportmidler (biler mv) - Drift og vedligeholdelse"]
["710: Grund/Bygning-Vedligehold-Udvendig (KUN til PTM)","7070710: Grund/Bygning-Vedligehold-Udvendig (KUN til PTM)",null,"980: Transportmidler (biler mv) - Forsikringspræmier"]
["712: Grund/Bygning-Vedl.hold-Energibespar (KUN til PTM)","7070712: Grund/Bygning-Vedl.hold-Energibespar (KUN til PTM)",null,"982: Transportmidler (biler mv) - Forsikringsskader"]
["720: Grund/Bygning-Lejeudg. intern udlejer","7072720: Grund/Bygning-Lejeudg. intern udlejer",null,"990: Transportmidler (biler mv) - Leasing"]
["722: Grund/Bygning-Lejeudg. ekstern udlejer","7072722: Grund/Bygning-Lejeudg. ekstern udlejer",null,"992: Transportmidler (biler mv) - Køb over 100.000 kr."]
["740: Grund/Bygning-Lejeindt. (intern udlejning)","7074740: Grund/Bygning-Lejeindt. (intern udlejning)",null,"994: Transportmidler (biler mv) - Køb under 100.000 kr."]
["742: Grund/Bygning-Lejeindt.-(ekstern udlejning)","7074742: Grund/Bygning-Lejeindt.-(ekstern udlejning)",null,"996: Transportmidler (biler mv) - Forrentning"]
["760: Grund/Bygning - Ejendomsskat","7076760: Grund/Bygning - Ejendomsskat",null,"998: Transportmidler (biler mv) - Afskrivning"]
["762: Grund/Bygning - Vand inkl. spildevandsafledning (forbrugsafg)","7076762: Grund/Bygning - Vand inkl. spildevandsafledning (forbrugsafg)",null,"600: Maskin/materiel - Drift og vedligeholdelse"]
["764: Grund/Bygning - Renovation (forbrugsafg)","7076764: Grund/Bygning - Renovation (forbrugsafg)",null,"980: Maskin/materiel - Forsikringspræmier"]
["766: Grund/Bygning - Opvarmning","7076766: Grund/Bygning - Opvarmning",null,"982: Maskin/materiel - Forsikringsskader"]
["768: Grund/Bygning - El","7076768: Grund/Bygning - El",null,"990: Maskin/materiel - Leasing"]
["770: Grund/Bygning - Adgangskontrol/tyverialarmer","7076770: Grund/Bygning - Adgangskontrol/tyverialarmer",null,"992: Maskin/materiel - Køb over 100.000 kr."]
["772: Grund/Bygning - Solcelleanlæg","7076772: Grund/Bygning - Solcelleanlæg",null,"994: Maskin/materiel - Køb under 100.000 kr."]
["800: Betaling til og fra andre offentlige myndighed","8080800: Betaling til og fra andre offentlige myndighed",null,"996: Maskin/materiel - Forrentning"]
["900: Indtægter - Salg af kerneydelser (ekstern)","9090900: Indtægter - Salg af kerneydelser (ekstern)",null,"998: Maskin/materiel - Afskrivning"]
["902: Indtægter - Administrationsvederlag","9090902: Indtægter - Administrationsvederlag",null,"600: Tekniske anlæg - Drift og vedligeholdelse"]
["904: Indtægter - Salg af øvrige ydelser (ekstern)","9090904: Indtægter - Salg af øvrige ydelser (ekstern)",null,"980: Tekniske anlæg - Forsikringspræmier"]
["908: Indtægter - Internt salg","9090908: Indtægter - Internt salg",null,"982: Tekniske anlæg - Forsikringsskader"]
["910: Tilskud - Eksterne parter","9091910: Tilskud - Eksterne parter",null,"990: Tekniske anlæg - Leasing"]
["920: Tilskud - Fonds (17,5%)","9091920: Tilskud - Fonds (17,5%)",null,"992: Tekniske anlæg - Køb over 100.000 kr."]
["970: Grund/Bygning - Rengøring","7076970: Grund/Bygning - Rengøring",null,"994: Tekniske anlæg - Køb under 100.000 kr."]
["972: Løn - Feriepengeforpligtigelser","4040972: Løn - Feriepengeforpligtigelser",null,"996: Tekniske anlæg - Forrentning"]
["980: Grund/Bygning - Forsikringspræmier","7076980: Grund/Bygning - Forsikringspræmier",null,"998: Tekniske anlæg - Afskrivning"]
["980: Hardware/IT-infrastruktur - Forsikringspræmier","6065980: Hardware/IT-infrastruktur - Forsikringspræmier",null,"600: Hardware/IT-infrastruktur - Drift og vedligeholdelse"]
["980: Inventar-Forsikringspræmier","6060980: Inventar-Forsikringspræmier",null,"980: Hardware/IT-infrastruktur - Forsikringspræmier"]
["980: Maskin/materiel - Forsikringspræmier","6062980: Maskin/materiel - Forsikringspræmier",null,"990: Hardware/IT-infrastruktur - Leasing"]
["980: Personaleudgifter - Forsikringspræmier","4446980: Personaleudgifter - Forsikringspræmier",null,"992: Hardware/IT-infrastruktur - Køb over 100.000 kr."]
["980: Tekniske anlæg - Forsikringspræmier","6063980: Tekniske anlæg - Forsikringspræmier",null,"994: Hardware/IT-infrastruktur - Køb under 100.000 kr."]
["980: Transportmidler (biler mv) - Forsikringspræmier","6061980: Transportmidler (biler mv) - Forsikringspræmier",null,"996: Hardware/IT-infrastruktur - Forrentning"]
["982: Grund/Bygning-Forsikringsskader","7076982: Grund/Bygning-Forsikringsskader",null,"998: Hardware/IT-infrastruktur - Afskrivning"]
["982: Inventra-Forsikringsskader","6060982: Inventra-Forsikringsskader",null,"600: Software/Øvrig IT - Drift og vedligeholdelse (egne systemer)"]
["982: Maskin/materiel - Forsikringsskader","6062982: Maskin/materiel - Forsikringsskader",null,"602: Software/Øvrig IT - Udgift vedr. hostede IT-systemer"]
["982: Personaleudgifter - Forsikringsskader","4446982: Personaleudgifter - Forsikringsskader",null,"630: Software/Øvrig IT - Kommunikation (linjer mv)"]
["982: Tekniske anlæg - Forsikringsskader","6063982: Tekniske anlæg - Forsikringsskader",null,"992: Software/Øvrig IT - Køb over 100.000 kr."]
["982: Transportmidler (biler mv) - Forsikringsskader","6061982: Transportmidler (biler mv) - Forsikringsskader",null,"994: Software/Øvrig IT - Køb under 100.000 kr."]
["984: Personaleudgifter - Risikostyring/forebyggelse","4446984: Personaleudgifter - Risikostyring/forebyggelse",null,"700: Grund/Bygning-Vedligehold-Udenomsarealer"]
["990: Hardware/IT-infrastruktur - Leasing","6065990: Hardware/IT-infrastruktur - Leasing",null,"702: Grund/Bygning-Vedligehold -Serviceabonnementer"]
["990: Inventar - Leasing","6060990: Inventar - Leasing",null,"704: Grund/Bygning-Vedligehold-Indvendig"]
["990: Maskin/materiel - Leasing","6062990: Maskin/materiel - Leasing",null,"706: Grund/Bygning-Vedligehold-Udvendig "]
["990: Tekniske anlæg - Leasing","6063990: Tekniske anlæg - Leasing",null,"710: Grund/Bygning-Vedligehold-Udvendig (KUN til PTM)"]
["990: Transportmidler (biler mv) - Leasing","6061990: Transportmidler (biler mv) - Leasing",null,"712: Grund/Bygning-Vedl.hold-Energibespar (KUN til PTM)"]
["992: Hardware/IT-infrastruktur - Køb over 100.000 kr.","6065992: Hardware/IT-infrastruktur - Køb over 100.000 kr.",null,"720: Grund/Bygning-Lejeudg. intern udlejer"]
["992: Inventar - Køb over 100.000 kr.","6060992: Inventar - Køb over 100.000 kr.",null,"722: Grund/Bygning-Lejeudg. ekstern udlejer"]
["992: Maskin/materiel - Køb over 100.000 kr.","6062992: Maskin/materiel - Køb over 100.000 kr.",null,"740: Grund/Bygning-Lejeindt. (intern udlejning)"]
["992: Software/Øvrig IT - Køb over 100.000 kr.","6066992: Software/Øvrig IT - Køb over 100.000 kr.",null,"742: Grund/Bygning-Lejeindt.-(ekstern udlejning)"]
["992: Tekniske anlæg - Køb over 100.000 kr.","6063992: Tekniske anlæg - Køb over 100.000 kr.",null,"760: Grund/Bygning - Ejendomsskat"]
["992: Transportmidler (biler mv) - Køb over 100.000 kr.","6061992: Transportmidler (biler mv) - Køb over 100.000 kr.",null,"762: Grund/Bygning - Vand inkl. spildevandsafledning (forbrugsafg)"]
["994: Hardware/IT-infrastruktur - Køb under 100.000 kr.","6065994: Hardware/IT-infrastruktur - Køb under 100.000 kr.",null,"764: Grund/Bygning - Renovation (forbrugsafg)"]
["994: Inventar - Køb under 100.000 kr.","6060994: Inventar - Køb under 100.000 kr.",null,"766: Grund/Bygning - Opvarmning"]
["994: Maskin/materiel - Køb under 100.000 kr.","6062994: Maskin/materiel - Køb under 100.000 kr.",null,"768: Grund/Bygning - El"]
["994: Software/Øvrig IT - Køb under 100.000 kr.","6066994: Software/Øvrig IT - Køb under 100.000 kr.",null,"770: Grund/Bygning - Adgangskontrol/tyverialarmer"]
["994: Tekniske anlæg - Køb under 100.000 kr.","6063994: Tekniske anlæg - Køb under 100.000 kr.",null,"772: Grund/Bygning - Solcelleanlæg"]
["994: Transportmidler (biler mv) - Køb under 100.000 kr.","6061994: Transportmidler (biler mv) - Køb under 100.000 kr.",null,"970: Grund/Bygning - Rengøring"]
["996: Grund/Bygning - Forrentning","7076996: Grund/Bygning - Forrentning",null,"980: Grund/Bygning - Forsikringspræmier"]
["996: Hardware/IT-infrastruktur - Forrentning","6065996: Hardware/IT-infrastruktur - Forrentning",null,"982: Grund/Bygning-Forsikringsskader"]
["996: Inventar - Forrentning","6060996: Inventar - Forrentning",null,"996: Grund/Bygning - Forrentning"]
["996: Maskin/materiel - Forrentning","6062996: Maskin/materiel - Forrentning",null,"998: Grund/Bygning - Afskrivning"]
["996: Tekniske anlæg - Forrentning","6063996: Tekniske anlæg - Forrentning",null,"800: Betaling til og fra andre offentlige myndighed"]
["996: Transportmidler (biler mv) - Forrentning","6061996: Transportmidler (biler mv) - Forrentning",null,"900: Indtægter - Salg af kerneydelser (ekstern)"]
["998: Grund/Bygning - Afskrivning","7076998: Grund/Bygning - Afskrivning",null,"902: Indtægter - Administrationsvederlag"]
["998: Hardware/IT-infrastruktur - Afskrivning","6065998: Hardware/IT-infrastruktur - Afskrivning",null,"904: Indtægter - Salg af øvrige ydelser (ekstern)"]
["998: Inventar - Afskrivning","6060998: Inventar - Afskrivning",null,"908: Indtægter - Internt salg"]
["998: Maskin/materiel - Afskrivning","6062998: Maskin/materiel - Afskrivning",null,"910: Tilskud - Eksterne parter"]
["998: Tekniske anlæg - Afskrivning","6063998: Tekniske anlæg - Afskrivning",null,"920: Tilskud - Fonds (17,5%)"]
["998: Transportmidler (biler mv) - Afskrivning","6061998: Transportmidler (biler mv) - Afskrivning",null,"531: Kerneydelse - Værnemidler indkøbt uden om KVIK"]

{"sheet":"Beskrivelser (DHY)","index":9,"n_rows":151,"n_cols":15,"rows_kept":151,"cut":false,"hidden":true,"merged":[]}
["Formål 1 nummer","Formål 1","Formål 1 forklaringstekst",null,"Formål 2 tal","Formål 2","Formål 2 forklaringstekst",null,"Formål 3 tal","Formål 3","Formål 3 forklaringstekst",null,"Tværgående dimension tal","Tværgående dimension","Kopi af kolonne K til formel"]
[{"$f":"IFERROR(VALUE(LEFT(B2,2)),LEFT(B2,2))","v":20},"20: Overførselsudgifter","Område 20 anvendes udelukkende til udgifter og indtægter, som vedrører kommunens overførselsudgifter. Området anvendes ikke på kommunens institutioner.",null,{"$f":"IFERROR(VALUE(LEFT(F2,2)),\"\")","v":20},"20: Forsørgelse","Område 2020 anvendes til kontering af udgifter/indtægter vedr. borgernes forsørgelse, som er defineret som direkte forsørgelsesudgifter, løntilskud og medfinansiering af forsørgelsesudgifter",null,{"$f":"IFERROR(VALUE(LEFT(J2,3)),\"\")","v":200},"200: Overførs.udg.-Forsørgelse - Forsørgelse","Udgifter til forsørgelsesydelser konteres her. Det kan f.eks være kontant- og uddannelseshjælp, integrationsydelse, ledighedsydelse, sygedagpenge, ressourceforløbsydelse, revalideringsydelse, fleksløntilskud og EGU (skoleydelse/løn). ",null,{"$f":"IFERROR(VALUE(LEFT(N2,7)),\"\")","v":2020200},"2020200: Overførs.udg.-Forsørgelse - Forsørgelse",{"$f":"K2","v":"Udgifter til forsørgelsesydelser konteres her. Det kan f.eks være kontant- og uddannelseshjælp, integrationsydelse, ledighedsydelse, sygedagpenge, ressourceforløbsydelse, revalideringsydelse, fleksløntilskud og EGU (skoleydelse/løn). "}]
[30,"30: Puljer mv.","Området anvendes kun til budgettering af midler, der senere skal fordeles. ",null,{"$f":"IFERROR(VALUE(LEFT(F3,2)),\"\")","v":22},"22: Indsatser","Område 2022 anvendes til kontering af udgifter/indtægter vedr. indsatser til borgerne (køb af aktivering, tilbud, mentor m.v.)",null,{"$f":"IFERROR(VALUE(LEFT(J3,3)),\"\")","v":202},"202: Overførs.udg.-Forsørgelse - Løntilskud","Udgifter til alle former for løntilskud uanset målgruppe konteres på dimensionsværdi 2020202. Det kan bl.a. være udgifter til løntilskud til fleksjob/skånejob, revalidender, forsikrede ledige (privat/offentligt), voksenlærlinge, integrationsydelsesmodtagere, kontant- og uddannelseshjælpsmodtagere, og ressourceforløbsydelsesmodtagere.",null,{"$f":"IFERROR(VALUE(LEFT(N3,7)),\"\")","v":2020202},"2020202: Overførs.udg.-Forsørgelse - Løntilskud",{"$f":"K3","v":"Udgifter til alle former for løntilskud uanset målgruppe konteres på dimensionsværdi 2020202. Det kan bl.a. være udgifter til løntilskud til fleksjob/skånejob, revalidender, forsikrede ledige (privat/offentligt), voksenlærlinge, integrationsydelsesmodtagere, kontant- og uddannelseshjælpsmodtagere, og ressourceforløbsydelsesmodtagere."}]
[40,"40: Løn","Her konteres løn og lønrefusioner, der relaterer sig til personalet. ",null,24,"24: Øvrige","Område 2024 anvendes til kontering af udgifter/indtægter, som ikke kan henføres til område 2020 og 2022 .",null,204,"204: Overførs.udg.-Forsørgelse - Medfinansiering","Udgifter til medfinansiering af forsørgelse konteres her. Der vil være tale om medfinansiering af a-dagpenge og førtidspensioner. Medfinansiering af boligstøtte, varmetillæg og særlig støtte §34 konteres under dimension 2024240, da der ikke er tale om forsørgelsesudgifter.",null,2020204,"2020204: Overførs.udg.-Forsørgelse - Medfinansiering","Udgifter til medfinansiering af forsørgelse konteres her. Der vil være tale om medfinansiering af a-dagpenge og førtidspensioner. Medfinansiering af boligstøtte, varmetillæg og særlig støtte §34 konteres under dimension 2024240, da der ikke er tale om forsørgelsesudgifter."]
[44,"44: Personaleudgifter","Her konteres udgifter, bortset fra løn, der relaterer sig til personalet. ",null,30,"30: Overførte beløb/reduktion/omstilling","Område 3030 anvendes til budgettering af overførsler reduktioner samt til politiske puljer til senere prioritering. Der bogføres ikke under område 3030.",null,220,"220: Overførs.udg.-Indsatser","Udgifter til indsatser omfatter køb af indsatser/aktivering over for alle målgrupper. Det kan f.eks være mentor, danskuddannelse, forskellige statslige puljer (regional uddannelsespulje, pulje til uddannelsesløft), jobrotation, vejledning- og opkvalificeringstilbud, godtgørelse §83, den koordinerede ungeindsats (KUI) og indsatser vedr. EGU.",null,2022220,"2022220: Overførs.udg.-Indsatser","Udgifter til indsatser omfatter køb af indsatser/aktivering over for alle målgrupper. Det kan f.eks være mentor, danskuddannelse, forskellige statslige puljer (regional uddannelsespulje, pulje til uddannelsesløft), jobrotation, vejledning- og opkvalificeringstilbud, godtgørelse §83, den koordinerede ungeindsats (KUI) og indsatser vedr. EGU."]
[48,"48: Pensionerede tjenestemænd","Udgifter vedr. pensionerede tjenestemænd (centralt placeret udgift) konteres her.",null,32,"32: Puljer til senere udmøntning","Område 3032 anvendes til budgettering af puljer til senere udmøntning - f.eks. Reduktionspuljer/ ikke udmøntede besparelser. Der bogføres ikke under område 3032.",null,240,"240: Overførs.udg.-Øvrige","Her konteres som udgangspunkt alle øvrige udgifter/indtægter, som ikke kan henføres til en af de øvrige tværgående dimensioner på overførselsudgifterne. Det kan f.eks. være hjælpemidler, befordringsgodtgørelse, personlig assistance, mellemkommunale betalinger, grundtilskud, resultattilskud, enkeltydelser, støtte til repatriering, særlig støtte § 34, tabt arbejdsfortjeneste, merudgifter til voksne/børn, boligstøtte, personlige tillæg og hjemmetræning.",null,2024240,"2024240: Overførs.udg.-Øvrige","Her konteres som udgangspunkt alle øvrige udgifter/indtægter, som ikke kan henføres til en af de øvrige tværgående dimensioner på overførselsudgifterne. Det kan f.eks. være hjælpemidler, befordringsgodtgørelse, personlig assistance, mellemkommunale betalinger, grundtilskud, resultattilskud, enkeltydelser, støtte til repatriering, særlig støtte § 34, tabt arbejdsfortjeneste, merudgifter til voksne/børn, boligstøtte, personlige tillæg og hjemmetræning."]
[50,"50: Materiale- og aktivitetsudgifter","Udgifter vedr. kerneydelser  konteres alle udgifter, der direkte relaterer sig til kerneopgaven (undervisning, pasning af ældre osv.) undtaget løn- og personaleudgifter, der registreres under område 4. ",null,40,"40: Lønninger","Område 4040 omfatter lønudgifter inkl. pensionsforsikringspræmier og feriepenge. Derudover omfatter området lønninger der overføres mellem forskellige afdelinger. ",null,300,"300: Pulje mv. - Overført over-/underskud","Her må ikke bogføres. Anvendes kun til registrering af overførte mere- eller mindre forbrug mellem årene. ",null,3030300,"3030300: Pulje mv. - Overført over-/underskud","Her må ikke bogføres. Anvendes kun til registrering af overførte mere- eller mindre forbrug mellem årene. "]
[60,"60: Kapacitetsudgifter","Under område 60 Kapacitetsudgifter  konteres alle udgifter, der vedrører det udstyr, som anvendes for at Aabenraa Kommune kan levere kerneydelserne – bortset fra grunde og bygninger, der konteres under område 7. \n\nOmråderne 6060 – 6065 er struktureret ens, idet der her primært er taget afsæt i de centrale informationsbehov. Heri indgår bl.a. at anskaffelser over 100.000 kr. skal indarbejdes i Aabenraa Kommunes regnskab som anlægsaktiver, hvorfor det er relevant at disse forholdsvist nemt kan udsøges. Forrentning og afskrivning er dimensionsværdier, der alene anvendes centralt ifm. udarbejdelse af omkostningsregnskabet. \n",null,42,"42: Lønrefusioner","Område 4042 omfatter refusioner vedr. personale",null,310,"310: Pulje mv. - Reduktion/omstilling","Her må ikke bogføres. Anvendes kun til registrering af budgetpuljer til senere udmøntning.",null,3030310,"3030310: Pulje mv. - Reduktion/omstilling","Her må ikke bogføres. Anvendes kun til registrering af budgetpuljer til senere udmøntning."]
[70,"70: Grunde og bygninger","Under område 70 Grunde og bygninger konteres alle udgifter der vedrører de ejendomme som Aabenraa Kommune anvender, uanset om det er egne bygninger/arealer eller de lejes hos eksterne udlejere. ",null,44,"44: Uddannelse","Område 4444 omfatter udgifter vedr. uddannelse af kommunens personale",null,320,"320: Pulje mv. - Politisk til prioritering","Her må ikke bogføres. Anvendes kun til registrering af budgetpuljer til senere politisk prioritering.",null,3030320,"3030320: Pulje mv. - Politisk til prioritering","Her må ikke bogføres. Anvendes kun til registrering af budgetpuljer til senere politisk prioritering."]
[80,"80: Betaling andre offentlige myndigheder","Under område 8080 Betaling andre offentlige myndigheder konteres alle udgifter, der f.eks. vedrører mellemkommunale betalinger.",null,46,"46: Øvrige personaleudgifter","Omrde 4446 omfatter udgifterne  til  personalerelaterede udgifter - bortset fra løn og uddannelse",null,320,"320: Pulje mv. - Flexjob","Her må ikke bogføres. Anvendes kun til registrering af budgetpuljer til senere politisk prioritering.",null,3032320,"3032320: Pulje mv. - Flexjob","Her må ikke bogføres. Anvendes kun til registrering af budgetpuljer til senere politisk prioritering."]
[90,"90: Indtægter","Under område 90 registreres indtægter fra salg samt tilskud fra eksterne der modtages til finansiering af kommunale opgaver. ",null,48,"48: Tjenestemandspensioner","Her registreres udgifterne  til  pensionerede tjenestemænd. Området anvendes kun centralt. ",null,322,"322: Pulje mv. - Barsel","Her må ikke bogføres. Anvendes kun til registrering af budgetmidler til finansiering af tilskud til barselsrefusion internt i Aabenraa Kommune",null,3032322,"3032322: Pulje mv. - Barsel","Her må ikke bogføres. Anvendes kun til registrering af budgetmidler til finansiering af tilskud til barselsrefusion internt i Aabenraa Kommune"]
[null,null,null,null,50,"50: Udgifter vedr. kerneydelser","Det skal være muligt at trække ud på tværs på overordnet niveau, hvor dette giver mening, og på forvaltningsniveau eller sektor, på udgifter som alene vedrører det pågældende område. Derfor er der opstillet et begrænset antal underkategorier, og det forventes at især dimensionsværdierne 5050500 (Materialer) samt 5050520 (Aktiviteter) bliver brugt meget forskelligt i de forskellige forvaltninger og afdelinger. ",null,324,"324: Pulje mv. - Lederløn","Her må ikke bogføres. Anvendes kun til registrering af budgetmidler til udmøntning til ledere (i de år hvor sådanne puljer forefindes).",null,3032324,"3032324: Pulje mv. - Lederløn","Her må ikke bogføres. Anvendes kun til registrering af budgetmidler til udmøntning til ledere (i de år hvor sådanne puljer forefindes)."]
[null,null,null,null,54,"54: Administration","Her konteres udgifter, der afholdes til ”understøttende” opgaver ift. afdelingens/institutionens opgaver. ",null,326,"326: Pulje mv. - Løn til personale","Her må ikke bogføres. Anvendes kun til registrering af budgetmidler til finansiering af f.eks. aktiviteter vedr. tillidsmænd.",null,3032326,"3032326: Pulje mv. - Løn til personale","Her må ikke bogføres. Anvendes kun til registrering af budgetmidler til finansiering af f.eks. aktiviteter vedr. tillidsmænd."]
[null,null,null,null,58,"58: Ekstern bistand","Her konteres udgifter som varetages af eksterne rådgivere/konsulenter. ",null,328,"328: Pulje mv. - Øvrige","Her må ikke bogføres. Anvendes kun til registrering af budgetmidler til finansiering af kommende tiltag.",null,3032328,"3032328: Pulje mv. - Øvrige","Her må ikke bogføres. Anvendes kun til registrering af budgetmidler til finansiering af kommende tiltag."]
[null,null,null,null,60,"60: Inventar","Område 6060 Inventar anvendes til kontering af fakturaer vedr. inventar, som er nødvendigt for at en bygning kan fungere ift. at rumme institutionens/afdelingens varetagelse af kerneopgaven. Det kan f.eks. være møbler, legepladsudstyr osv. Typisk udgifter der er forsikringsdækket via løsøreforsikringen",null,400,"400: Løn - Personale","Her registreres løn til personale. Lønnen overføres automatisk fra lønsystemet \"Silkeborg Data Løn\", så der skal ikke bogføres manuelt her.",null,4040400,"4040400: Løn - Personale","Her registreres løn til personale. Lønnen overføres automatisk fra lønsystemet \"Silkeborg Data Løn\", så der skal ikke bogføres manuelt her."]
[null,null,null,null,61,"61: Transportmidler (biler m.v.)","Område 6061 anvendes til kontering af biler, busser m.v. til persontransport.",null,402,"402: Løn - Pensionsforsikringspræmier","Pensionsforsikringspræmier vedr. erhvervsaktive tjenestemend registreres her. Udgifterne bogføres automatisk via lønsystemet, så der skal ikke bogføres manuelt her.",null,4040402,"4040402: Løn - Pensionsforsikringspræmier","Pensionsforsikringspræmier vedr. erhvervsaktive tjenestemend registreres her. Udgifterne bogføres automatisk via lønsystemet, så der skal ikke bogføres manuelt her."]
[null,null,null,null,62,"62: Maskiner og materiel","Område 6062 Maskiner og materiel anvendes til kontering af fakturaer vedr. eksempelvis traktorer, maskiner til pleje af grønne områder, både osv. \nKopimaskiner betragtes som Hardware (da disse er koblet på netværket og anvendes som printere og scannere) og konteres derfor under dimension 6065 Hardware og IT-infrastruktur. \n",null,406,"406: Løn - Vikarudgifter/Vikarbureau","Her registreres løn til vikarer. Løn til vikarer, der er ansat ved Aabenraa Kommune, overføres automatisk fra lønsystemet \"Silkeborg Data Løn\". Fakturaer vedr. vikarbureauer bogføres ligeledes her, således at vikarudgifter findes her uanset om det er egne medarbejdere eller eksterne vikarer, der løser opgaven. ",null,4040406,"4040406: Løn - Vikarudgifter/Vikarbureau","Her registreres løn til vikarer. Løn til vikarer, der er ansat ved Aabenraa Kommune, overføres automatisk fra lønsystemet \"Silkeborg Data Løn\". Fakturaer vedr. vikarbureauer bogføres ligeledes her, således at vikarudgifter findes her uanset om det er egne medarbejdere eller eksterne vikarer, der løser opgaven. "]
[null,null,null,null,63,"63: Tekniske anlæg","Område 6063 Tekniske anlæg er typisk anlæg der relaterer sig til grunde og bygninger. Eksempelvis ventilationsanlæg, ABA-anlæg (Automatiske brandalarmerings anlæg), elevatorer osv. Med mindre anskaffelsen heraf har et omfang, som gør at det registreres som anlægsprojekt, skal såvel anskaffelse som vedligeholdelse registreres her. ",null,490,"490: Løn - Overførte lønninger (udgift)","Dimension 4040490 anvendes KUN sammen med dimension 4040492, og benyttes når der manuelt skal omkonteres løn f.eks. ved afregningen efter BUModellen (Bestiller-Udfører-Model) eller ved udlån af medarbejdere. Hvis det er en BUM-afregning skal den tværgående dimension kombineres med IM Art 11. Hvis det er afregning for udlån af medarbejdere, skal IM Art 12 (Øvrige overførte lønninger) benyttes. Der er oprettet særlige kladder hertil.",null,4040490,"4040490: Løn - Overførte lønninger (udgift)","Dimension 4040490 anvendes KUN sammen med dimension 4040492, og benyttes når der manuelt skal omkonteres løn f.eks. ved afregningen efter BUModellen (Bestiller-Udfører-Model) eller ved udlån af medarbejdere. Hvis det er en BUM-afregning skal den tværgående dimension kombineres med IM Art 11. Hvis det er afregning for udlån af medarbejdere, skal IM Art 12 (Øvrige overførte lønninger) benyttes. Der er oprettet særlige kladder hertil."]
[null,null,null,null,65,"65: Hardware og IT-infrastruktur","Område 6065 Hardware og IT-infrastruktur anvendes til køb og drift af servere inkl. nødstrømanlæg, m.v., pc´ere, terminaler, monitorer, printere/kopimaskiner, IP-telefoner, m.v. \nComputernetværk (faste LAN-installationer) i bygninger betragtes også som IT-infrastruktur, hvorfor netværksudstyr som f.eks. routere og kabler m.v. registreres under dimension 6065.\n",null,492,"492: Løn - Overførte lønninger (indtægt)","Dimension 4040492 anvendes KUN sammen med dimension 4040490, og benyttes, når der skal manuelt omkonteres løn f.eks. ved afregningen efter BUModellen (Bestiller-Udfører-Model) eller ved udlån af medarbejdere. Hvis det er en BUM-afregning skal den tværgående dimension kombineres med IM Art 11. Hvis det er afregning for udlån af medarbejdere, skal IM Art 12 (Øvrige overførte lønninger) benyttes. Der er oprettet særlige kladder hertil.",null,4040492,"4040492: Løn - Overførte lønninger (indtægt)","Dimension 4040492 anvendes KUN sammen med dimension 4040490, og benyttes, når der skal manuelt omkonteres løn f.eks. ved afregningen efter BUModellen (Bestiller-Udfører-Model) eller ved udlån af medarbejdere. Hvis det er en BUM-afregning skal den tværgående dimension kombineres med IM Art 11. Hvis det er afregning for udlån af medarbejdere, skal IM Art 12 (Øvrige overførte lønninger) benyttes. Der er oprettet særlige kladder hertil."]
[null,null,null,null,66,"66: Software / Øvrig IT","Område 6066 Software / Øvrig IT anvendes til driftsudgifter vedr. IT-fagsystemer/programmer uanset om disse driftes:\n- af Aabenraa Kommunes IT-afdeling (installeret på kommunens servere),  \n- via en servicebureau-løsning (ASP), \n- som cloud-baserede løsninger. \nDrift af kommunikationslinjer, som vi har abonnement på hos en teleudbyder (f.eks. ADSL-linjer, der anvendes til datatransmission mellem Aabenraa Kommune og nogle af vore institutioner) konteres også her. \n",null,972,"972: Løn - Feriepengeforpligtigelser","Her registreres feriepengeforpligtelser - anvendes kun centralt. ",null,4040972,"4040972: Løn - Feriepengeforpligtigelser","Her registreres feriepengeforpligtelser - anvendes kun centralt. "]
[null,null,null,null,70,"70: Vedligeholdelse","Under område 7070 Vedligeholdelse konteres alle udgifter, der vedrører vedligeholdelse af de af Aabenraa Kommune anvendte bygninger. Udvendig vedligeholdelse er normalt kun relevant for ejendomme, som Aabenraa Kommune ejer.\n\nUdvendig vedligeholdelse kan finansieres enten af den forvaltning/institution, der anvender ejendommen eller af Kultur, Miljø og Erhvervsforvaltningens enhed ”Ejendomme” \n",null,420,"420: Lønrefusion - Barsel","Modtagne refusioner vedr. barselsforløb registreres her, uanset om refusionen kommer fra hjemkommunen eller fra kommunens interne barselspulje. ",null,4042420,"4042420: Lønrefusion - Barsel","Modtagne refusioner vedr. barselsforløb registreres her, uanset om refusionen kommer fra hjemkommunen eller fra kommunens interne barselspulje. "]
[null,null,null,null,72,"72: Lejeudgifter","For at skabe grundlag for nemt at få et overblik over Aabenraa Kommunes udgifter til lejede lokaler skal lejeudgifter konteres under område 7072 Lejeudgifter. Her skal der skelnes mellem om udlejer er en del af Aabenraa Kommune (således at det er en intern udlejning, hvilket er tilfældet selvom det f.eks. er på tværs mellem to forvaltninger) eller om det er en ekstern udlejer.",null,422,"422: Lønrefusion - Sygedagpenge","Modtagne refusioner vedr. sygedagpenge fra hjemkommunen registreres her.  ",null,4042422,"4042422: Lønrefusion - Sygedagpenge","Modtagne refusioner vedr. sygedagpenge fra hjemkommunen registreres her.  "]
[null,null,null,null,74,"74: Lejeindtægter","For at skabe grundlag for nemt at få et overblik over Aabenraa Kommunes indtægter vedr. udlejning af lokaler, skal lejeindtægter konteres under område 7074 Lejeindtægter, hvor der skelnes mellem intern udlejning i Aabenraa Kommune og udlejning til eksterne. \n",null,424,"424: Lønrefusion - Flexjob","Benyttes ikke. Refusion vedr. Flexjob bogføres under dimension 4040400.",null,4042424,"4042424: Lønrefusion - Flexjob","Benyttes ikke. Refusion vedr. Flexjob bogføres under dimension 4040400."]
[null,null,null,null,76,"76: Drift","Området omfatter alle skatter og afgifter (herunder rottebekæmpelse m.v.). Under området registreres også de normale driftsudgifter på en bygning (el, vand, varme, rengøringsmidler samt tyverialarmer). Hvis der på et område både er aktiviteter indenfor kerneopgaverne (f.eks. museumsdrift) og der udbetales et tilskud til Museum Sønderjylland vejer hensynet til, at udgifterne står samlet – uanset hvem der reelt set løser opgaven – tungere, end hensynet til udtræk af betalingerne til andre offentlige myndigheder, hvorfor kontering under kerneopgaven skal vælges. ",null,426,"426: Lønrefusion - Øvrige","Alle andre refusioner vedr. personale end barsel, sygdom, flexjob og VEU-godtgørelse registreres her.",null,4042426,"4042426: Lønrefusion - Øvrige","Alle andre refusioner vedr. personale end barsel, sygdom, flexjob og VEU-godtgørelse registreres her."]
[null,null,null,null,80,"80: Betaling andre offentlige myndigheder","Kommunens driftsbidrag til eksempelvis Brand og Redning Sønderjylland konteres også her. Hvis der på et område både er aktiviteter indenfor kerneopgaverne (f.eks. museumsdrift) og der udbetales et tilskud til Museum Sønderjylland vejer hensynet til, at udgifterne står samlet – uanset hvem der reelt set løser opgaven – tungere, end hensynet til udtræk af betalingerne til andre offentlige myndigheder, hvorfor kontering under kerneopgaven skal vælges. ",null,428,"428: Lønrefusion - VEU godtgørelse","Benyttes ikke. Refusion vedr. VEU godtgørelse bogføres under dimension 4040400.",null,4042428,"4042428: Lønrefusion - VEU godtgørelse","Benyttes ikke. Refusion vedr. VEU godtgørelse bogføres under dimension 4040400."]
[null,null,null,null,90,"90: Salgsindtægter","Under område 9090 registreres indtægter ved salg af f.eks. Pladser (kerneydelsen) samt salg af administrative ydelser (administrationsbidrag, overført til anlægsprojekter). ",null,440,"440: Personaleudgifter - Uddannelse og kurser","Her registreres udgifter til personalets uddannelses- og kursusaktiviteter. Gælder både kursusafgift, kursusmaterialer, befordring til kurser samt evt. overnatning ifm. kurset, hvis ikke det er inkluderet i kursusafgiften. Længerevarende uddannelsesforløb (f.eks. forvaltningshøjskole, diplom- og masteruddannelser registreres også her).",null,4444440,"4444440: Personaleudgifter - Uddannelse og kurser","Her registreres udgifter til personalets uddannelses- og kursusaktiviteter. Gælder både kursusafgift, kursusmaterialer, befordring til kurser samt evt. overnatning ifm. kurset, hvis ikke det er inkluderet i kursusafgiften. Længerevarende uddannelsesforløb (f.eks. forvaltningshøjskole, diplom- og masteruddannelser registreres også her)."]
[null,null,null,null,91,"91: Tilskud","Område 9091 anvendes til registrering af  tilskud, der modtagets fraeksterne parter - f.eks. EU-midler - samt fondstilskud der udløser tilskuds-moms jf. reglerne i momsudligningsordningen.",null,460,"460: Personaleudgifter - Beklædning","På de områder, hvor Aabenraa Kommune er forpligtet til at stille arbejdstøj til rådighed, registreres udgifterne her, uanset om det er køb af tøj samt vask, eller om det er leje af tøj. ",null,4446460,"4446460: Personaleudgifter - Beklædning","På de områder, hvor Aabenraa Kommune er forpligtet til at stille arbejdstøj til rådighed, registreres udgifterne her, uanset om det er køb af tøj samt vask, eller om det er leje af tøj. "]
[null,null,null,null,null,null,null,null,462,"462: Personaleudgifter - Befordringsgodtgørelse (overf. Fra SD)","Her registreres befordringsgodtgørelse, som overføres automatisk fra lønsystemet \"Silkeborg Data Løn\", så der skal ikke bogføres manuelt her.",null,4446462,"4446462: Personaleudgifter - Befordringsgodtgørelse (overf. Fra SD)","Her registreres befordringsgodtgørelse, som overføres automatisk fra lønsystemet \"Silkeborg Data Løn\", så der skal ikke bogføres manuelt her."]
[null,null,null,null,null,null,null,null,464,"464: Personaleudgifter - Øvrig transport","Her registreres f.eks. Broafgift, tog- og færgebilletter m.v. ",null,4446464,"4446464: Personaleudgifter - Øvrig transport","Her registreres f.eks. Broafgift, tog- og færgebilletter m.v. "]
[null,null,null,null,null,null,null,null,466,"466: Personaleudgifter - Udlandsrejser","Udgifter til rejser til udlandet bliver der ofte begæret aktindsigt i, hvorfor alle udgifter til udlandsrejser skal registreres her, selvom de kan have karakter f.eks. af uddannelse. ",null,4446466,"4446466: Personaleudgifter - Udlandsrejser","Udgifter til rejser til udlandet bliver der ofte begæret aktindsigt i, hvorfor alle udgifter til udlandsrejser skal registreres her, selvom de kan have karakter f.eks. af uddannelse. "]
[null,null,null,null,null,null,null,null,468,"468: Personaleudgifter - Repræsentation","Udgifter til repræsentation skal vi kunne dokumentere, bl.a. ifm. aktindsigtshenvendelser, hvorfor alle udgifter til gaver m.v. til eksterne parter skal registreres her",null,4446468,"4446468: Personaleudgifter - Repræsentation","Udgifter til repræsentation skal vi kunne dokumentere, bl.a. ifm. aktindsigtshenvendelser, hvorfor alle udgifter til gaver m.v. til eksterne parter skal registreres her"]
[null,null,null,null,null,null,null,null,470,"470: Personaleudgifter - Rekruttering (annoncering, m.v.)","Her registreres udgifter til annoncering, persontests, rekrutteringsbureauer m.v.samt udgifter ift. afholdelse af samtaler. ",null,4446470,"4446470: Personaleudgifter - Rekruttering (annoncering, m.v.)","Her registreres udgifter til annoncering, persontests, rekrutteringsbureauer m.v.samt udgifter ift. afholdelse af samtaler. "]
[null,null,null,null,null,null,null,null,472,"472: Personaleudgifter - Øvrige personalerelaterede udgifter","Her konteres blandt andet udgifter til sundhedsmæssige foranstaltninger, der afholdes i forhold til institutionens/afdelingens personale. Udgifter ift. borgere konteres under dimension 5050530.",null,4446472,"4446472: Personaleudgifter - Øvrige personalerelaterede udgifter","Her konteres blandt andet udgifter til sundhedsmæssige foranstaltninger, der afholdes i forhold til institutionens/afdelingens personale. Udgifter ift. borgere konteres under dimension 5050530."]
[null,null,null,null,null,null,null,null,474,"474: Personaleudgifter - Personaleaktiviteter","Her konteres udgifter til aktiviteter for personalet, f.eks. personalearrangementer som ikke er kurser, men som mere har karakter af personalepleje. Julegaver til personalet konteres også her. Aktiviteter for beboere, børn m.v. konteres på dimension 5050520.",null,4446474,"4446474: Personaleudgifter - Personaleaktiviteter","Her konteres udgifter til aktiviteter for personalet, f.eks. personalearrangementer som ikke er kurser, men som mere har karakter af personalepleje. Julegaver til personalet konteres også her. Aktiviteter for beboere, børn m.v. konteres på dimension 5050520."]
[null,null,null,null,null,null,null,null,480,"480: Personaleudgifter - Pers.relateret udlæg","Her konteres udgifter til udlæg, som registreres via SD udlægs App. Der kan ikke bogføres direkte på dimensionen. MAN-udgiftsbilag bogføres ikke her, men på de relevante tværgående dimensioner.\n",null,4446480,"4446480: Personaleudgifter - Pers.relateret udlæg","Her konteres udgifter til udlæg, som registreres via SD udlægs App. Der kan ikke bogføres direkte på dimensionen. MAN-udgiftsbilag bogføres ikke her, men på de relevante tværgående dimensioner.\n"]
[null,null,null,null,null,null,null,null,980,"980: Personaleudgifter - Forsikringspræmier","Præmer til arbejdsskadeforsikringer registreres her sammen med evt. andre forsikringer som relaterer sig til personalet.",null,4446980,"4446980: Personaleudgifter - Forsikringspræmier",{"$f":"K36","v":"Præmer til arbejdsskadeforsikringer registreres her sammen med evt. andre forsikringer som relaterer sig til personalet."}]
[null,null,null,null,null,null,null,null,982,"982: Personaleudgifter - Forsikringsskader","Kommunens/institutionens udgifter i forbindelse med forsikringssager (f.eks. Selvrisiko ift. personskader) konteres her.",null,4446982,"4446982: Personaleudgifter - Forsikringsskader","Kommunens/institutionens udgifter i forbindelse med forsikringssager (f.eks. Selvrisiko ift. personskader) konteres her."]
[null,null,null,null,null,null,null,null,984,"984: Personaleudgifter - Risikostyring/forebyggelse","Udgifter der afholdes med henblik på at forebygge skader konteres her. Det kan f.eks. være udgifter til skridsikre såler, så personalet undgår at falde på isglatte underlag.",null,4446984,"4446984: Personaleudgifter - Risikostyring/forebyggelse","Udgifter der afholdes med henblik på at forebygge skader konteres her. Det kan f.eks. være udgifter til skridsikre såler, så personalet undgår at falde på isglatte underlag."]
[null,null,null,null,null,null,null,null,480,"480: Tjenestemandspensioner og -forpligtelser","Dimensionen anvendes centralt til kontering af reguleringer i hensættelser til tjenestemandspensioner.",null,4848480,"4848480: Tjenestemandspensioner og -forpligtelser","Dimensionen anvendes centralt til kontering af reguleringer i hensættelser til tjenestemandspensioner."]
[null,null,null,null,null,null,null,null,500,"500: Kerneydelse - Materialer","Denne dimension vil blive anvendt til rigtig meget forskelligt, afhængigt af i hvilken del af Aabenraa Kommune der bogføres. Her skal man registrere de materialer der anskaffes, for at institutionen/afdelingen kan løse kerneopgaven. F.eks. Materialegårdens køb af grus og fortovsfliser. Bemærk at der er oprettet en særskilt dimension til børnehavernes køb af materialer som anvendes til børnene. Denne udgift konteres under område 5050504 beskæftigelsesmaterialer. ",null,5050500,"5050500: Kerneydelse - Materialer","Denne dimension vil blive anvendt til rigtig meget forskelligt, afhængigt af i hvilken del af Aabenraa Kommune der bogføres. Her skal man registrere de materialer der anskaffes, for at institutionen/afdelingen kan løse kerneopgaven. F.eks. Materialegårdens køb af grus og fortovsfliser. Bemærk at der er oprettet en særskilt dimension til børnehavernes køb af materialer som anvendes til børnene. Denne udgift konteres under område 5050504 beskæftigelsesmaterialer. "]
[null,null,null,null,null,null,null,null,502,"502: Kerneydelse - Undervisningsmidler","Denne dimension er kun til skoler. Her bogføres undervisningsmidler, hvor undervisning er en del af kerneopgaven (dvs. IKKE til udgifter til udarbejdelse af undervisningsmateriale til kompetenceudvikling af medarbejdere). Kerneydelsen defineres i forhold til den valgte hovedkonto.",null,5050502,"5050502: Kerneydelse - Undervisningsmidler","Denne dimension er kun til skoler. Her bogføres undervisningsmidler, hvor undervisning er en del af kerneopgaven (dvs. IKKE til udgifter til udarbejdelse af undervisningsmateriale til kompetenceudvikling af medarbejdere). Kerneydelsen defineres i forhold til den valgte hovedkonto."]
[null,null,null,null,null,null,null,null,504,"504: Kerneydelse - Beskæftigelsesmaterialer","Her konteres køb af materialer som anvendes til aktiviteter målrettet borgerne. Anvendes primært af børnehaverne og ældre- / handicapinstitutioner. Kerneydelsen defineres i forhold til den valgte hovedkonto.",null,5050504,"5050504: Kerneydelse - Beskæftigelsesmaterialer","Her konteres køb af materialer som anvendes til aktiviteter målrettet borgerne. Anvendes primært af børnehaverne og ældre- / handicapinstitutioner. Kerneydelsen defineres i forhold til den valgte hovedkonto."]
[null,null,null,null,null,null,null,null,506,"506: Kerneydelse - Sygeplejeartikler","Sygeplejeartikler er oprettet målrettet til Social- og Sundhedsforvaltningens område. Andre forvaltningers udgifter til f.eks. Plaster / førstehjælpsudstyr skal konteres på dimension 5050538.",null,5050506,"5050506: Kerneydelse - Sygeplejeartikler","Sygeplejeartikler er oprettet målrettet til Social- og Sundhedsforvaltningens område. Andre forvaltningers udgifter til f.eks. Plaster / førstehjælpsudstyr skal konteres på dimension 5050538."]
[null,null,null,null,null,null,null,null,520,"520: Kerneydelse - Aktiviteter","Sammen med dimension 5050500 Materialer er dette en dimension, som anvendes meget forskelligt i Aabenraa Kommune. Her konteres udgifter til aktiviteter i relation til kerneopgaven. Kerneydelsen defineres i forhold til den valgte hovedkonto. Det kan f.eks. være en børneteaterforestilling, som nogle daginstitutioner køber til deres børn eller en udflugt som en ældre- eller handicapinstitution tager på. Transporten til en sådan udflugt konteres under 5050532 Transport.",null,5050520,"5050520: Kerneydelse - Aktiviteter","Sammen med dimension 5050500 Materialer er dette en dimension, som anvendes meget forskelligt i Aabenraa Kommune. Her konteres udgifter til aktiviteter i relation til kerneopgaven. Kerneydelsen defineres i forhold til den valgte hovedkonto. Det kan f.eks. være en børneteaterforestilling, som nogle daginstitutioner køber til deres børn eller en udflugt som en ældre- eller handicapinstitution tager på. Transporten til en sådan udflugt konteres under 5050532 Transport."]
[null,null,null,null,null,null,null,null,522,"522: Kerneydelse - Elevaktiviteter","Denne dimension er primært tiltænkt skolerne, hvor den bruges i stedet for dimension 5050520.",null,5050522,"5050522: Kerneydelse - Elevaktiviteter","Denne dimension er primært tiltænkt skolerne, hvor den bruges i stedet for dimension 5050520."]
[null,null,null,null,null,null,null,null,530,"530: Kerneydelse - Sundhedsmæssig foranstaltning","Her konteres udgifter, der relaterer sig til de borgere som er institutionens/afdelingens målgruppe. Eventuelle sundhedsmæssige foranstaltninger, der afholdes i forhold til institutionens/afdelingens personale konteres under dimension 4446472 Øvrige personalerelaterede udgifter. ",null,5050530,"5050530: Kerneydelse - Sundhedsmæssig foranstaltning","Her konteres udgifter, der relaterer sig til de borgere som er institutionens/afdelingens målgruppe. Eventuelle sundhedsmæssige foranstaltninger, der afholdes i forhold til institutionens/afdelingens personale konteres under dimension 4446472 Øvrige personalerelaterede udgifter. "]
[null,null,null,null,null,null,null,null,531,"531: Kerneydelse - Værnemidler indkøbt uden om KVIK","Indkøb af værnemidler skal som udgangspunkt ske via den fælleskommunale indkøbsordning KVIK – en ordning, hvor værnemidlerne rekvireres via Social- og Sundhedsforvaltningen. Hvis I undtagelsesvist har behov for at indkøbe værnemidler uden om KVIK, gælder det fra regnskabsåret 2021, at lokalt indkøbte værnemidler skal registreres på den tværgående dimension 5050531 Kerneydelse - Værnemidler indkøbt uden om KVIK. Værnemidler er defineret som: Værnemidler omfatter udstyr, der bæres af personale, og som har til formål at beskytte personalet mod smitte med mikroorganismer, og forhindre personalet i at videregive smitte. Dette kan fx være: handsker, visir, briller, masker, desinfektionsmidler, herunder sæbe, kitler, forklæder, vådservietter m.v. Værnemidler er fx ikke indkøb af dispensere, gulvstandere, tæpperens, paptallerkner m.v. (se vejledningen vedr. brugen af den tværgående dimension). \n",null,5050531,"5050531: Kerneydelse - Værnemidler indkøbt uden om KVIK","Indkøb af værnemidler skal som udgangspunkt ske via den fælleskommunale indkøbsordning KVIK – en ordning, hvor værnemidlerne rekvireres via Social- og Sundhedsforvaltningen. Hvis I undtagelsesvist har behov for at indkøbe værnemidler uden om KVIK, gælder det fra regnskabsåret 2021, at lokalt indkøbte værnemidler skal registreres på den tværgående dimension 5050531 Kerneydelse - Værnemidler indkøbt uden om KVIK. Værnemidler er defineret som: Værnemidler omfatter udstyr, der bæres af personale, og som har til formål at beskytte personalet mod smitte med mikroorganismer, og forhindre personalet i at videregive smitte. Dette kan fx være: handsker, visir, briller, masker, desinfektionsmidler, herunder sæbe, kitler, forklæder, vådservietter m.v. Værnemidler er fx ikke indkøb af dispensere, gulvstandere, tæpperens, paptallerkner m.v. (se vejledningen vedr. brugen af den tværgående dimension). \n"]
[null,null,null,null,null,null,null,null,532,"532: Kerneydelse - Transport","Her konteres udgifter, der er en del af kerneydelsen. Kerneydelsen defineres i forhold til den valgte hovedkonto. Eksempelvis transport af brugere (børn, ældre, handicappede m.v.) til udflugter, skolekørsel osv. Transport af personalet registreres under område 4. ",null,5050532,"5050532: Kerneydelse - Transport","Her konteres udgifter, der er en del af kerneydelsen. Kerneydelsen defineres i forhold til den valgte hovedkonto. Eksempelvis transport af brugere (børn, ældre, handicappede m.v.) til udflugter, skolekørsel osv. Transport af personalet registreres under område 4. "]
[null,null,null,null,null,null,null,null,538,"538: Kerneydelse - Øvrige udgifter","En \"diversepost\" til alt det, der ikke passer indenfor nogen af de øvrige kategorier vedr. kerneydelser. Kerneydelsen defineres i forhold til den valgte hovedkonto.",null,5050538,"5050538: Kerneydelse - Øvrige udgifter","En \"diversepost\" til alt det, der ikke passer indenfor nogen af de øvrige kategorier vedr. kerneydelser. Kerneydelsen defineres i forhold til den valgte hovedkonto."]
[null,null,null,null,null,null,null,null,540,"540: Administration - Kontorhold","Køb af kontorartikler til brug for administrationen konteres her. Printerpatroner registreres under drift af IT-hardware, som omfatter printere. Køb af kontorartikler (f.eks. Papir) som anvendes til børn i institutionerne konteres under 5050504 Beskæftigelsesmaterialer. ",null,5054540,"5054540: Administration - Kontorhold","Køb af kontorartikler til brug for administrationen konteres her. Printerpatroner registreres under drift af IT-hardware, som omfatter printere. Køb af kontorartikler (f.eks. Papir) som anvendes til børn i institutionerne konteres under 5050504 Beskæftigelsesmaterialer. "]
[null,null,null,null,null,null,null,null,542,"542: Administration - Kontingenter/abonnementer","Kontingenter til organisationer, der relaterer sig til kerneopgaven samt abonnementer (f.eks. Kontingent til Økonomidirektørforeningen for økonomichefen eller abonnement på nyhedsmagasinet Danske Kommuner). ",null,5054542,"5054542: Administration - Kontingenter/abonnementer","Kontingenter til organisationer, der relaterer sig til kerneopgaven samt abonnementer (f.eks. Kontingent til Økonomidirektørforeningen for økonomichefen eller abonnement på nyhedsmagasinet Danske Kommuner). "]
[null,null,null,null,null,null,null,null,544,"544: Administration - Telefon","Her konteres udgifter til telefon uanset om det er fastnet, IP-telefoni eller mobil samt abonnementer til telefoner.",null,5054544,"5054544: Administration - Telefon","Her konteres udgifter til telefon uanset om det er fastnet, IP-telefoni eller mobil samt abonnementer til telefoner."]
[null,null,null,null,null,null,null,null,548,"548: Administration - Porto","Udgifter til forsendelse af breve og pakker konteres her. ",null,5054548,"5054548: Administration - Porto","Udgifter til forsendelse af breve og pakker konteres her. "]
[null,null,null,null,null,null,null,null,550,"550: Administration - Forplejning - Møder","Her konteres udgifter til mødeforplejning. Gælder både interne og eksterne møder",null,5054550,"5054550: Administration - Forplejning - Møder","Her konteres udgifter til mødeforplejning. Gælder både interne og eksterne møder"]
[null,null,null,null,null,null,null,null,552,"552: Administration - Annoncer og informationsmateriale","Her konteres udgifter til annoncer og informationsmateriale f.eks. Foldere der reklamerer for aktiviteter på ældrecentrene eller biblioteket. ",null,5054552,"5054552: Administration - Annoncer og informationsmateriale","Her konteres udgifter til annoncer og informationsmateriale f.eks. Foldere der reklamerer for aktiviteter på ældrecentrene eller biblioteket. "]
[null,null,null,null,null,null,null,null,554,"554: Administration - Gebyrer","Her konteres gebyrer som kommunen er forpligtet til at betale. Eksempelvis gebyrer for bankudskrifter. Formentlig vil det være begrænset hvor mange gebyrer der bogføres på institutionerne. ",null,5054554,"5054554: Administration - Gebyrer","Her konteres gebyrer som kommunen er forpligtet til at betale. Eksempelvis gebyrer for bankudskrifter. Formentlig vil det være begrænset hvor mange gebyrer der bogføres på institutionerne. "]
[null,null,null,null,null,null,null,null,556,"556: Administration - Administrationsvederlag (udgift)","Her konteres udgifter til administrationsvederlag, f.eks. Hvis der til et projekt med ekstern finansiering skal opgøres og registreres en administrationsudgift, som er leveret fra Aabenraa Kommune. Modposten registreres på dimension 9090902",null,5054556,"5054556: Administration - Administrationsvederlag (udgift)","Her konteres udgifter til administrationsvederlag, f.eks. Hvis der til et projekt med ekstern finansiering skal opgøres og registreres en administrationsudgift, som er leveret fra Aabenraa Kommune. Modposten registreres på dimension 9090902"]
[null,null,null,null,null,null,null,null,580,"580: Ekstern bistand - Revision","Her konteres udgifter til ekstern revision. Anvendes typisk kun centralt eller ifm. revision af projektregnskaber",null,5058580,"5058580: Ekstern bistand - Revision","Her konteres udgifter til ekstern revision. Anvendes typisk kun centralt eller ifm. revision af projektregnskaber"]
[null,null,null,null,null,null,null,null,582,"582: Ekstern bistand - Advokat","Her konteres udgifter til advokatbistand, uanset hvad bistanden anvendes til.",null,5058582,"5058582: Ekstern bistand - Advokat","Her konteres udgifter til advokatbistand, uanset hvad bistanden anvendes til."]
[null,null,null,null,null,null,null,null,584,"584: Ekstern bistand - Tolk","Her konteres udgifter til tolkning, uanset indenfor hvilket område der tolkes.",null,5058584,"5058584: Ekstern bistand - Tolk","Her konteres udgifter til tolkning, uanset indenfor hvilket område der tolkes."]
[null,null,null,null,null,null,null,null,586,"586: Ekstern bistand - Lægeerklæringer (for borgere)","Her konteres kommunens udgift til lægehonorar for udarbejdelse af lægeerklæringer for borgere. Lægeerklæringer for medarbejdere koneres på dimension 4446472 Øvrige personalerelaterede udgifter. ",null,5058586,"5058586: Ekstern bistand - Lægeerklæringer (for borgere)","Her konteres kommunens udgift til lægehonorar for udarbejdelse af lægeerklæringer for borgere. Lægeerklæringer for medarbejdere koneres på dimension 4446472 Øvrige personalerelaterede udgifter. "]
[null,null,null,null,null,null,null,null,588,"588: Ekstern bistand - Øvrig konsulentbistand","Her konteres al anden ekstern konsulent-bistand, f.eks. eksterne IT-specialister, konsulenter vedr. udvikling af projektmodellen osv., der løser specifikke opgaver for Aabenraa Kommune(s institutioner).",null,5058588,"5058588: Ekstern bistand - Øvrig konsulentbistand","Her konteres al anden ekstern konsulent-bistand, f.eks. eksterne IT-specialister, konsulenter vedr. udvikling af projektmodellen osv., der løser specifikke opgaver for Aabenraa Kommune(s institutioner)."]
[null,null,null,null,null,null,null,null,589,"589: Ekstern bistand-Honorar","Her konteres honorarer som ikke er konsulentbistand, såfremt sådanne forekommer. ",null,5058589,"5058589: Ekstern bistand-Honorar","Her konteres honorarer som ikke er konsulentbistand, såfremt sådanne forekommer. "]
[null,null,null,null,null,null,null,null,600,"600: Inventar - Drift og vedligeholdelse","Her konteres alle udgifter, der relaterer sig til drift og vedligeholdelse af inventar.",null,6060600,"6060600: Inventar - Drift og vedligeholdelse","Her konteres alle udgifter, der relaterer sig til drift og vedligeholdelse af inventar."]
[null,null,null,null,null,null,null,null,980,"980: Inventar-Forsikringspræmier","Præmier til forsikringer vedr. inventar registreres her. ",null,6060980,"6060980: Inventar-Forsikringspræmier","Præmier til forsikringer vedr. inventar registreres her. "]
[null,null,null,null,null,null,null,null,982,"982: Inventra-Forsikringsskader","Kommunens/institutionens udgifter i forbindelse med forsikringssager på inventar (f.eks. selvrisiko) konteres her.",null,6060982,"6060982: Inventra-Forsikringsskader","Kommunens/institutionens udgifter i forbindelse med forsikringssager på inventar (f.eks. selvrisiko) konteres her."]
[null,null,null,null,null,null,null,null,990,"990: Inventar - Leasing","Her konteres alle udgifter, der relaterer sig til leasingydelser på inventar.",null,6060990,"6060990: Inventar - Leasing","Her konteres alle udgifter, der relaterer sig til leasingydelser på inventar."]
[null,null,null,null,null,null,null,null,{"$f":"IFERROR(VALUE(LEFT(J68,3)),\"\")","v":992},"992: Inventar - Køb over 100.000 kr.","Her konteres alle udgifter, der relaterer sig til anskaffelser af inventar til en værdi over 100.000 kr. ",null,{"$f":"IFERROR(VALUE(LEFT(N68,7)),\"\")","v":6060992},"6060992: Inventar - Køb over 100.000 kr.",{"$f":"K68","v":"Her konteres alle udgifter, der relaterer sig til anskaffelser af inventar til en værdi over 100.000 kr. "}]
[null,null,null,null,null,null,null,null,994,"994: Inventar - Køb under 100.000 kr.","Her konteres alle udgifter, der relaterer sig til anskaffelser af inventar til en værdi under 100.000 kr. ",null,6060994,"6060994: Inventar - Køb under 100.000 kr.","Her konteres alle udgifter, der relaterer sig til anskaffelser af inventar til en værdi under 100.000 kr. "]
[null,null,null,null,null,null,null,null,996,"996: Inventar - Forrentning","Her konteres forrentning af de aktiver som gruppen omfatter. Dimensionen anvendes kun ifm. omkostningsregnskabet og anvendes p.t. ikke",null,6060996,"6060996: Inventar - Forrentning","Her konteres forrentning af de aktiver som gruppen omfatter. Dimensionen anvendes kun ifm. omkostningsregnskabet og anvendes p.t. ikke"]
[null,null,null,null,null,null,null,null,998,"998: Inventar - Afskrivning","Her konteres alle udgifter vedr. afskrivning på de aktiver som gruppen omfatter. Dimensionen anvendes kun centralt.",null,6060998,"6060998: Inventar - Afskrivning","Her konteres alle udgifter vedr. afskrivning på de aktiver som gruppen omfatter. Dimensionen anvendes kun centralt."]
[null,null,null,null,null,null,null,null,600,"600: Transportmidler (biler mv) - Drift og vedligeholdelse","Her konteres alle udgifter, der relaterer sig til drift og vedligeholdelse af transportmidler.",null,6061600,"6061600: Transportmidler (biler mv) - Drift og vedligeholdelse","Her konteres alle udgifter, der relaterer sig til drift og vedligeholdelse af transportmidler."]
[null,null,null,null,null,null,null,null,980,"980: Transportmidler (biler mv) - Forsikringspræmier","Præmier til forsikringer vedr. transportmidler registreres her. ",null,6061980,"6061980: Transportmidler (biler mv) - Forsikringspræmier","Præmier til forsikringer vedr. transportmidler registreres her. "]
[null,null,null,null,null,null,null,null,982,"982: Transportmidler (biler mv) - Forsikringsskader","Kommunens/institutionens udgifter i forbindelse med forsikringssager på transportmidler (f.eks. Selvrisiko) konteres her.",null,6061982,"6061982: Transportmidler (biler mv) - Forsikringsskader","Kommunens/institutionens udgifter i forbindelse med forsikringssager på transportmidler (f.eks. Selvrisiko) konteres her."]
[null,null,null,null,null,null,null,null,990,"990: Transportmidler (biler mv) - Leasing","Her konteres alle udgifter, der relaterer sig til leasingydelser på transportmidler.",null,6061990,"6061990: Transportmidler (biler mv) - Leasing","Her konteres alle udgifter, der relaterer sig til leasingydelser på transportmidler."]
[null,null,null,null,null,null,null,null,992,"992: Transportmidler (biler mv) - Køb over 100.000 kr.","Her konteres alle udgifter, der relaterer sig til anskaffelser af transportmidler til en værdi over 100.000 kr. ",null,6061992,"6061992: Transportmidler (biler mv) - Køb over 100.000 kr.","Her konteres alle udgifter, der relaterer sig til anskaffelser af transportmidler til en værdi over 100.000 kr. "]
[null,null,null,null,null,null,null,null,994,"994: Transportmidler (biler mv) - Køb under 100.000 kr.","Her konteres alle udgifter, der relaterer sig til anskaffelser af transportmidler til en værdi under 100.000 kr. ",null,6061994,"6061994: Transportmidler (biler mv) - Køb under 100.000 kr.","Her konteres alle udgifter, der relaterer sig til anskaffelser af transportmidler til en værdi under 100.000 kr. "]
[null,null,null,null,null,null,null,null,996,"996: Transportmidler (biler mv) - Forrentning","Her konteres forrentning af de aktiver som gruppen omfatter. Dimensionen anvendes kun ifm. omkostningsregnskabet og anvendes p.t. ikke",null,6061996,"6061996: Transportmidler (biler mv) - Forrentning","Her konteres forrentning af de aktiver som gruppen omfatter. Dimensionen anvendes kun ifm. omkostningsregnskabet og anvendes p.t. ikke"]
[null,null,null,null,null,null,null,null,998,"998: Transportmidler (biler mv) - Afskrivning","Her konteres alle udgifter vedr. afskrivning på de aktiver som gruppen omfatter. Dimensionen anvendes kun centralt.",null,6061998,"6061998: Transportmidler (biler mv) - Afskrivning","Her konteres alle udgifter vedr. afskrivning på de aktiver som gruppen omfatter. Dimensionen anvendes kun centralt."]
[null,null,null,null,null,null,null,null,600,"600: Maskin/materiel - Drift og vedligeholdelse","Her konteres alle udgifter, der relaterer sig til drift og vedligeholdelse af maskiner og materiel.",null,6062600,"6062600: Maskin/materiel - Drift og vedligeholdelse","Her konteres alle udgifter, der relaterer sig til drift og vedligeholdelse af maskiner og materiel."]
[null,null,null,null,null,null,null,null,980,"980: Maskin/materiel - Forsikringspræmier","Præmier til forsikringer vedr. maskiner og materiel registreres her. ",null,6062980,"6062980: Maskin/materiel - Forsikringspræmier","Præmier til forsikringer vedr. maskiner og materiel registreres her. "]
[null,null,null,null,null,null,null,null,982,"982: Maskin/materiel - Forsikringsskader","Kommunens/institutionens udgifter i forbindelse med forsikringssager på maskiner og materiel (f.eks. Selvrisiko) konteres her.",null,6062982,"6062982: Maskin/materiel - Forsikringsskader","Kommunens/institutionens udgifter i forbindelse med forsikringssager på maskiner og materiel (f.eks. Selvrisiko) konteres her."]
[null,null,null,null,null,null,null,null,990,"990: Maskin/materiel - Leasing","Her konteres alle udgifter, der relaterer sig til leasingydelser på maskiner og materiel.",null,6062990,"6062990: Maskin/materiel - Leasing","Her konteres alle udgifter, der relaterer sig til leasingydelser på maskiner og materiel."]
[null,null,null,null,null,null,null,null,992,"992: Maskin/materiel - Køb over 100.000 kr.","Her konteres alle udgifter, der relaterer sig til anskaffelser af maskiner og materiel til en værdi over 100.000 kr. ",null,6062992,"6062992: Maskin/materiel - Køb over 100.000 kr.","Her konteres alle udgifter, der relaterer sig til anskaffelser af maskiner og materiel til en værdi over 100.000 kr. "]
[null,null,null,null,null,null,null,null,994,"994: Maskin/materiel - Køb under 100.000 kr.","Her konteres alle udgifter, der relaterer sig til anskaffelser af maskiner og materiel til en værdi under 100.000 kr. ",null,6062994,"6062994: Maskin/materiel - Køb under 100.000 kr.","Her konteres alle udgifter, der relaterer sig til anskaffelser af maskiner og materiel til en værdi under 100.000 kr. "]
[null,null,null,null,null,null,null,null,996,"996: Maskin/materiel - Forrentning","Her konteres forrentning af de aktiver som gruppen omfatter. Dimensionen anvendes kun ifm. omkostningsregnskabet og anvendes p.t. ikke",null,6062996,"6062996: Maskin/materiel - Forrentning","Her konteres forrentning af de aktiver som gruppen omfatter. Dimensionen anvendes kun ifm. omkostningsregnskabet og anvendes p.t. ikke"]
[null,null,null,null,null,null,null,null,998,"998: Maskin/materiel - Afskrivning","Her konteres alle udgifter vedr. afskrivning på de aktiver som gruppen omfatter. Dimensionen anvendes kun centralt.",null,6062998,"6062998: Maskin/materiel - Afskrivning","Her konteres alle udgifter vedr. afskrivning på de aktiver som gruppen omfatter. Dimensionen anvendes kun centralt."]
[null,null,null,null,null,null,null,null,600,"600: Tekniske anlæg - Drift og vedligeholdelse","Her konteres alle udgifter, der relaterer sig til drift og vedligeholdelse af tekniske anlæg. Et tekniske anlæg er typisk anlæg, der relaterer sig til grunde og bygninger. Eksempelvis ventilationsanlæg, ABA-anlæg (Automatiske brandalarmerings anlæg), elevatorer osv.",null,6063600,"6063600: Tekniske anlæg - Drift og vedligeholdelse","Her konteres alle udgifter, der relaterer sig til drift og vedligeholdelse af tekniske anlæg. Et tekniske anlæg er typisk anlæg, der relaterer sig til grunde og bygninger. Eksempelvis ventilationsanlæg, ABA-anlæg (Automatiske brandalarmerings anlæg), elevatorer osv."]
[null,null,null,null,null,null,null,null,980,"980: Tekniske anlæg - Forsikringspræmier","Præmier til forsikringer vedr. tekniske anlæg registreres her. Et tekniske anlæg er typisk anlæg, der relaterer sig til grunde og bygninger. Eksempelvis ventilationsanlæg, ABA-anlæg (Automatiske brandalarmerings anlæg), elevatorer osv.",null,6063980,"6063980: Tekniske anlæg - Forsikringspræmier","Præmier til forsikringer vedr. tekniske anlæg registreres her. Et tekniske anlæg er typisk anlæg, der relaterer sig til grunde og bygninger. Eksempelvis ventilationsanlæg, ABA-anlæg (Automatiske brandalarmerings anlæg), elevatorer osv."]
[null,null,null,null,null,null,null,null,982,"982: Tekniske anlæg - Forsikringsskader","Kommunens/institutionens udgifter i forbindelse med forsikringssager på tekniske anlæg (f.eks. Selvrisiko) konteres her. Et tekniske anlæg er typisk anlæg, der relaterer sig til grunde og bygninger. Eksempelvis ventilationsanlæg, ABA-anlæg (Automatiske brandalarmerings anlæg), elevatorer osv.",null,6063982,"6063982: Tekniske anlæg - Forsikringsskader","Kommunens/institutionens udgifter i forbindelse med forsikringssager på tekniske anlæg (f.eks. Selvrisiko) konteres her. Et tekniske anlæg er typisk anlæg, der relaterer sig til grunde og bygninger. Eksempelvis ventilationsanlæg, ABA-anlæg (Automatiske brandalarmerings anlæg), elevatorer osv."]
[null,null,null,null,null,null,null,null,990,"990: Tekniske anlæg - Leasing","Her konteres alle udgifter, der relaterer sig til leasingydelser på tekniske anlæg. Et tekniske anlæg er typisk anlæg, der relaterer sig til grunde og bygninger. Eksempelvis ventilationsanlæg, ABA-anlæg (Automatiske brandalarmerings anlæg), elevatorer osv.",null,6063990,"6063990: Tekniske anlæg - Leasing","Her konteres alle udgifter, der relaterer sig til leasingydelser på tekniske anlæg. Et tekniske anlæg er typisk anlæg, der relaterer sig til grunde og bygninger. Eksempelvis ventilationsanlæg, ABA-anlæg (Automatiske brandalarmerings anlæg), elevatorer osv."]
[null,null,null,null,null,null,null,null,992,"992: Tekniske anlæg - Køb over 100.000 kr.","Her konteres alle udgifter, der relaterer sig til anskaffelser af tekniske anlæg til en værdi over 100.000 kr. Et tekniske anlæg er typisk anlæg, der relaterer sig til grunde og bygninger. Eksempelvis ventilationsanlæg, ABA-anlæg (Automatiske brandalarmerings anlæg), elevatorer osv.",null,6063992,"6063992: Tekniske anlæg - Køb over 100.000 kr.","Her konteres alle udgifter, der relaterer sig til anskaffelser af tekniske anlæg til en værdi over 100.000 kr. Et tekniske anlæg er typisk anlæg, der relaterer sig til grunde og bygninger. Eksempelvis ventilationsanlæg, ABA-anlæg (Automatiske brandalarmerings anlæg), elevatorer osv."]
[null,null,null,null,null,null,null,null,994,"994: Tekniske anlæg - Køb under 100.000 kr.","Her konteres alle udgifter, der relaterer sig til anskaffelser af tekniske anlæg til en værdi under 100.000 kr. Et tekniske anlæg er typisk anlæg, der relaterer sig til grunde og bygninger. Eksempelvis ventilationsanlæg, ABA-anlæg (Automatiske brandalarmerings anlæg), elevatorer osv.",null,6063994,"6063994: Tekniske anlæg - Køb under 100.000 kr.","Her konteres alle udgifter, der relaterer sig til anskaffelser af tekniske anlæg til en værdi under 100.000 kr. Et tekniske anlæg er typisk anlæg, der relaterer sig til grunde og bygninger. Eksempelvis ventilationsanlæg, ABA-anlæg (Automatiske brandalarmerings anlæg), elevatorer osv."]
[null,null,null,null,null,null,null,null,996,"996: Tekniske anlæg - Forrentning","Her konteres forrentning af de aktiver som gruppen omfatter. Dimensionen anvendes kun ifm. omkostningsregnskabet og anvendes p.t. ikke",null,6063996,"6063996: Tekniske anlæg - Forrentning","Her konteres forrentning af de aktiver som gruppen omfatter. Dimensionen anvendes kun ifm. omkostningsregnskabet og anvendes p.t. ikke"]
[null,null,null,null,null,null,null,null,998,"998: Tekniske anlæg - Afskrivning","Her konteres alle udgifter vedr. afskrivning på de aktiver som gruppen omfatter. Dimensionen anvendes kun centralt.",null,6063998,"6063998: Tekniske anlæg - Afskrivning","Her konteres alle udgifter vedr. afskrivning på de aktiver som gruppen omfatter. Dimensionen anvendes kun centralt."]
[null,null,null,null,null,null,null,null,600,"600: Hardware/IT-infrastruktur - Drift og vedligeholdelse","Her konteres alle udgifter, der relaterer sig til drift og vedligeholdelse af hardware og IT-infrastruktur. Computernetværk (faste LAN-installationer) i bygninger betragtes f.eks. som IT-infrastruktur, hvorfor udgift til netværksudstyr som f.eks. routere og kabler m.v. registreres her.",null,6065600,"6065600: Hardware/IT-infrastruktur - Drift og vedligeholdelse","Her konteres alle udgifter, der relaterer sig til drift og vedligeholdelse af hardware og IT-infrastruktur. Computernetværk (faste LAN-installationer) i bygninger betragtes f.eks. som IT-infrastruktur, hvorfor udgift til netværksudstyr som f.eks. routere og kabler m.v. registreres her."]
[null,null,null,null,null,null,null,null,980,"980: Hardware/IT-infrastruktur - Forsikringspræmier","Præmier til forsikringer vedr. hardware og IT-infrastruktur registreres her.  Computernetværk (faste LAN-installationer) i bygninger betragtes f.eks. som IT-infrastruktur, hvorfor udgift til netværksudstyr som f.eks. routere og kabler m.v. registreres her.",null,6065980,"6065980: Hardware/IT-infrastruktur - Forsikringspræmier","Præmier til forsikringer vedr. hardware og IT-infrastruktur registreres her.  Computernetværk (faste LAN-installationer) i bygninger betragtes f.eks. som IT-infrastruktur, hvorfor udgift til netværksudstyr som f.eks. routere og kabler m.v. registreres her."]
[null,null,null,null,null,null,null,null,990,"990: Hardware/IT-infrastruktur - Leasing","Her konteres alle udgifter, der relaterer sig til leasingydelser på hardware og IT-infrastruktur.  Computernetværk (faste LAN-installationer) i bygninger betragtes f.eks. som IT-infrastruktur, hvorfor udgift til netværksudstyr som f.eks. routere og kabler m.v. registreres her.",null,6065990,"6065990: Hardware/IT-infrastruktur - Leasing","Her konteres alle udgifter, der relaterer sig til leasingydelser på hardware og IT-infrastruktur.  Computernetværk (faste LAN-installationer) i bygninger betragtes f.eks. som IT-infrastruktur, hvorfor udgift til netværksudstyr som f.eks. routere og kabler m.v. registreres her."]
[null,null,null,null,null,null,null,null,992,"992: Hardware/IT-infrastruktur - Køb over 100.000 kr.","Her konteres alle udgifter, der relaterer sig til anskaffelser af hardware og IT-infrastruktur til en værdi over 100.000 kr.  Computernetværk (faste LAN-installationer) i bygninger betragtes f.eks. som IT-infrastruktur, hvorfor udgift til netværksudstyr som f.eks. routere og kabler m.v. registreres her.",null,6065992,"6065992: Hardware/IT-infrastruktur - Køb over 100.000 kr.","Her konteres alle udgifter, der relaterer sig til anskaffelser af hardware og IT-infrastruktur til en værdi over 100.000 kr.  Computernetværk (faste LAN-installationer) i bygninger betragtes f.eks. som IT-infrastruktur, hvorfor udgift til netværksudstyr som f.eks. routere og kabler m.v. registreres her."]
[null,null,null,null,null,null,null,null,994,"994: Hardware/IT-infrastruktur - Køb under 100.000 kr.","Her konteres alle udgifter, der relaterer sig til anskaffelser af hardware og IT-infrastruktur til en værdi under 100.000 kr.  Computernetværk (faste LAN-installationer) i bygninger betragtes f.eks. som IT-infrastruktur, hvorfor udgift til netværksudstyr som f.eks. routere og kabler m.v. registreres her.",null,6065994,"6065994: Hardware/IT-infrastruktur - Køb under 100.000 kr.",{"$f":"K100","v":"Her konteres alle udgifter, der relaterer sig til anskaffelser af hardware og IT-infrastruktur til en værdi under 100.000 kr.  Computernetværk (faste LAN-installationer) i bygninger betragtes f.eks. som IT-infrastruktur, hvorfor udgift til netværksudstyr som f.eks. routere og kabler m.v. registreres her."}]
[null,null,null,null,null,null,null,null,996,"996: Hardware/IT-infrastruktur - Forrentning","Her konteres forrentning af de aktiver som gruppen omfatter. Dimensionen anvendes kun ifm. omkostningsregnskabet og anvendes p.t. ikke",null,6065996,"6065996: Hardware/IT-infrastruktur - Forrentning","Her konteres forrentning af de aktiver som gruppen omfatter. Dimensionen anvendes kun ifm. omkostningsregnskabet og anvendes p.t. ikke"]
[null,null,null,null,null,null,null,null,998,"998: Hardware/IT-infrastruktur - Afskrivning","Her konteres alle udgifter vedr. afskrivning på de aktiver som gruppen omfatter. Dimensionen anvendes kun centralt.",null,6065998,"6065998: Hardware/IT-infrastruktur - Afskrivning","Her konteres alle udgifter vedr. afskrivning på de aktiver som gruppen omfatter. Dimensionen anvendes kun centralt."]
[null,null,null,null,null,null,null,null,600,"600: Software/Øvrig IT - Drift og vedligeholdelse (egne systemer)","Her konteres alle udgifter, der relaterer sig til drift og vedligeholdelse af software og øvrige IT.",null,6066600,"6066600: Software/Øvrig IT - Drift og vedligeholdelse (egne systemer)","Her konteres alle udgifter, der relaterer sig til drift og vedligeholdelse af software og øvrige IT."]
[null,null,null,null,null,null,null,null,602,"602: Software/Øvrig IT - Udgift vedr. hostede IT-systemer","Her konteres udgifter til IT-systemer, som driftes hos en ekstern leverandør, f.eks. Alle KMD-systemerne, løn-/vagtplan, økonomisystem, indkøbssystem mv. ",null,6066602,"6066602: Software/Øvrig IT - Udgift vedr. hostede IT-systemer","Her konteres udgifter til IT-systemer, som driftes hos en ekstern leverandør, f.eks. Alle KMD-systemerne, løn-/vagtplan, økonomisystem, indkøbssystem mv. "]
[null,null,null,null,null,null,null,null,630,"630: Software/Øvrig IT - Kommunikation (linjer mv)","Her konteres udgifter til drift af kommunikationslinjer (faste forbindelser, ADSL-linjer m.v.) som er en del af kommunens IT-infrastruktur.",null,6066630,"6066630: Software/Øvrig IT - Kommunikation (linjer mv)","Her konteres udgifter til drift af kommunikationslinjer (faste forbindelser, ADSL-linjer m.v.) som er en del af kommunens IT-infrastruktur."]
[null,null,null,null,null,null,null,null,992,"992: Software/Øvrig IT - Køb over 100.000 kr.","Her konteres alle udgifter, der relaterer sig til anskaffelser af software og øvrig IT til en værdi over 100.000 kr. ",null,6066992,"6066992: Software/Øvrig IT - Køb over 100.000 kr.","Her konteres alle udgifter, der relaterer sig til anskaffelser af software og øvrig IT til en værdi over 100.000 kr. "]
[null,null,null,null,null,null,null,null,994,"994: Software/Øvrig IT - Køb under 100.000 kr.","Her konteres alle udgifter, der relaterer sig til anskaffelser af software og øvrig IT til en værdi under 100.000 kr. ",null,6066994,"6066994: Software/Øvrig IT - Køb under 100.000 kr.","Her konteres alle udgifter, der relaterer sig til anskaffelser af software og øvrig IT til en værdi under 100.000 kr. "]
[null,null,null,null,null,null,null,null,700,"700: Grund/Bygning-Vedligehold-Udenomsarealer","Her konteres udgifter til vedligeholdelse af udenomsarealer, f.eks. pleje af grønne områder, vintervedligeholdelse osv.",null,7070700,"7070700: Grund/Bygning-Vedligehold-Udenomsarealer","Her konteres udgifter til vedligeholdelse af udenomsarealer, f.eks. pleje af grønne områder, vintervedligeholdelse osv."]
[null,null,null,null,null,null,null,null,702,"702: Grund/Bygning-Vedligehold -Serviceabonnementer","Her konteres abonnementer til service på f.eks. elevatorer, hvilket kan betragtes som en vedligeholdelse. ",null,7070702,"7070702: Grund/Bygning-Vedligehold -Serviceabonnementer","Her konteres abonnementer til service på f.eks. elevatorer, hvilket kan betragtes som en vedligeholdelse. "]
[null,null,null,null,null,null,null,null,704,"704: Grund/Bygning-Vedligehold-Indvendig","Her konteres udgifter til indvendig vedligeholdelse, f.eks. maling af vægge, lofter, indvendigt træværk samt udskiftning af gulvbelægning, vandhaner osv. ",null,7070704,"7070704: Grund/Bygning-Vedligehold-Indvendig","Her konteres udgifter til indvendig vedligeholdelse, f.eks. maling af vægge, lofter, indvendigt træværk samt udskiftning af gulvbelægning, vandhaner osv. "]
[null,null,null,null,null,null,null,null,706,"706: Grund/Bygning-Vedligehold-Udvendig ","Udgifter til udvendig vedligeholdelse, der finansieres af den forvaltning/institution, der anvender ejendommen, konteres på dimensionsværdi 7070706. ",null,7070706,"7070706: Grund/Bygning-Vedligehold-Udvendig ","Udgifter til udvendig vedligeholdelse, der finansieres af den forvaltning/institution, der anvender ejendommen, konteres på dimensionsværdi 7070706. "]
[null,null,null,null,null,null,null,null,710,"710: Grund/Bygning-Vedligehold-Udvendig (KUN til PTM)","Udgifter til udvendig vedligeholdelse, der finansieres af puljen under Kommunale ejedomme konteres på dimensionsværdi 7070710 (dimensionen må kun anvendes af PTM-Ejendomme) – hvortil budgettet, der finansierer udgiften, omplaceres. ",null,7070710,"7070710: Grund/Bygning-Vedligehold-Udvendig (KUN til PTM)","Udgifter til udvendig vedligeholdelse, der finansieres af puljen under Kommunale ejedomme konteres på dimensionsværdi 7070710 (dimensionen må kun anvendes af PTM-Ejendomme) – hvortil budgettet, der finansierer udgiften, omplaceres. "]
[null,null,null,null,null,null,null,null,712,"712: Grund/Bygning-Vedl.hold-Energibespar (KUN til PTM)","Såfremt der etableres en pulje til energibesparende foranstaltninger, konteres udgifterne hertil på dimensionsværdien 7070712 – hvortil budgettet, der finansierer udgiften, omplaceres. P.t. findes en sådan pulje ikke. Dimensionen må kun anvendes af PTM-Ejendomme.",null,7070712,"7070712: Grund/Bygning-Vedl.hold-Energibespar (KUN til PTM)","Såfremt der etableres en pulje til energibesparende foranstaltninger, konteres udgifterne hertil på dimensionsværdien 7070712 – hvortil budgettet, der finansierer udgiften, omplaceres. P.t. findes en sådan pulje ikke. Dimensionen må kun anvendes af PTM-Ejendomme."]
[null,null,null,null,null,null,null,null,720,"720: Grund/Bygning-Lejeudg. intern udlejer","Her konteres den udgift som man betaler til en anden forvaltning/ afdeling for at leje lokaler. Modposten konteres på 7074740.",null,7072720,"7072720: Grund/Bygning-Lejeudg. intern udlejer","Her konteres den udgift som man betaler til en anden forvaltning/ afdeling for at leje lokaler. Modposten konteres på 7074740."]
[null,null,null,null,null,null,null,null,722,"722: Grund/Bygning-Lejeudg. ekstern udlejer","Her konteres den udgift som man betaler til en ekstern udlejer for at leje lokaler ",null,7072722,"7072722: Grund/Bygning-Lejeudg. ekstern udlejer","Her konteres den udgift som man betaler til en ekstern udlejer for at leje lokaler "]
[null,null,null,null,null,null,null,null,740,"740: Grund/Bygning-Lejeindt. (intern udlejning)","Her konteres den indtægt man modtager fra en anden forvaltning/ afdeling for at udleje lokaler. Modposten konteres på 7072720.",null,7074740,"7074740: Grund/Bygning-Lejeindt. (intern udlejning)","Her konteres den indtægt man modtager fra en anden forvaltning/ afdeling for at udleje lokaler. Modposten konteres på 7072720."]
[null,null,null,null,null,null,null,null,742,"742: Grund/Bygning-Lejeindt.-(ekstern udlejning)","Her konteres den man har fra en ekstern lejer for at udleje lokaler.",null,7074742,"7074742: Grund/Bygning-Lejeindt.-(ekstern udlejning)","Her konteres den man har fra en ekstern lejer for at udleje lokaler."]
[null,null,null,null,null,null,null,null,760,"760: Grund/Bygning - Ejendomsskat","Her konteres f.eks. rottebekæmpelse m.v. som udkonteres via ejendomsskattesystemet.",null,7076760,"7076760: Grund/Bygning - Ejendomsskat","Her konteres f.eks. rottebekæmpelse m.v. som udkonteres via ejendomsskattesystemet."]
[null,null,null,null,null,null,null,null,762,"762: Grund/Bygning - Vand inkl. spildevandsafledning (forbrugsafg)","Her konteres afregninger til vandforsyningsselskaber / vandværker. Tømning af septiktanke konteres også her.",null,7076762,"7076762: Grund/Bygning - Vand inkl. spildevandsafledning (forbrugsafg)","Her konteres afregninger til vandforsyningsselskaber / vandværker. Tømning af septiktanke konteres også her."]
[null,null,null,null,null,null,null,null,764,"764: Grund/Bygning - Renovation (forbrugsafg)","Her konteres udgifter til renovation (Provas) samt til ekstra tømningsordninger f.eks. leveret af Meldgaard.",null,7076764,"7076764: Grund/Bygning - Renovation (forbrugsafg)","Her konteres udgifter til renovation (Provas) samt til ekstra tømningsordninger f.eks. leveret af Meldgaard."]
[null,null,null,null,null,null,null,null,766,"766: Grund/Bygning - Opvarmning","Her konteres udgifter til varme - fjernvarme, køb af fyringsolie, naturgas, el til opvarmning. Hvis el kommer på samlet regning bør det søges opdelt i el til varme og el til belysning m.v. Kan det ikke opdeles på to fakturaer kan der foretages en fordeling f.eks. via en fast andel som anvendes på alle regninger. El til belysning m.v. konteres på dimension 7076768.",null,7076766,"7076766: Grund/Bygning - Opvarmning","Her konteres udgifter til varme - fjernvarme, køb af fyringsolie, naturgas, el til opvarmning. Hvis el kommer på samlet regning bør det søges opdelt i el til varme og el til belysning m.v. Kan det ikke opdeles på to fakturaer kan der foretages en fordeling f.eks. via en fast andel som anvendes på alle regninger. El til belysning m.v. konteres på dimension 7076768."]
[null,null,null,null,null,null,null,null,768,"768: Grund/Bygning - El","Her konteres el ekskl. el til opvarmning (dette bogføres på dimension 7076766)",null,7076768,"7076768: Grund/Bygning - El","Her konteres el ekskl. el til opvarmning (dette bogføres på dimension 7076766)"]
[null,null,null,null,null,null,null,null,770,"770: Grund/Bygning - Adgangskontrol/tyverialarmer","Her konteres abonnementer til drift af tyverialamer, vagtcentraler m.v. Reparation/ vedligehold af alarmanlæg konteres også her.",null,7076770,"7076770: Grund/Bygning - Adgangskontrol/tyverialarmer","Her konteres abonnementer til drift af tyverialamer, vagtcentraler m.v. Reparation/ vedligehold af alarmanlæg konteres også her."]
[null,null,null,null,null,null,null,null,772,"772: Grund/Bygning - Solcelleanlæg","For de institutioner som har solcelleanlæg konteres driftsudgifter og driftsindtægter vedr. anlæggene her. Der er særlige krav til regnskabsaflæggelse - spørg Økonomiafdelingen - Regnskabskontoret herom hvis der er tvivl.",null,7076772,"7076772: Grund/Bygning - Solcelleanlæg","For de institutioner som har solcelleanlæg konteres driftsudgifter og driftsindtægter vedr. anlæggene her. Der er særlige krav til regnskabsaflæggelse - spørg Økonomiafdelingen - Regnskabskontoret herom hvis der er tvivl."]
[null,null,null,null,null,null,null,null,970,"970: Grund/Bygning - Rengøring","Udgifter til rengøringsmaterialer samt fakturaer fra eksterne rengøringsfirmaer konteres her. ",null,7076970,"7076970: Grund/Bygning - Rengøring","Udgifter til rengøringsmaterialer samt fakturaer fra eksterne rengøringsfirmaer konteres her. "]
[null,null,null,null,null,null,null,null,980,"980: Grund/Bygning - Forsikringspræmier","Præmier til forsikringer vedr. grunde og bygninger registreres her. ",null,7076980,"7076980: Grund/Bygning - Forsikringspræmier","Præmier til forsikringer vedr. grunde og bygninger registreres her. "]
[null,null,null,null,null,null,null,null,982,"982: Grund/Bygning-Forsikringsskader","Kommunens/institutionens udgifter i forbindelse med forsikringssager på grunde og bygninger (f.eks. Selvrisiko) konteres her.",null,7076982,"7076982: Grund/Bygning-Forsikringsskader","Kommunens/institutionens udgifter i forbindelse med forsikringssager på grunde og bygninger (f.eks. Selvrisiko) konteres her."]
[null,null,null,null,null,null,null,null,996,"996: Grund/Bygning - Forrentning","Her konteres forrentning af de aktiver som gruppen omfatter. Dimensionen anvendes kun ifm. omkostningsregnskabet og anvendes p.t. ikke",null,7076996,"7076996: Grund/Bygning - Forrentning","Her konteres forrentning af de aktiver som gruppen omfatter. Dimensionen anvendes kun ifm. omkostningsregnskabet og anvendes p.t. ikke"]
[null,null,null,null,null,null,null,null,998,"998: Grund/Bygning - Afskrivning","Her konteres alle udgifter vedr. afskrivning på de aktiver som gruppen omfatter. Dimensionen anvendes kun centralt.",null,7076998,"7076998: Grund/Bygning - Afskrivning","Her konteres alle udgifter vedr. afskrivning på de aktiver som gruppen omfatter. Dimensionen anvendes kun centralt."]
[null,null,null,null,null,null,null,null,800,"800: Betaling til og fra andre offentlige myndighed","Her konteres udgifter og indtægter som afregnes mellem Aabenraa Kommune og andre offentlige myndigheder. Se dog under område 9090.",null,8080800,"8080800: Betaling til og fra andre offentlige myndighed","Her konteres udgifter og indtægter som afregnes mellem Aabenraa Kommune og andre offentlige myndigheder. Se dog under område 9090."]
[null,null,null,null,null,null,null,null,900,"900: Indtægter - Salg af kerneydelser (ekstern)","Her konteres salg, der relatere sig til kerneydelsen. Kerneydelsen defineres i forhold til den valgte hovedkonto. Et eksempel er salg af aflastningspladser til andre kommuner.",null,9090900,"9090900: Indtægter - Salg af kerneydelser (ekstern)","Her konteres salg, der relatere sig til kerneydelsen. Kerneydelsen defineres i forhold til den valgte hovedkonto. Et eksempel er salg af aflastningspladser til andre kommuner."]
[null,null,null,null,null,null,null,null,{"$f":"IFERROR(VALUE(LEFT(J132,3)),\"\")","v":902},"902: Indtægter - Administrationsvederlag","Her konteres indtægter fra administrationsvederlag, f.eks. administrationsvederlag overført fra anlægsprojekter. Hvis der til et projekt med ekstern finansiering skal opgøres og registreres en administrationsudgift, som er leveret fra Aabenraa Kommune, skal vederlaget indtægtsføres på denne dimension . Modposten registreres i så fald på dimension 5054556. ",null,{"$f":"IFERROR(VALUE(LEFT(N132,7)),\"\")","v":9090902},"9090902: Indtægter - Administrationsvederlag",{"$f":"K132","v":"Her konteres indtægter fra administrationsvederlag, f.eks. administrationsvederlag overført fra anlægsprojekter. Hvis der til et projekt med ekstern finansiering skal opgøres og registreres en administrationsudgift, som er leveret fra Aabenraa Kommune, skal vederlaget indtægtsføres på denne dimension . Modposten registreres i så fald på dimension 5054556. "}]
[null,null,null,null,null,null,null,null,904,"904: Indtægter - Salg af øvrige ydelser (ekstern)","Her konteres indtægter der stammer fra salg af ydelser, der ikke relatere til kerneydelsen. Kerneydelsen defineres i forhold til den valgte hovedkonto. Det kan f.eks. være hvis en forvaltning leverer en betalbar ydelse til Brand og Redning Sønderjylland. ",null,9090904,"9090904: Indtægter - Salg af øvrige ydelser (ekstern)","Her konteres indtægter der stammer fra salg af ydelser, der ikke relatere til kerneydelsen. Kerneydelsen defineres i forhold til den valgte hovedkonto. Det kan f.eks. være hvis en forvaltning leverer en betalbar ydelse til Brand og Redning Sønderjylland. "]
[null,null,null,null,null,null,null,null,908,"908: Indtægter - Internt salg","Internt salg omfatter f.eks. køb og salg af ydelser mellem forskellige afdelinger/institutioner/grupper.",null,9090908,"9090908: Indtægter - Internt salg","Internt salg omfatter f.eks. køb og salg af ydelser mellem forskellige afdelinger/institutioner/grupper."]
[null,null,null,null,null,null,null,null,910,"910: Tilskud - Eksterne parter","Her konteres tilskud som Aabenraa Kommune modtager f.eks. EU-tilskud til projekter.",null,9091910,"9091910: Tilskud - Eksterne parter","Her konteres tilskud som Aabenraa Kommune modtager f.eks. EU-tilskud til projekter."]
[null,null,null,null,null,null,null,null,920,"920: Tilskud - Fonds (17,5%)","Her konteres tilskud som Aabenraa Kommune modtager f.eks. bidrag fra kulturelle eller fritidsforeninger, som er omfattet af reglerne i momsudligningsordningen om afløftning af udligningsmoms. Spørg din økonomikonsulent herom, hvis du er i tvivl.",null,9091920,"9091920: Tilskud - Fonds (17,5%)",{"$f":"K136","v":"Her konteres tilskud som Aabenraa Kommune modtager f.eks. bidrag fra kulturelle eller fritidsforeninger, som er omfattet af reglerne i momsudligningsordningen om afløftning af udligningsmoms. Spørg din økonomikonsulent herom, hvis du er i tvivl."}]
[null,null,null,null,null,null,null,null,null,null,""]
[]
[]
[]
[]
[]
[]
[]
[]
[]
[]
[]
["Formler","X",{"$f":"IFERROR(VLOOKUP(A149,#REF!,3,FALSE),\"X\")","v":"X"},"X",{"$f":"IFERROR(VALUE(LEFT(F149,2)),\"X\")","v":"X"},"X",{"$f":"IFERROR(VLOOKUP(E149,#REF!,3,FALSE),\"X\")","v":"X"},"X",null,null,null,"X"]
[{"$f":"IFERROR(VALUE(LEFT(B150,2)),LEFT(B150,2))","v":""}]
[null,null,null,null,null,null,null,null,{"$f":"IFERROR(VALUE(LEFT(J151,3)),\"X\")","v":"X"},"X",{"$f":"IFERROR(VLOOKUP(I151,#REF!,3,FALSE),\"X\")","v":"X"},null,{"$f":"IFERROR(VALUE(LEFT(N151,7)),\"X\")","v":"X"},"X"]